Workbook

Sheet Home
A9: Bienvenue dans Rapid'Panneaux
A10: V.6.10.2026

Sheet Page de garde
B16: ="Entreprise : "&Home!$A$15 -> Entreprise :
B17: ="À l'attention de : "&Home!$A$16 -> À l'attention de :
B18: ="Projet : "&Home!$A$17 -> Projet :
B19: ="Devis # : "&Home!$A$18 -> Devis # :
B20: ="Date : "&Home!$A$19 -> Date :
B21: ="Réalisé par : "&Home!$A$20 -> Réalisé par :
A33: Tous les modèles de notre gamme sont certifiés EN 14037. Les panneaux ont une finition peinture époxy cuite au four à 180°C couleur standard blanc RAL 9016. Les délais de livraisons sont de 5 semaines pour les modéles standards (RAL 9016), les peintures hors standard et les panneaux perforés ou spécifiques nécessitent jusqu'à 8 semaines (nous consulter). La Société SABIANA n'a pas la responsabilité d'effectuer les études thermiques pour dimensionner le matériel. Il appartient à l'acquéreur de faire établir ces études auprès d'un BET.
R35: =Home!A10 -> V.6.10.2026

Sheet DS_calcul
A2: ="Entreprise : "&Home!$A$15 -> Entreprise : | U2: T° moyenne | V2: =+AVERAGE(R44:R45) -> 70 | X2: DEBITS MINI DUCK STRIP - EN FONCTION DE LA TEMPERATURE DE RETOUR | AJ2: DS18-4-030 | AK2: DS18-3-090 | AL2: DS18-4-090 | AM2: DS18-4-120 | BQ2: l/h | BR2: kPa/ml
A3: ="À l'attention de : "&Home!$A$16 -> À l'attention de : | U3: Coeff correction PdC en fonction Temp. moyenne eau | V3: =3.6533*V2^-0.293 -> 1.052135347 | X3: Qv mini par tube: | AA3: =ROUNDUP(-0.0004*POWER($V$2,3)+0.0883*POWER($V$2,2)-7.2238*$V$2+275.25,0) -> 66 | AB3: Poids | AE3: Hauteur mini [m] | AJ3: DS18-3-030 | AK3: DS18-4-060 | AL3: DS18-3-120 | AM3: DS18-3-150 | BQ3: X | BR3: Y | CO3: Largeur du panneau [mm] | CP3: Capots de protection anti-ballons [kg/m]
A4: ="Projet : "&Home!$A$17 -> Projet : | X4: Collecteur D | Y4: Modèle | Z4: Nbr tube | AA4: Débit mini | AB4: Panneau | AC4: Collecteur | AD4: Capots | AK4: DS18-3-060 | BQ4: Y = a X²
A5: ="Devis # : "&Home!$A$18 -> Devis # : | Y5: DS18-3-030 | Z5: 2 | AA5: =+Z5*$AA$3 -> 132 | AB5: 4.57 | AC5: 3.28 | AD5: 1.46 | AE5: =+AJ5 -> 3.1 | AF5: DS18-3-030 | AH5: T° moyenne de l'eau | AI5: Automatique | AJ5: =ROUND(0.01*$V$2+2.4,1) -> 3.1 | AK5: =ROUND(0.0177*$V$2+1.961,1) -> 3.2 | AL5: =ROUND(0.0217*$V$2+1.7876,1) -> 3.3 | AM5: =ROUND(0.0217*$V$2+1.8876,1) -> 3.4
Y6: DS18-3-060 | Z6: 3 | AA6: 198 | AB6: 9.15 | AC6: 6.66 | AD6: 2.66 | AE6: =+AK5 -> 3.2 | AF6: DS18-3-060 | AI6: 60 | AJ6: 3 | AK6: 3.1 | AL6: 3.2 | AM6: 3.3 | BP6: l/h | BQ6: kPa/ml | BR6: DS18-3-030 | BS6: l/h | BT6: kPa/ml | BU6: DS3-03 | BV6: l/h | BW6: kPa/ml | BX6: DS2-06 | BY6: l/h | BZ6: kPa/ml | CA6: DS3-06 | CB6: l/h | CC6: kPa/ml | CD6: DS2-09 | CE6: l/h | CF6: kPa/ml | CG6: DS3-09 | CH6: l/h | CI6: kPa/ml | CJ6: DS2-12 | CK6: l/h | CL6: kPa/ml | CM6: DS3-12 | CO6: DS2-03 | CP6: 1.42
Y7: DS18-3-090 | Z7: 5 | AA7: 330 | AB7: 13.72 | AC7: 9.84 | AD7: 3.96 | AE7: =+AL5 -> 3.3 | AF7: DS18-3-090 | AI7: 70 | AJ7: 3.1 | AK7: 3.2 | AL7: 3.3 | AM7: 3.4 | BJ7: POIDS EN CHARGE | BP7: 200 | BQ7: 0.144 | BR7: =BQ7/BP7^2 -> 3.6e-06 | BS7: 280 | BT7: 0.1 | BU7: =BT7/BS7^2 -> 1.275510204e-06 | BV7: 1200 | BW7: 0.7 | BX7: =BW7/BV7^2 -> 4.861111111e-07 | BY7: 1000 | BZ7: 0.22 | CA7: =BZ7/BY7^2 -> 2.2e-07 | CB7: 1000 | CC7: 0.22 | CD7: =CC7/CB7^2 -> 2.2e-07 | CE7: 1400 | CF7: 0.2 | CG7: =CF7/CE7^2 -> 1.020408163e-07 | CH7: 1800 | CI7: 0.4 | CJ7: =CI7/CH7^2 -> 1.234567901e-07 | CK7: 9000 | CL7: 4 | CM7: =CL7/CK7^2 -> 4.938271605e-08 | CO7: DS3-03 | CP7: =+CP6 -> 1.42
Y8: DS18-3-030-perforé | Z8: 2 | AA8: =+Z8*$AA$3 -> 132 | AB8: 4.57 | AC8: 3.28 | AD8: 1.46 | AE8: =+AJ8 -> 3.1 | AF8: DS18-3-120 | AI8: Automatique | AJ8: =ROUND(0.01*$V$2+2.4,1) -> 3.1 | AK8: =ROUND(0.0177*$V$2+1.961,1) -> 3.2 | AL8: =ROUND(0.0217*$V$2+1.7876,1) -> 3.3 | AM8: =ROUND(0.0217*$V$2+1.8876,1) -> 3.4
Y9: DS18-3-060-perforé | Z9: 3 | AA9: =+Z9*$AA$3 -> 198 | AB9: 9.15 | AC9: 6.66 | AD9: 2.66 | AE9: =+AK8 -> 3.2 | AF9: DS18-3-150 | AI9: 60 | AJ9: 3 | AK9: 3.1 | AL9: 3.2 | AM9: 3.3 | BP9: l/h | BQ9: kPa/ml | BR9: DS18-3-030 | BS9: l/h | BT9: kPa/ml | BU9: DS3-03 | BV9: l/h | BW9: kPa/ml | BX9: DS2-06 | BY9: l/h | BZ9: kPa/ml | CA9: DS3-06 | CB9: l/h | CC9: kPa/ml | CD9: DS2-09 | CE9: l/h | CF9: kPa/ml | CG9: DS3-09 | CH9: l/h | CI9: kPa/ml | CJ9: DS2-12 | CK9: l/h | CL9: kPa/ml | CM9: DS3-12 | CO9: DS2-03 | CP9: 1.42
Y10: DS18-3-090-perforé | Z10: 5 | AA10: =+Z10*$AA$3 -> 330 | AB10: 13.72 | AC10: 9.84 | AD10: 3.96 | AE10: =+AL8 -> 3.3 | AF10: DS18-4-030 | AI10: 70 | AJ10: 3.1 | AK10: 3.2 | AL10: 3.3 | AM10: 3.4 | BJ10: POIDS EN CHARGE | BP10: 200 | BQ10: 0.144 | BR10: =BQ10/BP10^2 -> 3.6e-06 | BS10: 280 | BT10: 0.1 | BU10: =BT10/BS10^2 -> 1.275510204e-06 | BV10: 1200 | BW10: 0.7 | BX10: =BW10/BV10^2 -> 4.861111111e-07 | BY10: 1000 | BZ10: 0.22 | CA10: =BZ10/BY10^2 -> 2.2e-07 | CB10: 1000 | CC10: 0.22 | CD10: =CC10/CB10^2 -> 2.2e-07 | CE10: 1400 | CF10: 0.2 | CG10: =CF10/CE10^2 -> 1.020408163e-07 | CH10: 1800 | CI10: 0.4 | CJ10: =CI10/CH10^2 -> 1.234567901e-07 | CK10: 9000 | CL10: 4 | CM10: =CL10/CK10^2 -> 4.938271605e-08 | CO10: DS3-03 | CP10: =+CP9 -> 1.42
Y11: DS18-3-120 | Z11: 6 | AA11: 396 | AB11: 18.29 | AC11: 13.02 | AD11: 5.16 | AE11: =+AL5 -> 3.3 | AF11: DS18-4-060 | AI11: 80 | AJ11: 3.2 | AK11: 3.3 | AL11: 3.4 | AM11: 3.5 | BJ11: ST | BL11: SP | BP11: 1500 | BQ11: 5 | BR11: =BQ11/BP11^2 -> 2.222222222e-06 | BS11: 2000 | BT11: 4.5 | BU11: =BT11/BS11^2 -> 1.125e-06 | BV11: 500 | BW11: 0.13 | BX11: =BW11/BV11^2 -> 5.2e-07 | BY11: 200 | BZ11: 0.01 | CA11: =BZ11/BY11^2 -> 2.5e-07 | CB11: 200 | CC11: 0.01 | CD11: =CC11/CB11^2 -> 2.5e-07 | CE11: 300 | CF11: 0.01 | CG11: =CF11/CE11^2 -> 1.111111111e-07 | CH11: 400 | CI11: 0.022 | CJ11: =CI11/CH11^2 -> 1.375e-07 | CK11: 400 | CL11: 0.01 | CM11: =CL11/CK11^2 -> 6.25e-08 | CO11: DS2-06 | CP11: 2.8
Y12: DS18-3-150 | Z12: 8 | AA12: 528 | AB12: 21.87 | AC12: 16.2 | AD12: 6.46 | AE12: =+AM5 -> 3.4 | AF12: DS18-4-090 | AI12: 90 | AJ12: 3.3 | AK12: 3.5 | AL12: 3.7 | AM12: 3.8 | BJ12: /ml | BK12: /coll | BL12: /ml | BM12: /coll | BP12: ST / D | BR12: =AVERAGE(BR7:BR11) -> 3.140740741e-06 | BU12: =AVERAGE(BU7:BU11) -> 1.225340136e-06 | BX12: =AVERAGE(BX7:BX11) -> 4.974074074e-07 | CA12: =AVERAGE(CA7:CA11) -> 2.3e-07 | CD12: =AVERAGE(CD7:CD11) -> 2.3e-07 | CG12: =AVERAGE(CG7:CG11) -> 1.050642479e-07 | CJ12: =AVERAGE(CJ7:CJ11) -> 1.281378601e-07 | CM12: =AVERAGE(CM7:CM11) -> 5.375514403e-08 | CO12: DS3-06 | CP12: =+CP11 -> 2.8
Y13: DS18-4-030 | Z13: 2 | AA13: 132 | AB13: 5.77 | AC13: 3.28 | AD13: 1.46 | AE13: =+AJ5 -> 3.1 | AF13: DS18-4-120 | AI13: 100 | AJ13: 3.4 | AK13: 3.7 | AL13: 3.9 | AM13: 4 | BI13: DS2-03 | BJ13: 5.13 | BK13: 2.53 | BL13: 6.03 | BM13: 2.53 | BP13: 500 | BQ13: 0.06 | BR13: =BQ13/BP13^2 -> 2.4e-07 | BS13: 400 | BT13: 0.018 | BU13: =BT13/BS13^2 -> 1.125e-07 | BV13: 900 | BW13: 0.05 | BX13: =BW13/BV13^2 -> 6.172839506e-08 | BY13: 1600 | BZ13: 0.07 | CA13: =BZ13/BY13^2 -> 2.734375e-08 | CB13: 1600 | CC13: 0.07 | CD13: =CC13/CB13^2 -> 2.734375e-08 | CE13: 2000 | CF13: 0.05 | CG13: =CF13/CE13^2 -> 1.25e-08 | CH13: 1600 | CI13: 0.04 | CJ13: =CI13/CH13^2 -> 1.5625e-08 | CK13: 2200 | CL13: 0.035 | CM13: =CL13/CK13^2 -> 7.231404959e-09 | CO13: DS2-09 | CP13: 4.2
Y14: DS18-4-060 | Z14: 4 | AA14: 264 | AB14: 10.53 | AC14: 6.66 | AD14: 2.66 | AE14: =+AK5 -> 3.2 | AI14: 110 | AJ14: 3.5 | AK14: 4 | AL14: 4.3 | AM14: 4.4 | BI14: DS2-06 | BJ14: 10.25 | BK14: 4.97 | BL14: 12.07 | BM14: 4.97 | BP14: 280 | BQ14: 0.02 | BR14: =BQ14/BP14^2 -> 2.551020408e-07 | BS14: 600 | BT14: 0.04 | BU14: =BT14/BS14^2 -> 1.111111111e-07 | BV14: 500 | BW14: 0.016 | BX14: =BW14/BV14^2 -> 6.4e-08 | BY14: 735 | BZ14: 0.016 | CA14: =BZ14/BY14^2 -> 2.961728909e-08 | CB14: 735 | CC14: 0.016 | CD14: =CC14/CB14^2 -> 2.961728909e-08 | CE14: 1100 | CF14: 0.016 | CG14: =CF14/CE14^2 -> 1.32231405e-08 | CH14: 1000 | CI14: 0.016 | CJ14: =CI14/CH14^2 -> 1.6e-08 | CK14: 1400 | CL14: 0.0145 | CM14: =CL14/CK14^2 -> 7.397959184e-09 | CO14: DS3-09 | CP14: =+CP13 -> 4.2
Y15: DS18-4-090 | Z15: 6 | AA15: 396 | AB15: 16.29 | AC15: 9.84 | AD15: 3.96 | AE15: =+AL5 -> 3.3 | AF15: DS28-2-030 | BI15: DS2-09 | BJ15: 15.38 | BK15: 7 | BL15: 18.1 | BM15: 7 | BP15: ST / B | BR15: =AVERAGE(BR13:BR14) -> 2.475510204e-07 | BU15: =AVERAGE(BU13:BU14) -> 1.118055556e-07 | BX15: =AVERAGE(BX13:BX14) -> 6.286419753e-08 | CA15: =AVERAGE(CA13:CA14) -> 2.848051955e-08 | CD15: =AVERAGE(CD13:CD14) -> 2.848051955e-08 | CG15: =AVERAGE(CG13:CG14) -> 1.286157025e-08 | CJ15: =AVERAGE(CJ13:CJ14) -> 1.58125e-08 | CM15: =AVERAGE(CM13:CM14) -> 7.314682071e-09 | CO15: DS2-12 | CP15: 5.6
Y16: DS18-4-120 | Z16: 8 | AA16: 528 | AB16: 21.06 | AC16: 13.02 | AD16: 5.16 | AE16: =+AM5 -> 3.4 | AF16: DS28-2-045 | BI16: DS2-12 | BJ16: 20.5 | BK16: 9.04 | BL16: 24.14 | BM16: 9.04 | BP16: 140 | BQ16: 0.01 | BR16: =BQ16/BP16^2 -> 5.102040816e-07 | BS16: 300 | BT16: 0.02 | BU16: =BT16/BS16^2 -> 2.222222222e-07 | BV16: 900 | BW16: 0.1 | BX16: =BW16/BV16^2 -> 1.234567901e-07 | BY16: 500 | BZ16: 0.015 | CA16: =BZ16/BY16^2 -> 6e-08 | CB16: 500 | CC16: 0.015 | CD16: =CC16/CB16^2 -> 6e-08 | CE16: 600 | CF16: 0.01 | CG16: =CF16/CE16^2 -> 2.777777778e-08 | CH16: 1600 | CI16: 0.08 | CJ16: =CI16/CH16^2 -> 3.125e-08 | CK16: 2400 | CL16: 0.08 | CM16: =CL16/CK16^2 -> 1.388888889e-08 | CO16: DS3-12 | CP16: =+CP15 -> 5.6
X17: Qv mini par tube: | AA17: =ROUNDUP((-0.0001*POWER($V$2,3)+0.047*POWER($V$2,2)-6.2632*$V$2+354.37)/1.07,0) -> 105 | AB17: Poids | AF17: DS28-2-060
X18: Collecteur D | Y18: Modèle | Z18: Nbr tube | AA18: Débit mini | AB18: Panneau | AC18: Collecteur | AD18: Capots | AF18: DS28-2-075
Y19: DS28-2-030 | Z19: 1 | AA19: =+Z19*$AA$17 -> 105 | AB19: 4.57 | AC19: 3.28 | AD19: 1.46 | AE19: ="-" -> - | AF19: DS28-2-090
Y20: DS28-2-045 | Z20: 1 | AA20: =+Z20*$AA$17 -> 105 | AB20: 9.15 | AC20: 6.66 | AD20: 2.66 | AE20: ="-" -> - | AF20: DS28-2-105
Y21: DS28-2-060 | Z21: 2 | AA21: 210 | AB21: 13.72 | AC21: 9.84 | AD21: 3.96 | AE21: - | AF21: DS28-2-120
Y22: DS28-2-075 | Z22: 2 | AA22: 210 | AB22: 18.29 | AC22: 13.02 | AD22: 5.16 | AE22: - | AF22: DS28-2-135
Y23: DS28-2-090 | Z23: 3 | AA23: 315 | AB23: 21.87 | AC23: 16.2 | AD23: 6.46 | AE23: -
Y24: DS28-2-105 | Z24: 3 | AA24: 315 | AB24: 5.77 | AC24: 3.28 | AD24: 1.46 | AE24: -
Y25: DS28-2-120 | Z25: 4 | AA25: 420 | AB25: 10.53 | AC25: 6.66 | AD25: 2.66 | AE25: -
Y26: DS28-2-135 | Z26: 4 | AA26: 420 | AB26: 16.29 | AC26: 9.84 | AD26: 3.96 | AE26: -
Y27: DS28-2-150 | Z27: 5 | AA27: 525 | AB27: 21.06 | AC27: 13.02 | AD27: 5.16 | AE27: -
Y28: 0
X29: Collecteur B | Y29: Modèle | Z29: Nbr tube | AA29: Débit mini
Y30: DS18-3-030 | Z30: 3 | AA30: =+Z30*$AA$3 -> 198
Y31: DS18-3-060 | Z31: =+Z30+3 -> 6 | AA31: 396
Y32: DS18-3-090 | Z32: =+Z31+3 -> 9 | AA32: 594
Y33: DS18-3-120 | Z33: =+Z32+3 -> 12 | AA33: 792
Y34: DS18-3-150 | Z34: =+Z33+3 -> 15 | AA34: 990
Y35: DS18-4-030 | Z35: 4 | AA35: 264
Y36: DS18-4-060 | Z36: =+Z35+4 -> 8 | AA36: 528
Y37: DS18-4-090 | Z37: =+Z36+4 -> 12 | AA37: 792 | BI37: DS3-03 | BJ37: 6.39 | BK37: 2.73 | BL37: 7.75 | BM37: 2.73 | BP37: 200 | BQ37: 0.02 | BR37: =BQ37/BP37^2 -> 5e-07 | BS37: 400 | BT37: 0.035 | BU37: =BT37/BS37^2 -> 2.1875e-07 | BV37: 300 | BW37: 0.012 | BX37: =BW37/BV37^2 -> 1.333333333e-07 | BY37: 1600 | BZ37: 0.14 | CA37: =BZ37/BY37^2 -> 5.46875e-08 | CB37: 1600 | CC37: 0.14 | CD37: =CC37/CB37^2 -> 5.46875e-08 | CE37: 1000 | CF37: 0.026 | CG37: =CF37/CE37^2 -> 2.6e-08 | CH37: 600 | CI37: 0.012 | CJ37: =CI37/CH37^2 -> 3.333333333e-08 | CK37: 800 | CL37: 0.01 | CM37: =CL37/CK37^2 -> 1.5625e-08 | CP37: OUI
Y38: DS18-4-120 | Z38: =+Z37+4 -> 16 | AA38: 1056 | BI38: DS3-06 | BJ38: 12.78 | BK38: 5.17 | BL38: 15.5 | BM38: 5.17 | BP38: SP / B | BR38: =AVERAGE(BR16:BR37) -> 5.051020408e-07 | BU38: =AVERAGE(BU16:BU37) -> 2.204861111e-07 | BX38: =AVERAGE(BX16:BX37) -> 1.283950617e-07 | CA38: =AVERAGE(CA16:CA37) -> 5.734375e-08 | CD38: =AVERAGE(CD16:CD37) -> 5.734375e-08 | CG38: =AVERAGE(CG16:CG37) -> 2.688888889e-08 | CJ38: =AVERAGE(CJ16:CJ37) -> 3.229166667e-08 | CM38: =AVERAGE(CM16:CM37) -> 1.475694444e-08 | CP38: NON
X39: Collecteur B | Y39: Modèle | Z39: Nbr tube | AA39: Débit mini | BI39: DS3-09 | BJ39: 19.17 | BK39: 7.2 | BL39: 23.25 | BM39: 7.2
Y40: DS28-2-030 | Z40: 2 | AA40: =+Z40*$AA$17 -> 210 | BI40: DS3-12 | BJ40: 25.56 | BK40: 9.24 | BL40: 31 | BM40: 9.24
Y41: DS28-2-045 | Z41: 3 | AA41: =+Z41*$AA$17 -> 315
Y42: DS28-2-060 | Z42: =+Z41+1 -> 4 | AA42: 420
A43: ="Date : "&Home!$A$19 -> Date : | R43: Conditions de sélection: | Y43: DS28-2-075 | Z43: =+Z42+1 -> 5 | AA43: 525
A44: ="Réalisé par : "&Home!$A$20 -> Réalisé par : | P44: Température de départ | R44: 80 | Y44: DS28-2-090 | Z44: 6 | AA44: 630
P45: Température de retour | R45: 60 | Y45: DS28-2-105 | Z45: 7 | AA45: 735 | BQ45: 100 | BR45: 0.9
R46: *Hypothèse de calcul à valider par vos soins | Y46: DS28-2-120 | Z46: 8 | AA46: 840 | BQ46: =+BQ45*BR46/BR45 -> 44.44444444 | BR46: 0.4
U47: 250 | Y47: DS28-2-135 | Z47: 9 | AA47: 945
Q48: Kit vanne d'équilibrage | R48: OUI | U48: =ROUND((U47*D57*V3)/1000,2) -> 0 | Y48: DS28-2-150 | Z48: 10 | AA48: 1050
A49: (*) Dans le cas de panneaux avec collecteurs D+D raccordés en série, il s'agit de la puissance totale de l'ensemble de la ligne (panneaux avec collecteurs D et D+D)
U51: A SAISIR
A52: Description | B52: Nbre | C52: Type | D52: Long ml | E52: Code | F52: Collecteur | G52: Poids en charge panneau | H52: Hauteur minimale d'installation [m] | I52: Capots | J52: Temp. Ambiante | K52: Puissance | M52: Débit par panneau (ou ligne) | N52: Débit turbulent | O52: Réglage débit | P52: =IF(T48="OUI","Diamètre Alim Pann et vannes","Diamètre Alim. Panneau") -> Diamètre Alim. Panneau | Q52: Pertes de charge | S52: Puissance réelle | W52: Poids en charge panneau | X52: Poids des capots | Y52: PdC au m
K53: Unitaire Pann. | L53: Totale Ligne (*) | P53: net H.T. | Q53: Vanne équilibr. | R53: Panneau (ou ligne) | U53: PdC lue sur diag. | V53: Longueur total ligne
A54: ="Régime d'eau : "&R44&"/"&R45&" > Tmoy = "&((R44+R45)/2)&"°C" -> Régime d'eau : 80/60 > Tmoy = 70°C | K54: =+IF(D54<>0,IF(J54<>0,ROUND(VLOOKUP(C54,Données!$A$4:$J$41,2,FALSE)*POWER(AVERAGE($R$44:$R$45)-J54,VLOOKUP(C54,Données!$A$4:$J$41,3,FALSE)),0)*D54+ROUND(VLOOKUP(C54,Données!$A$4:$J$41,4,FALSE)*POWER(AVERAGE($R$44:$R$45)-J54,VLOOKUP(C54,Données!$A$4:$J$41,5,FALSE)),0)*2,""),"") ->  | N54: =+IF(C54="","",IF(F54="D",VLOOKUP(C54,$Y$5:$AA$16,3,FALSE),IF(F54="B",VLOOKUP(C54,$Y$30:$AA$38,3,FALSE),""))) ->  | Q54: =IF(C54="","",IF($R$48="OUI",IF(M54<1150,15,23))) ->  | S54: =IF(OR(L54="",F54="D+D"),"",IF(M54<N54,L54*0.95,L54)) -> 
S55: =IF(OR(L55="",F55="D+D"),"",IF(M55<N55,L55*0.95,L55)) ->  | Z55: DS18-3-030B | AA55: DS18-3-060B | AB55: DS18-3-090B | AC55: DS18-3-120B | AD55: DS18-3-150B | AE55: DS18-4-030B | AF55: DS18-4-060B | AG55: DS18-4-090B | AH55: DS18-4-120B | AI55: DS18-3-030D | AJ55: DS18-3-060D | AK55: DS18-3-090D | AL55: DS18-3-120D | AM55: DS18-3-150D | AN55: DS18-4-030D | AO55: DS18-4-060D | AP55: DS18-4-090D | AQ55: DS18-4-120D | AR55: DS18-3-030D+D | AS55: DS18-3-060D+D | AT55: DS18-3-090D+D | AU55: DS18-3-120D+D | AV55: DS18-3-150D+D | AW55: DS18-4-030D+D | AX55: DS18-4-060D+D | AY55: DS18-4-090D+D | AZ55: DS18-4-120D+D | BA55: 1 | BC55: Puissance en D+D | BE55: Pdc D+D
E56: =IF(D56=0,"",VLOOKUP(C56&"-"&IF(D56<4,4,IF(D56>18,18,EVEN(D56))),$O$168:$P$239,2,FALSE)) ->  | F56: =IF(C56<>0,"D"," ") ->  | G56: =IF(C56=0,"",IF(C56<>0,IF(I56<>"OUI",W56,IF(I56="OUI",W56+X56,"")))) ->  | H56: =IF(C56=0,"",IF(C56<>0,VLOOKUP(C56,$Y$5:$AE$16,7,FALSE),"")) ->  | I56: =+IF(NOT(ISBLANK($C56)),"NON","") ->  | K56: =+IF(D56<>0,IF(J56<>0,ROUND(VLOOKUP(C56,Données!$A$4:$J$41,2,FALSE)*POWER(AVERAGE($R$44:$R$45)-J56,VLOOKUP(C56,Données!$A$4:$J$41,3,FALSE)),0)*D56+ROUND(VLOOKUP(C56,Données!$A$4:$J$41,4,FALSE)*POWER(AVERAGE($R$44:$R$45)-J56,VLOOKUP(C56,Données!$A$4:$J$41,5,FALSE)),0)*2,""),"") ->  | L56: =+IF(C56="","",IF(F55="D+D",BC56,K56*B56)) ->  | M56: =IF(C56="","",IF(L56=" "," ",L56/1.16/($R$44-$R$45))) ->  | N56: =+IF(C56="","",IF(F56="D",VLOOKUP(C56,$Y$5:$AA$16,3,FALSE),IF(F56="B",VLOOKUP(C56,$Y$30:$AA$38,3,FALSE),IF(F56="D+D",VLOOKUP(C56,$Y$5:$AA$16,3,FALSE),"")))) ->  | O56: =IF(P56="","",IF(P56="3/4''",ROUND(M56/55,1),IF(P56="1''",ROUND(M56/105,1),IF(P56="1'' 1/4",ROUND(0.0006*M56^1.2613,1),"")))) ->  | P56: =IF(C56="","",IF($R$48="OUI",IF(M56<550,"3/4''",IF(M56<1050,"1''",IF(M56<2151,"1'' 1/4","débit ++"))),IF(M56<320,"1/2''",IF(M56<650,"3/4''",IF(M56<1200,"1''",IF(M56<2151,"1'' 1/4","débit trop élevé")))))) ->  | Q56: =IF(C56="","",IF($R$48="OUI",IF(M56<551,15,IF(M56<1101,18,25)))) ->  | R56: =IF(B56="",0,IF(F55="D+D",BE56,IF(L56="",0,U56))) -> 0 | U56: =IF(OR(C56="",H56="-"),0,ROUNDUP(HLOOKUP(C56&F56,$Z$55:$AZ$164,BA56,FALSE),2)) -> 0 | V56: =IF(F55="D+D",D56*B56+V55,B56*D56) -> 0 | W56: =+IF(C56="","",D56*VLOOKUP(C56,$Y$5:$AC$27,4,FALSE)+VLOOKUP(C56,$Y$5:$AC$27,5,FALSE)) ->  | X56: =+IF(C56="","",VLOOKUP(C56,$Y$5:$AD$27,6,FALSE)*D56) ->  | Y56: =+$V$3*(D56*B56)/1000 -> 0 | Z56: =(0.001*M56^1.8155)*Y56 ->  | AA56: =(0.00007*M56^1.9823)*Y56 ->  | AB56: =(0.00009*M56^1.857)*Y56 ->  | AC56: =(0.00005*M56^1.8638)*Y56 ->  | AD56: =(0.00008*M56^1.7517)*Y56 ->  | AE56: =(0.0003*M56^1.9011)*Y56 ->  | AF56: =(0.0001*M56^1.8431)*Y56 ->  | AG56: =(0.00005*M56^1.8638)*Y56 ->  | AH56: =(0.00008*M56^1.7357)*Y56 ->  | AI56: =+(0.0057*M56^1.8927)*Y56 ->  | AJ56: =+(0.0017*M56^1.8272)*Y56 ->  | AK56: =+(0.0009*M56^1.817)*Y56 ->  | AL56: =+(0.0004*M56^1.8646)*Y56 ->  | AM56: =+(0.0002*M56^1.881)*Y56 ->  | AN56: =+(0.0033*M56^1.8334)*Y56 ->  | AO56: =+(0.0011*M56^1.8159)*Y56 ->  | AP56: =+(0.0004*M56^1.8646)*Y56 ->  | AQ56: =+(0.0003*M56^1.8288)*Y56 ->  | AR56: =+AI56 ->  | AX56: =+AM56 ->  | AY56: =+AP56 ->  | AZ56: =+AQ56 ->  | BA56: 2 | BC56: =+IF(F55="D+D",BC55+BD56,BD56) -> 0 | BD56: =IF(D56<>0,B56*K56,0) -> 0 | BE56: =+IF(F55="D+D",BE55+BF56,BF56) -> 0 | BF56: =IF(D56<>0,U56,0) -> 0
H57: =IF(C57=0,"",IF(C57<>0,VLOOKUP(C57,$Y$5:$AE$27,7,FALSE),"")) ->  | K57: =+IF(D57<>0,IF(J57<>0,ROUND(VLOOKUP(C57,Données!$A$4:$J$41,2,FALSE)*POWER(AVERAGE($R$44:$R$45)-J57,VLOOKUP(C57,Données!$A$4:$J$41,3,FALSE)),0)*D57+ROUND(VLOOKUP(C57,Données!$A$4:$J$41,4,FALSE)*POWER(AVERAGE($R$44:$R$45)-J57,VLOOKUP(C57,Données!$A$4:$J$41,5,FALSE)),0)*2,""),"") ->  | M57: =IF(C57="","",IF(L57=" "," ",L57/1.16/($R$44-$R$45))) ->  | N57: =+IF(C57="","",IF(F57="D",VLOOKUP(C57,$Y$5:$AA$27,3,FALSE),IF(F57="B",VLOOKUP(C57,$Y$30:$AA$49,3,FALSE),IF(F57="D+D",VLOOKUP(C57,$Y$5:$AA$27,3,FALSE),"")))) ->  | O57: =IF(P57="","",IF(P57="3/4''",ROUND(M57/55,1),IF(P57="1''",ROUND(M57/105,1),IF(P57="1'' 1/4",ROUND(0.0006*M57^1.2613,1),"")))) ->  | P57: =IF(C57="","",IF($R$48="OUI",IF(M57<550,"3/4''",IF(M57<1050,"1''",IF(M57<2151,"1'' 1/4","débit ++"))),IF(M57<320,"1/2''",IF(M57<650,"3/4''",IF(M57<1200,"1''",IF(M57<2151,"1'' 1/4","débit trop élevé")))))) ->  | Q57: =IF(C57="","",IF($R$48="OUI",IF(M57<551,15,IF(M57<1101,18,25)))) ->  | R57: =IF(B57="",0,IF(F56="D+D",BE57,IF(L57="",0,U57))) -> 0 | U57: =IF(OR(C57="",H57="-"),0,ROUNDUP(HLOOKUP(C57&F57,$Z$55:$AZ$164,BA57,FALSE),2)) -> 0 | V57: 0 | W57: =+IF(C57="","",D57*VLOOKUP(C57,$Y$5:$AC$27,4,FALSE)+VLOOKUP(C57,$Y$5:$AC$27,5,FALSE)) ->  | X57: =+IF(C57="","",VLOOKUP(C57,$Y$5:$AD$27,6,FALSE)*D57) ->  | Y57: 0 | AX57: =+AM57 ->  | AY57: =+AP57 ->  | AZ57: =+AQ57 ->  | BA57: 3 | BC57: 0 | BD57: 0 | BE57: 0 | BF57: 0
G58: =IF(C58=0,"",IF(C58<>0,IF(I58<>"OUI",W58,IF(I58="OUI",W58+X58,"")))) ->  | H58: =IF(C58=0,"",IF(C58<>0,VLOOKUP(C58,$Y$5:$AE$27,7,FALSE),"")) ->  | K58: =+IF(D58<>0,IF(J58<>0,ROUND(VLOOKUP(C58,Données!$A$4:$J$41,2,FALSE)*POWER(AVERAGE($R$44:$R$45)-J58,VLOOKUP(C58,Données!$A$4:$J$41,3,FALSE)),0)*D58+ROUND(VLOOKUP(C58,Données!$A$4:$J$41,4,FALSE)*POWER(AVERAGE($R$44:$R$45)-J58,VLOOKUP(C58,Données!$A$4:$J$41,5,FALSE)),0)*2,""),"") ->  | L58: =+IF(C58="","",IF(F57="D+D",BC58,K58*B58)) ->  | M58: =IF(C58="","",IF(L58=" "," ",L58/1.16/($R$44-$R$45))) ->  | N58: =+IF(C58="","",IF(F58="D",VLOOKUP(C58,$Y$5:$AA$27,3,FALSE),IF(F58="B",VLOOKUP(C58,$Y$30:$AA$49,3,FALSE),IF(F58="D+D",VLOOKUP(C58,$Y$5:$AA$27,3,FALSE),"")))) ->  | R58: 0 | U58: =IF(OR(C58="",H58="-"),0,ROUNDUP(HLOOKUP(C58&F58,$Z$55:$AZ$164,BA58,FALSE),2)) -> 0 | V58: 0 | W58: =+IF(C58="","",D58*VLOOKUP(C58,$Y$5:$AC$27,4,FALSE)+VLOOKUP(C58,$Y$5:$AC$27,5,FALSE)) ->  | X58: =+IF(C58="","",VLOOKUP(C58,$Y$5:$AD$27,6,FALSE)*D58) ->  | Y58: 0 | AR58: =+AI58 ->  | AS58: =+AJ58 ->  | AT58: =+AK58 ->  | AU58: =+AL58 ->  | AV58: =+AM58 ->  | AW58: =+AN58 ->  | AX58: =+AM58 ->  | AY58: =+AP58 ->  | AZ58: =+AQ58 ->  | BA58: 4 | BC58: 0 | BD58: 0 | BE58: 0 | BF58: 0
K59: =+IF(D59<>0,IF(J59<>0,ROUND(VLOOKUP(C59,Données!$A$4:$J$41,2,FALSE)*POWER(AVERAGE($R$44:$R$45)-J59,VLOOKUP(C59,Données!$A$4:$J$41,3,FALSE)),0)*D59+ROUND(VLOOKUP(C59,Données!$A$4:$J$41,4,FALSE)*POWER(AVERAGE($R$44:$R$45)-J59,VLOOKUP(C59,Données!$A$4:$J$41,5,FALSE)),0)*2,""),"") ->  | R59: 0 | U59: 0 | V59: 0 | Y59: 0 | BA59: 5 | BC59: 0 | BD59: 0 | BE59: 0 | BF59: 0
K60: =+IF(D60<>0,IF(J60<>0,ROUND(VLOOKUP(C60,Données!$A$4:$J$41,2,FALSE)*POWER(AVERAGE($R$44:$R$45)-J60,VLOOKUP(C60,Données!$A$4:$J$41,3,FALSE)),0)*D60+ROUND(VLOOKUP(C60,Données!$A$4:$J$41,4,FALSE)*POWER(AVERAGE($R$44:$R$45)-J60,VLOOKUP(C60,Données!$A$4:$J$41,5,FALSE)),0)*2,""),"") ->  | R60: 0 | U60: 0 | V60: 0 | Y60: 0 | BA60: 6 | BC60: 0 | BD60: 0 | BE60: 0 | BF60: 0
K61: =+IF(D61<>0,IF(J61<>0,ROUND(VLOOKUP(C61,Données!$A$4:$J$41,2,FALSE)*POWER(AVERAGE($R$44:$R$45)-J61,VLOOKUP(C61,Données!$A$4:$J$41,3,FALSE)),0)*D61+ROUND(VLOOKUP(C61,Données!$A$4:$J$41,4,FALSE)*POWER(AVERAGE($R$44:$R$45)-J61,VLOOKUP(C61,Données!$A$4:$J$41,5,FALSE)),0)*2,""),"") ->  | R61: 0 | U61: 0 | V61: 0 | Y61: 0 | BA61: 7 | BC61: 0 | BD61: 0 | BE61: 0 | BF61: 0
K62: =+IF(D62<>0,IF(J62<>0,ROUND(VLOOKUP(C62,Données!$A$4:$J$41,2,FALSE)*POWER(AVERAGE($R$44:$R$45)-J62,VLOOKUP(C62,Données!$A$4:$J$41,3,FALSE)),0)*D62+ROUND(VLOOKUP(C62,Données!$A$4:$J$41,4,FALSE)*POWER(AVERAGE($R$44:$R$45)-J62,VLOOKUP(C62,Données!$A$4:$J$41,5,FALSE)),0)*2,""),"") ->  | R62: 0 | U62: 0 | V62: 0 | Y62: 0 | BA62: 8 | BC62: 0 | BD62: 0 | BE62: 0 | BF62: 0
K63: =+IF(D63<>0,IF(J63<>0,ROUND(VLOOKUP(C63,Données!$A$4:$J$41,2,FALSE)*POWER(AVERAGE($R$44:$R$45)-J63,VLOOKUP(C63,Données!$A$4:$J$41,3,FALSE)),0)*D63+ROUND(VLOOKUP(C63,Données!$A$4:$J$41,4,FALSE)*POWER(AVERAGE($R$44:$R$45)-J63,VLOOKUP(C63,Données!$A$4:$J$41,5,FALSE)),0)*2,""),"") ->  | R63: 0 | U63: 0 | V63: 0 | Y63: 0 | BA63: 9 | BC63: 0 | BD63: 0 | BE63: 0 | BF63: 0
K64: =+IF(D64<>0,IF(J64<>0,ROUND(VLOOKUP(C64,Données!$A$4:$J$41,2,FALSE)*POWER(AVERAGE($R$44:$R$45)-J64,VLOOKUP(C64,Données!$A$4:$J$41,3,FALSE)),0)*D64+ROUND(VLOOKUP(C64,Données!$A$4:$J$41,4,FALSE)*POWER(AVERAGE($R$44:$R$45)-J64,VLOOKUP(C64,Données!$A$4:$J$41,5,FALSE)),0)*2,""),"") ->  | R64: 0 | U64: 0 | V64: 0 | Y64: 0 | BA64: 10 | BC64: 0 | BD64: 0 | BE64: 0 | BF64: 0
K65: =+IF(D65<>0,IF(J65<>0,ROUND(VLOOKUP(C65,Données!$A$4:$J$41,2,FALSE)*POWER(AVERAGE($R$44:$R$45)-J65,VLOOKUP(C65,Données!$A$4:$J$41,3,FALSE)),0)*D65+ROUND(VLOOKUP(C65,Données!$A$4:$J$41,4,FALSE)*POWER(AVERAGE($R$44:$R$45)-J65,VLOOKUP(C65,Données!$A$4:$J$41,5,FALSE)),0)*2,""),"") ->  | R65: 0 | U65: 0 | V65: 0 | Y65: 0 | BA65: 11 | BC65: 0 | BD65: 0 | BE65: 0 | BF65: 0
K66: =+IF(D66<>0,IF(J66<>0,ROUND(VLOOKUP(C66,Données!$A$4:$J$41,2,FALSE)*POWER(AVERAGE($R$44:$R$45)-J66,VLOOKUP(C66,Données!$A$4:$J$41,3,FALSE)),0)*D66+ROUND(VLOOKUP(C66,Données!$A$4:$J$41,4,FALSE)*POWER(AVERAGE($R$44:$R$45)-J66,VLOOKUP(C66,Données!$A$4:$J$41,5,FALSE)),0)*2,""),"") ->  | R66: 0 | U66: 0 | V66: 0 | Y66: 0 | BA66: 12 | BC66: 0 | BD66: 0 | BE66: 0 | BF66: 0
K67: =+IF(D67<>0,IF(J67<>0,ROUND(VLOOKUP(C67,Données!$A$4:$J$41,2,FALSE)*POWER(AVERAGE($R$44:$R$45)-J67,VLOOKUP(C67,Données!$A$4:$J$41,3,FALSE)),0)*D67+ROUND(VLOOKUP(C67,Données!$A$4:$J$41,4,FALSE)*POWER(AVERAGE($R$44:$R$45)-J67,VLOOKUP(C67,Données!$A$4:$J$41,5,FALSE)),0)*2,""),"") ->  | R67: 0 | U67: 0 | V67: 0 | Y67: 0 | BA67: 13 | BC67: 0 | BD67: 0 | BE67: 0 | BF67: 0
K68: =+IF(D68<>0,IF(J68<>0,ROUND(VLOOKUP(C68,Données!$A$4:$J$41,2,FALSE)*POWER(AVERAGE($R$44:$R$45)-J68,VLOOKUP(C68,Données!$A$4:$J$41,3,FALSE)),0)*D68+ROUND(VLOOKUP(C68,Données!$A$4:$J$41,4,FALSE)*POWER(AVERAGE($R$44:$R$45)-J68,VLOOKUP(C68,Données!$A$4:$J$41,5,FALSE)),0)*2,""),"") ->  | R68: 0 | U68: 0 | V68: 0 | Y68: 0 | BA68: 14 | BC68: 0 | BD68: 0 | BE68: 0 | BF68: 0
K69: =+IF(D69<>0,IF(J69<>0,ROUND(VLOOKUP(C69,Données!$A$4:$J$41,2,FALSE)*POWER(AVERAGE($R$44:$R$45)-J69,VLOOKUP(C69,Données!$A$4:$J$41,3,FALSE)),0)*D69+ROUND(VLOOKUP(C69,Données!$A$4:$J$41,4,FALSE)*POWER(AVERAGE($R$44:$R$45)-J69,VLOOKUP(C69,Données!$A$4:$J$41,5,FALSE)),0)*2,""),"") ->  | R69: 0 | U69: 0 | V69: 0 | Y69: 0 | BA69: 15 | BC69: 0 | BD69: 0 | BE69: 0 | BF69: 0
K70: =+IF(D70<>0,IF(J70<>0,ROUND(VLOOKUP(C70,Données!$A$4:$J$41,2,FALSE)*POWER(AVERAGE($R$44:$R$45)-J70,VLOOKUP(C70,Données!$A$4:$J$41,3,FALSE)),0)*D70+ROUND(VLOOKUP(C70,Données!$A$4:$J$41,4,FALSE)*POWER(AVERAGE($R$44:$R$45)-J70,VLOOKUP(C70,Données!$A$4:$J$41,5,FALSE)),0)*2,""),"") ->  | R70: 0 | U70: 0 | V70: 0 | Y70: 0 | BA70: 16 | BC70: 0 | BD70: 0 | BE70: 0 | BF70: 0
K71: =+IF(D71<>0,IF(J71<>0,ROUND(VLOOKUP(C71,Données!$A$4:$J$41,2,FALSE)*POWER(AVERAGE($R$44:$R$45)-J71,VLOOKUP(C71,Données!$A$4:$J$41,3,FALSE)),0)*D71+ROUND(VLOOKUP(C71,Données!$A$4:$J$41,4,FALSE)*POWER(AVERAGE($R$44:$R$45)-J71,VLOOKUP(C71,Données!$A$4:$J$41,5,FALSE)),0)*2,""),"") ->  | R71: 0 | U71: 0 | V71: 0 | Y71: 0 | BA71: 17 | BC71: 0 | BD71: 0 | BE71: 0 | BF71: 0
K72: =+IF(D72<>0,IF(J72<>0,ROUND(VLOOKUP(C72,Données!$A$4:$J$41,2,FALSE)*POWER(AVERAGE($R$44:$R$45)-J72,VLOOKUP(C72,Données!$A$4:$J$41,3,FALSE)),0)*D72+ROUND(VLOOKUP(C72,Données!$A$4:$J$41,4,FALSE)*POWER(AVERAGE($R$44:$R$45)-J72,VLOOKUP(C72,Données!$A$4:$J$41,5,FALSE)),0)*2,""),"") ->  | R72: 0 | U72: 0 | V72: 0 | Y72: 0 | BA72: 18 | BC72: 0 | BD72: 0 | BE72: 0 | BF72: 0
K73: =+IF(D73<>0,IF(J73<>0,ROUND(VLOOKUP(C73,Données!$A$4:$J$41,2,FALSE)*POWER(AVERAGE($R$44:$R$45)-J73,VLOOKUP(C73,Données!$A$4:$J$41,3,FALSE)),0)*D73+ROUND(VLOOKUP(C73,Données!$A$4:$J$41,4,FALSE)*POWER(AVERAGE($R$44:$R$45)-J73,VLOOKUP(C73,Données!$A$4:$J$41,5,FALSE)),0)*2,""),"") ->  | R73: 0 | U73: 0 | V73: 0 | Y73: 0 | BA73: 19 | BC73: 0 | BD73: 0 | BE73: 0 | BF73: 0
K74: =+IF(D74<>0,IF(J74<>0,ROUND(VLOOKUP(C74,Données!$A$4:$J$41,2,FALSE)*POWER(AVERAGE($R$44:$R$45)-J74,VLOOKUP(C74,Données!$A$4:$J$41,3,FALSE)),0)*D74+ROUND(VLOOKUP(C74,Données!$A$4:$J$41,4,FALSE)*POWER(AVERAGE($R$44:$R$45)-J74,VLOOKUP(C74,Données!$A$4:$J$41,5,FALSE)),0)*2,""),"") ->  | R74: 0 | U74: 0 | V74: 0 | Y74: 0 | BA74: 20 | BC74: 0 | BD74: 0 | BE74: 0 | BF74: 0
K75: =+IF(D75<>0,IF(J75<>0,ROUND(VLOOKUP(C75,Données!$A$4:$J$41,2,FALSE)*POWER(AVERAGE($R$44:$R$45)-J75,VLOOKUP(C75,Données!$A$4:$J$41,3,FALSE)),0)*D75+ROUND(VLOOKUP(C75,Données!$A$4:$J$41,4,FALSE)*POWER(AVERAGE($R$44:$R$45)-J75,VLOOKUP(C75,Données!$A$4:$J$41,5,FALSE)),0)*2,""),"") ->  | R75: 0 | U75: 0 | V75: 0 | Y75: 0 | BA75: 21 | BC75: 0 | BD75: 0 | BE75: 0 | BF75: 0
K76: =+IF(D76<>0,IF(J76<>0,ROUND(VLOOKUP(C76,Données!$A$4:$J$41,2,FALSE)*POWER(AVERAGE($R$44:$R$45)-J76,VLOOKUP(C76,Données!$A$4:$J$41,3,FALSE)),0)*D76+ROUND(VLOOKUP(C76,Données!$A$4:$J$41,4,FALSE)*POWER(AVERAGE($R$44:$R$45)-J76,VLOOKUP(C76,Données!$A$4:$J$41,5,FALSE)),0)*2,""),"") ->  | R76: 0 | U76: 0 | V76: 0 | Y76: 0 | BA76: 22 | BC76: 0 | BD76: 0 | BE76: 0 | BF76: 0
K77: =+IF(D77<>0,IF(J77<>0,ROUND(VLOOKUP(C77,Données!$A$4:$J$41,2,FALSE)*POWER(AVERAGE($R$44:$R$45)-J77,VLOOKUP(C77,Données!$A$4:$J$41,3,FALSE)),0)*D77+ROUND(VLOOKUP(C77,Données!$A$4:$J$41,4,FALSE)*POWER(AVERAGE($R$44:$R$45)-J77,VLOOKUP(C77,Données!$A$4:$J$41,5,FALSE)),0)*2,""),"") ->  | R77: 0 | U77: 0 | V77: 0 | Y77: 0 | BA77: 23 | BC77: 0 | BD77: 0 | BE77: 0 | BF77: 0
K78: =+IF(D78<>0,IF(J78<>0,ROUND(VLOOKUP(C78,Données!$A$4:$J$41,2,FALSE)*POWER(AVERAGE($R$44:$R$45)-J78,VLOOKUP(C78,Données!$A$4:$J$41,3,FALSE)),0)*D78+ROUND(VLOOKUP(C78,Données!$A$4:$J$41,4,FALSE)*POWER(AVERAGE($R$44:$R$45)-J78,VLOOKUP(C78,Données!$A$4:$J$41,5,FALSE)),0)*2,""),"") ->  | R78: 0 | U78: 0 | V78: 0 | W78: =+IF(C78="","",D78*VLOOKUP(C78,$Y$5:$AC$27,4,FALSE)+VLOOKUP(C78,$Y$5:$AC$27,5,FALSE)) ->  | X78: =+IF(C78="","",VLOOKUP(C78,$Y$5:$AD$27,6,FALSE)*D78) ->  | Y78: 0 | BA78: 24 | BC78: 0 | BD78: 0 | BE78: 0 | BF78: 0
K79: =+IF(D79<>0,IF(J79<>0,ROUND(VLOOKUP(C79,Données!$A$4:$J$41,2,FALSE)*POWER(AVERAGE($R$44:$R$45)-J79,VLOOKUP(C79,Données!$A$4:$J$41,3,FALSE)),0)*D79+ROUND(VLOOKUP(C79,Données!$A$4:$J$41,4,FALSE)*POWER(AVERAGE($R$44:$R$45)-J79,VLOOKUP(C79,Données!$A$4:$J$41,5,FALSE)),0)*2,""),"") ->  | R79: 0 | U79: 0 | V79: 0 | Y79: 0 | BA79: 25 | BC79: 0 | BD79: 0 | BE79: 0 | BF79: 0
K80: =+IF(D80<>0,IF(J80<>0,ROUND(VLOOKUP(C80,Données!$A$4:$J$41,2,FALSE)*POWER(AVERAGE($R$44:$R$45)-J80,VLOOKUP(C80,Données!$A$4:$J$41,3,FALSE)),0)*D80+ROUND(VLOOKUP(C80,Données!$A$4:$J$41,4,FALSE)*POWER(AVERAGE($R$44:$R$45)-J80,VLOOKUP(C80,Données!$A$4:$J$41,5,FALSE)),0)*2,""),"") ->  | R80: 0 | U80: 0 | V80: 0 | Y80: 0 | BA80: 26 | BC80: 0 | BD80: 0 | BE80: 0 | BF80: 0
K81: =+IF(D81<>0,IF(J81<>0,ROUND(VLOOKUP(C81,Données!$A$4:$J$41,2,FALSE)*POWER(AVERAGE($R$44:$R$45)-J81,VLOOKUP(C81,Données!$A$4:$J$41,3,FALSE)),0)*D81+ROUND(VLOOKUP(C81,Données!$A$4:$J$41,4,FALSE)*POWER(AVERAGE($R$44:$R$45)-J81,VLOOKUP(C81,Données!$A$4:$J$41,5,FALSE)),0)*2,""),"") ->  | R81: 0 | U81: 0 | V81: 0 | Y81: 0 | BA81: 27 | BC81: 0 | BD81: 0 | BE81: 0 | BF81: 0
K82: =+IF(D82<>0,IF(J82<>0,ROUND(VLOOKUP(C82,Données!$A$4:$J$41,2,FALSE)*POWER(AVERAGE($R$44:$R$45)-J82,VLOOKUP(C82,Données!$A$4:$J$41,3,FALSE)),0)*D82+ROUND(VLOOKUP(C82,Données!$A$4:$J$41,4,FALSE)*POWER(AVERAGE($R$44:$R$45)-J82,VLOOKUP(C82,Données!$A$4:$J$41,5,FALSE)),0)*2,""),"") ->  | R82: 0 | U82: 0 | V82: 0 | Y82: 0 | BA82: 28 | BC82: 0 | BD82: 0 | BE82: 0 | BF82: 0
K83: =+IF(D83<>0,IF(J83<>0,ROUND(VLOOKUP(C83,Données!$A$4:$J$41,2,FALSE)*POWER(AVERAGE($R$44:$R$45)-J83,VLOOKUP(C83,Données!$A$4:$J$41,3,FALSE)),0)*D83+ROUND(VLOOKUP(C83,Données!$A$4:$J$41,4,FALSE)*POWER(AVERAGE($R$44:$R$45)-J83,VLOOKUP(C83,Données!$A$4:$J$41,5,FALSE)),0)*2,""),"") ->  | R83: 0 | U83: 0 | V83: 0 | Y83: 0 | BA83: 29 | BC83: 0 | BD83: 0 | BE83: 0 | BF83: 0
K84: =+IF(D84<>0,IF(J84<>0,ROUND(VLOOKUP(C84,Données!$A$4:$J$41,2,FALSE)*POWER(AVERAGE($R$44:$R$45)-J84,VLOOKUP(C84,Données!$A$4:$J$41,3,FALSE)),0)*D84+ROUND(VLOOKUP(C84,Données!$A$4:$J$41,4,FALSE)*POWER(AVERAGE($R$44:$R$45)-J84,VLOOKUP(C84,Données!$A$4:$J$41,5,FALSE)),0)*2,""),"") ->  | R84: 0 | U84: 0 | V84: 0 | Y84: 0 | BA84: 30 | BC84: 0 | BD84: 0 | BE84: 0 | BF84: 0
K85: =+IF(D85<>0,IF(J85<>0,ROUND(VLOOKUP(C85,Données!$A$4:$J$41,2,FALSE)*POWER(AVERAGE($R$44:$R$45)-J85,VLOOKUP(C85,Données!$A$4:$J$41,3,FALSE)),0)*D85+ROUND(VLOOKUP(C85,Données!$A$4:$J$41,4,FALSE)*POWER(AVERAGE($R$44:$R$45)-J85,VLOOKUP(C85,Données!$A$4:$J$41,5,FALSE)),0)*2,""),"") ->  | R85: 0 | U85: 0 | V85: 0 | Y85: 0 | BA85: 31 | BC85: 0 | BD85: 0 | BE85: 0 | BF85: 0
K86: =+IF(D86<>0,IF(J86<>0,ROUND(VLOOKUP(C86,Données!$A$4:$J$41,2,FALSE)*POWER(AVERAGE($R$44:$R$45)-J86,VLOOKUP(C86,Données!$A$4:$J$41,3,FALSE)),0)*D86+ROUND(VLOOKUP(C86,Données!$A$4:$J$41,4,FALSE)*POWER(AVERAGE($R$44:$R$45)-J86,VLOOKUP(C86,Données!$A$4:$J$41,5,FALSE)),0)*2,""),"") ->  | R86: 0 | U86: 0 | V86: 0 | Y86: 0 | BA86: 32 | BC86: 0 | BD86: 0 | BE86: 0 | BF86: 0
K87: =+IF(D87<>0,IF(J87<>0,ROUND(VLOOKUP(C87,Données!$A$4:$J$41,2,FALSE)*POWER(AVERAGE($R$44:$R$45)-J87,VLOOKUP(C87,Données!$A$4:$J$41,3,FALSE)),0)*D87+ROUND(VLOOKUP(C87,Données!$A$4:$J$41,4,FALSE)*POWER(AVERAGE($R$44:$R$45)-J87,VLOOKUP(C87,Données!$A$4:$J$41,5,FALSE)),0)*2,""),"") ->  | R87: 0 | U87: 0 | V87: 0 | Y87: 0 | BA87: 33 | BC87: 0 | BD87: 0 | BE87: 0 | BF87: 0
E88: =IF(D88=0,"",VLOOKUP(C88&"-"&IF(D88<4,4,IF(D88>18,18,EVEN(D88))),$O$168:$P$239,2,FALSE)) ->  | K88: =+IF(D88<>0,IF(J88<>0,ROUND(VLOOKUP(C88,Données!$A$4:$J$41,2,FALSE)*POWER(AVERAGE($R$44:$R$45)-J88,VLOOKUP(C88,Données!$A$4:$J$41,3,FALSE)),0)*D88+ROUND(VLOOKUP(C88,Données!$A$4:$J$41,4,FALSE)*POWER(AVERAGE($R$44:$R$45)-J88,VLOOKUP(C88,Données!$A$4:$J$41,5,FALSE)),0)*2,""),"") ->  | R88: 0 | U88: 0 | V88: =IF(F87="D+D",D88*B88+V87,B88*D88) -> 0 | Y88: =+$V$3*(D88*B88)/1000 -> 0 | Z88: =(0.001*M88^1.8155)*Y88 ->  | AA88: =(0.00007*M88^1.9823)*Y88 ->  | AB88: =(0.00009*M88^1.857)*Y88 ->  | AC88: =(0.00005*M88^1.8638)*Y88 ->  | AD88: =(0.00008*M88^1.7517)*Y88 ->  | AE88: =(0.0003*M88^1.9011)*Y88 ->  | AF88: =(0.0001*M88^1.8431)*Y88 ->  | AG88: =(0.00005*M88^1.8638)*Y88 ->  | AH88: =(0.00008*M88^1.7357)*Y88 ->  | AI88: =+(0.0057*M88^1.8927)*Y88 ->  | AJ88: =+(0.0017*M88^1.8272)*Y88 ->  | AK88: =+(0.0009*M88^1.817)*Y88 ->  | AL88: =+(0.0004*M88^1.8646)*Y88 ->  | AM88: =+(0.0002*M88^1.881)*Y88 ->  | AN88: =+(0.0033*M88^1.8334)*Y88 ->  | AO88: =+(0.0011*M88^1.8159)*Y88 ->  | AP88: =+(0.0004*M88^1.8646)*Y88 ->  | AQ88: =+(0.0003*M88^1.8288)*Y88 ->  | BA88: 34 | BC88: =+IF(F87="D+D",BC87+BD88,BD88) -> 0 | BD88: =IF(D88<>0,B88*K88,0) -> 0 | BE88: =+IF(F87="D+D",BE87+BF88,BF88) -> 0 | BF88: =IF(D88<>0,U88,0) -> 0
F89: =IF(C89<>0,"D"," ") ->  | K89: =+IF(D89<>0,IF(J89<>0,ROUND(VLOOKUP(C89,Données!$A$4:$J$41,2,FALSE)*POWER(AVERAGE($R$44:$R$45)-J89,VLOOKUP(C89,Données!$A$4:$J$41,3,FALSE)),0)*D89+ROUND(VLOOKUP(C89,Données!$A$4:$J$41,4,FALSE)*POWER(AVERAGE($R$44:$R$45)-J89,VLOOKUP(C89,Données!$A$4:$J$41,5,FALSE)),0)*2,""),"") ->  | R89: 0 | U89: 0 | V89: 0 | Y89: 0 | BA89: 35 | BC89: 0 | BD89: 0 | BE89: 0 | BF89: 0
F90: =IF(C90<>0,"D"," ") ->  | K90: =+IF(D90<>0,IF(J90<>0,ROUND(VLOOKUP(C90,Données!$A$4:$J$41,2,FALSE)*POWER(AVERAGE($R$44:$R$45)-J90,VLOOKUP(C90,Données!$A$4:$J$41,3,FALSE)),0)*D90+ROUND(VLOOKUP(C90,Données!$A$4:$J$41,4,FALSE)*POWER(AVERAGE($R$44:$R$45)-J90,VLOOKUP(C90,Données!$A$4:$J$41,5,FALSE)),0)*2,""),"") ->  | R90: 0 | U90: 0 | V90: 0 | Y90: 0 | BA90: 36 | BC90: 0 | BD90: 0 | BE90: 0 | BF90: 0
F91: =IF(C91<>0,"D"," ") ->  | K91: =+IF(D91<>0,IF(J91<>0,ROUND(VLOOKUP(C91,Données!$A$4:$J$41,2,FALSE)*POWER(AVERAGE($R$44:$R$45)-J91,VLOOKUP(C91,Données!$A$4:$J$41,3,FALSE)),0)*D91+ROUND(VLOOKUP(C91,Données!$A$4:$J$41,4,FALSE)*POWER(AVERAGE($R$44:$R$45)-J91,VLOOKUP(C91,Données!$A$4:$J$41,5,FALSE)),0)*2,""),"") ->  | R91: 0 | U91: 0 | V91: 0 | Y91: 0 | BA91: 37 | BC91: 0 | BD91: 0 | BE91: 0 | BF91: 0
F92: =IF(C92<>0,"D"," ") ->  | K92: =+IF(D92<>0,IF(J92<>0,ROUND(VLOOKUP(C92,Données!$A$4:$J$41,2,FALSE)*POWER(AVERAGE($R$44:$R$45)-J92,VLOOKUP(C92,Données!$A$4:$J$41,3,FALSE)),0)*D92+ROUND(VLOOKUP(C92,Données!$A$4:$J$41,4,FALSE)*POWER(AVERAGE($R$44:$R$45)-J92,VLOOKUP(C92,Données!$A$4:$J$41,5,FALSE)),0)*2,""),"") ->  | R92: 0 | U92: 0 | V92: 0 | Y92: 0 | BA92: 38 | BC92: 0 | BD92: 0 | BE92: 0 | BF92: 0
K93: =+IF(D93<>0,IF(J93<>0,ROUND(VLOOKUP(C93,Données!$A$4:$J$41,2,FALSE)*POWER(AVERAGE($R$44:$R$45)-J93,VLOOKUP(C93,Données!$A$4:$J$41,3,FALSE)),0)*D93+ROUND(VLOOKUP(C93,Données!$A$4:$J$41,4,FALSE)*POWER(AVERAGE($R$44:$R$45)-J93,VLOOKUP(C93,Données!$A$4:$J$41,5,FALSE)),0)*2,""),"") ->  | R93: 0 | U93: 0 | V93: 0 | Y93: 0 | BA93: 39 | BC93: 0 | BD93: 0 | BE93: 0 | BF93: 0
K94: =+IF(D94<>0,IF(J94<>0,ROUND(VLOOKUP(C94,Données!$A$4:$J$41,2,FALSE)*POWER(AVERAGE($R$44:$R$45)-J94,VLOOKUP(C94,Données!$A$4:$J$41,3,FALSE)),0)*D94+ROUND(VLOOKUP(C94,Données!$A$4:$J$41,4,FALSE)*POWER(AVERAGE($R$44:$R$45)-J94,VLOOKUP(C94,Données!$A$4:$J$41,5,FALSE)),0)*2,""),"") ->  | R94: 0 | U94: 0 | V94: 0 | Y94: 0 | BA94: 40 | BC94: 0 | BD94: 0 | BE94: 0 | BF94: 0
K95: =+IF(D95<>0,IF(J95<>0,ROUND(VLOOKUP(C95,Données!$A$4:$J$41,2,FALSE)*POWER(AVERAGE($R$44:$R$45)-J95,VLOOKUP(C95,Données!$A$4:$J$41,3,FALSE)),0)*D95+ROUND(VLOOKUP(C95,Données!$A$4:$J$41,4,FALSE)*POWER(AVERAGE($R$44:$R$45)-J95,VLOOKUP(C95,Données!$A$4:$J$41,5,FALSE)),0)*2,""),"") ->  | R95: 0 | U95: 0 | V95: 0 | Y95: 0 | BA95: 41 | BC95: 0 | BD95: 0 | BE95: 0 | BF95: 0
K96: =+IF(D96<>0,IF(J96<>0,ROUND(VLOOKUP(C96,Données!$A$4:$J$41,2,FALSE)*POWER(AVERAGE($R$44:$R$45)-J96,VLOOKUP(C96,Données!$A$4:$J$41,3,FALSE)),0)*D96+ROUND(VLOOKUP(C96,Données!$A$4:$J$41,4,FALSE)*POWER(AVERAGE($R$44:$R$45)-J96,VLOOKUP(C96,Données!$A$4:$J$41,5,FALSE)),0)*2,""),"") ->  | R96: 0 | U96: 0 | V96: 0 | Y96: 0 | BA96: 42 | BC96: 0 | BD96: 0 | BE96: 0 | BF96: 0
K97: =+IF(D97<>0,IF(J97<>0,ROUND(VLOOKUP(C97,Données!$A$4:$J$41,2,FALSE)*POWER(AVERAGE($R$44:$R$45)-J97,VLOOKUP(C97,Données!$A$4:$J$41,3,FALSE)),0)*D97+ROUND(VLOOKUP(C97,Données!$A$4:$J$41,4,FALSE)*POWER(AVERAGE($R$44:$R$45)-J97,VLOOKUP(C97,Données!$A$4:$J$41,5,FALSE)),0)*2,""),"") ->  | R97: 0 | U97: 0 | V97: 0 | Y97: 0 | BA97: 43 | BC97: 0 | BD97: 0 | BE97: 0 | BF97: 0
K98: =+IF(D98<>0,IF(J98<>0,ROUND(VLOOKUP(C98,Données!$A$4:$J$41,2,FALSE)*POWER(AVERAGE($R$44:$R$45)-J98,VLOOKUP(C98,Données!$A$4:$J$41,3,FALSE)),0)*D98+ROUND(VLOOKUP(C98,Données!$A$4:$J$41,4,FALSE)*POWER(AVERAGE($R$44:$R$45)-J98,VLOOKUP(C98,Données!$A$4:$J$41,5,FALSE)),0)*2,""),"") ->  | R98: 0 | U98: 0 | V98: 0 | Y98: 0 | BA98: 44 | BC98: 0 | BD98: 0 | BE98: 0 | BF98: 0
K99: =+IF(D99<>0,IF(J99<>0,ROUND(VLOOKUP(C99,Données!$A$4:$J$41,2,FALSE)*POWER(AVERAGE($R$44:$R$45)-J99,VLOOKUP(C99,Données!$A$4:$J$41,3,FALSE)),0)*D99+ROUND(VLOOKUP(C99,Données!$A$4:$J$41,4,FALSE)*POWER(AVERAGE($R$44:$R$45)-J99,VLOOKUP(C99,Données!$A$4:$J$41,5,FALSE)),0)*2,""),"") ->  | R99: 0 | U99: 0 | V99: 0 | Y99: 0 | BA99: 45 | BC99: 0 | BD99: 0 | BE99: 0 | BF99: 0
K100: =+IF(D100<>0,IF(J100<>0,ROUND(VLOOKUP(C100,Données!$A$4:$J$41,2,FALSE)*POWER(AVERAGE($R$44:$R$45)-J100,VLOOKUP(C100,Données!$A$4:$J$41,3,FALSE)),0)*D100+ROUND(VLOOKUP(C100,Données!$A$4:$J$41,4,FALSE)*POWER(AVERAGE($R$44:$R$45)-J100,VLOOKUP(C100,Données!$A$4:$J$41,5,FALSE)),0)*2,""),"") ->  | R100: 0 | U100: 0 | V100: 0 | Y100: 0 | BA100: 46 | BC100: 0 | BD100: 0 | BE100: 0 | BF100: 0
K101: =+IF(D101<>0,IF(J101<>0,ROUND(VLOOKUP(C101,Données!$A$4:$J$41,2,FALSE)*POWER(AVERAGE($R$44:$R$45)-J101,VLOOKUP(C101,Données!$A$4:$J$41,3,FALSE)),0)*D101+ROUND(VLOOKUP(C101,Données!$A$4:$J$41,4,FALSE)*POWER(AVERAGE($R$44:$R$45)-J101,VLOOKUP(C101,Données!$A$4:$J$41,5,FALSE)),0)*2,""),"") ->  | R101: 0 | U101: 0 | V101: 0 | Y101: 0 | BA101: 47 | BC101: 0 | BD101: 0 | BE101: 0 | BF101: 0
K102: =+IF(D102<>0,IF(J102<>0,ROUND(VLOOKUP(C102,Données!$A$4:$J$41,2,FALSE)*POWER(AVERAGE($R$44:$R$45)-J102,VLOOKUP(C102,Données!$A$4:$J$41,3,FALSE)),0)*D102+ROUND(VLOOKUP(C102,Données!$A$4:$J$41,4,FALSE)*POWER(AVERAGE($R$44:$R$45)-J102,VLOOKUP(C102,Données!$A$4:$J$41,5,FALSE)),0)*2,""),"") ->  | R102: 0 | U102: 0 | V102: 0 | Y102: 0 | BA102: 48 | BC102: 0 | BD102: 0 | BE102: 0 | BF102: 0
K103: =+IF(D103<>0,IF(J103<>0,ROUND(VLOOKUP(C103,Données!$A$4:$J$41,2,FALSE)*POWER(AVERAGE($R$44:$R$45)-J103,VLOOKUP(C103,Données!$A$4:$J$41,3,FALSE)),0)*D103+ROUND(VLOOKUP(C103,Données!$A$4:$J$41,4,FALSE)*POWER(AVERAGE($R$44:$R$45)-J103,VLOOKUP(C103,Données!$A$4:$J$41,5,FALSE)),0)*2,""),"") ->  | R103: 0 | U103: 0 | V103: 0 | Y103: 0 | BA103: 49 | BC103: 0 | BD103: 0 | BE103: 0 | BF103: 0
K104: =+IF(D104<>0,IF(J104<>0,ROUND(VLOOKUP(C104,Données!$A$4:$J$41,2,FALSE)*POWER(AVERAGE($R$44:$R$45)-J104,VLOOKUP(C104,Données!$A$4:$J$41,3,FALSE)),0)*D104+ROUND(VLOOKUP(C104,Données!$A$4:$J$41,4,FALSE)*POWER(AVERAGE($R$44:$R$45)-J104,VLOOKUP(C104,Données!$A$4:$J$41,5,FALSE)),0)*2,""),"") ->  | R104: 0 | U104: 0 | V104: 0 | Y104: 0 | BA104: 50 | BC104: 0 | BD104: 0 | BE104: 0 | BF104: 0
K105: =+IF(D105<>0,IF(J105<>0,ROUND(VLOOKUP(C105,Données!$A$4:$J$41,2,FALSE)*POWER(AVERAGE($R$44:$R$45)-J105,VLOOKUP(C105,Données!$A$4:$J$41,3,FALSE)),0)*D105+ROUND(VLOOKUP(C105,Données!$A$4:$J$41,4,FALSE)*POWER(AVERAGE($R$44:$R$45)-J105,VLOOKUP(C105,Données!$A$4:$J$41,5,FALSE)),0)*2,""),"") ->  | R105: 0 | U105: 0 | V105: 0 | Y105: 0 | BA105: 51 | BC105: 0 | BD105: 0 | BE105: 0 | BF105: 0
K106: =+IF(D106<>0,IF(J106<>0,ROUND(VLOOKUP(C106,Données!$A$4:$J$41,2,FALSE)*POWER(AVERAGE($R$44:$R$45)-J106,VLOOKUP(C106,Données!$A$4:$J$41,3,FALSE)),0)*D106+ROUND(VLOOKUP(C106,Données!$A$4:$J$41,4,FALSE)*POWER(AVERAGE($R$44:$R$45)-J106,VLOOKUP(C106,Données!$A$4:$J$41,5,FALSE)),0)*2,""),"") ->  | R106: 0 | U106: 0 | V106: 0 | Y106: 0 | BA106: 52 | BC106: 0 | BD106: 0 | BE106: 0 | BF106: 0
K107: =+IF(D107<>0,IF(J107<>0,ROUND(VLOOKUP(C107,Données!$A$4:$J$41,2,FALSE)*POWER(AVERAGE($R$44:$R$45)-J107,VLOOKUP(C107,Données!$A$4:$J$41,3,FALSE)),0)*D107+ROUND(VLOOKUP(C107,Données!$A$4:$J$41,4,FALSE)*POWER(AVERAGE($R$44:$R$45)-J107,VLOOKUP(C107,Données!$A$4:$J$41,5,FALSE)),0)*2,""),"") ->  | R107: 0 | U107: 0 | V107: 0 | Y107: 0 | BA107: 53 | BC107: 0 | BD107: 0 | BE107: 0 | BF107: 0
K108: =+IF(D108<>0,IF(J108<>0,ROUND(VLOOKUP(C108,Données!$A$4:$J$41,2,FALSE)*POWER(AVERAGE($R$44:$R$45)-J108,VLOOKUP(C108,Données!$A$4:$J$41,3,FALSE)),0)*D108+ROUND(VLOOKUP(C108,Données!$A$4:$J$41,4,FALSE)*POWER(AVERAGE($R$44:$R$45)-J108,VLOOKUP(C108,Données!$A$4:$J$41,5,FALSE)),0)*2,""),"") ->  | R108: 0 | U108: 0 | V108: 0 | Y108: 0 | BA108: 54 | BC108: 0 | BD108: 0 | BE108: 0 | BF108: 0
K109: =+IF(D109<>0,IF(J109<>0,ROUND(VLOOKUP(C109,Données!$A$4:$J$41,2,FALSE)*POWER(AVERAGE($R$44:$R$45)-J109,VLOOKUP(C109,Données!$A$4:$J$41,3,FALSE)),0)*D109+ROUND(VLOOKUP(C109,Données!$A$4:$J$41,4,FALSE)*POWER(AVERAGE($R$44:$R$45)-J109,VLOOKUP(C109,Données!$A$4:$J$41,5,FALSE)),0)*2,""),"") ->  | R109: 0 | U109: 0 | V109: 0 | Y109: 0 | BA109: 55 | BC109: 0 | BD109: 0 | BE109: 0 | BF109: 0
K110: =+IF(D110<>0,IF(J110<>0,ROUND(VLOOKUP(C110,Données!$A$4:$J$41,2,FALSE)*POWER(AVERAGE($R$44:$R$45)-J110,VLOOKUP(C110,Données!$A$4:$J$41,3,FALSE)),0)*D110+ROUND(VLOOKUP(C110,Données!$A$4:$J$41,4,FALSE)*POWER(AVERAGE($R$44:$R$45)-J110,VLOOKUP(C110,Données!$A$4:$J$41,5,FALSE)),0)*2,""),"") ->  | R110: 0 | U110: 0 | V110: 0 | Y110: 0 | BA110: 56 | BC110: 0 | BD110: 0 | BE110: 0 | BF110: 0
K111: =+IF(D111<>0,IF(J111<>0,ROUND(VLOOKUP(C111,Données!$A$4:$J$41,2,FALSE)*POWER(AVERAGE($R$44:$R$45)-J111,VLOOKUP(C111,Données!$A$4:$J$41,3,FALSE)),0)*D111+ROUND(VLOOKUP(C111,Données!$A$4:$J$41,4,FALSE)*POWER(AVERAGE($R$44:$R$45)-J111,VLOOKUP(C111,Données!$A$4:$J$41,5,FALSE)),0)*2,""),"") ->  | R111: 0 | U111: 0 | V111: 0 | Y111: 0 | BA111: 57 | BC111: 0 | BD111: 0 | BE111: 0 | BF111: 0
K112: =+IF(D112<>0,IF(J112<>0,ROUND(VLOOKUP(C112,Données!$A$4:$J$41,2,FALSE)*POWER(AVERAGE($R$44:$R$45)-J112,VLOOKUP(C112,Données!$A$4:$J$41,3,FALSE)),0)*D112+ROUND(VLOOKUP(C112,Données!$A$4:$J$41,4,FALSE)*POWER(AVERAGE($R$44:$R$45)-J112,VLOOKUP(C112,Données!$A$4:$J$41,5,FALSE)),0)*2,""),"") ->  | R112: 0 | U112: 0 | V112: 0 | Y112: 0 | BA112: 58 | BC112: 0 | BD112: 0 | BE112: 0 | BF112: 0
K113: =+IF(D113<>0,IF(J113<>0,ROUND(VLOOKUP(C113,Données!$A$4:$J$41,2,FALSE)*POWER(AVERAGE($R$44:$R$45)-J113,VLOOKUP(C113,Données!$A$4:$J$41,3,FALSE)),0)*D113+ROUND(VLOOKUP(C113,Données!$A$4:$J$41,4,FALSE)*POWER(AVERAGE($R$44:$R$45)-J113,VLOOKUP(C113,Données!$A$4:$J$41,5,FALSE)),0)*2,""),"") ->  | R113: 0 | U113: 0 | V113: 0 | Y113: 0 | BA113: 59 | BC113: 0 | BD113: 0 | BE113: 0 | BF113: 0
K114: =+IF(D114<>0,IF(J114<>0,ROUND(VLOOKUP(C114,Données!$A$4:$J$41,2,FALSE)*POWER(AVERAGE($R$44:$R$45)-J114,VLOOKUP(C114,Données!$A$4:$J$41,3,FALSE)),0)*D114+ROUND(VLOOKUP(C114,Données!$A$4:$J$41,4,FALSE)*POWER(AVERAGE($R$44:$R$45)-J114,VLOOKUP(C114,Données!$A$4:$J$41,5,FALSE)),0)*2,""),"") ->  | R114: 0 | U114: 0 | V114: 0 | Y114: 0 | BA114: 60 | BC114: 0 | BD114: 0 | BE114: 0 | BF114: 0
K115: =+IF(D115<>0,IF(J115<>0,ROUND(VLOOKUP(C115,Données!$A$4:$J$41,2,FALSE)*POWER(AVERAGE($R$44:$R$45)-J115,VLOOKUP(C115,Données!$A$4:$J$41,3,FALSE)),0)*D115+ROUND(VLOOKUP(C115,Données!$A$4:$J$41,4,FALSE)*POWER(AVERAGE($R$44:$R$45)-J115,VLOOKUP(C115,Données!$A$4:$J$41,5,FALSE)),0)*2,""),"") ->  | R115: 0 | U115: 0 | V115: 0 | Y115: 0 | BA115: 61 | BC115: 0 | BD115: 0 | BE115: 0 | BF115: 0
K116: =+IF(D116<>0,IF(J116<>0,ROUND(VLOOKUP(C116,Données!$A$4:$J$41,2,FALSE)*POWER(AVERAGE($R$44:$R$45)-J116,VLOOKUP(C116,Données!$A$4:$J$41,3,FALSE)),0)*D116+ROUND(VLOOKUP(C116,Données!$A$4:$J$41,4,FALSE)*POWER(AVERAGE($R$44:$R$45)-J116,VLOOKUP(C116,Données!$A$4:$J$41,5,FALSE)),0)*2,""),"") ->  | R116: 0 | U116: 0 | V116: 0 | Y116: 0 | BA116: 62 | BC116: 0 | BD116: 0 | BE116: 0 | BF116: 0
K117: =+IF(D117<>0,IF(J117<>0,ROUND(VLOOKUP(C117,Données!$A$4:$J$41,2,FALSE)*POWER(AVERAGE($R$44:$R$45)-J117,VLOOKUP(C117,Données!$A$4:$J$41,3,FALSE)),0)*D117+ROUND(VLOOKUP(C117,Données!$A$4:$J$41,4,FALSE)*POWER(AVERAGE($R$44:$R$45)-J117,VLOOKUP(C117,Données!$A$4:$J$41,5,FALSE)),0)*2,""),"") ->  | R117: 0 | U117: 0 | V117: 0 | Y117: 0 | BA117: 63 | BC117: 0 | BD117: 0 | BE117: 0 | BF117: 0
K118: =+IF(D118<>0,IF(J118<>0,ROUND(VLOOKUP(C118,Données!$A$4:$J$41,2,FALSE)*POWER(AVERAGE($R$44:$R$45)-J118,VLOOKUP(C118,Données!$A$4:$J$41,3,FALSE)),0)*D118+ROUND(VLOOKUP(C118,Données!$A$4:$J$41,4,FALSE)*POWER(AVERAGE($R$44:$R$45)-J118,VLOOKUP(C118,Données!$A$4:$J$41,5,FALSE)),0)*2,""),"") ->  | R118: 0 | U118: 0 | V118: 0 | Y118: 0 | BA118: 64 | BC118: 0 | BD118: 0 | BE118: 0 | BF118: 0
K119: =+IF(D119<>0,IF(J119<>0,ROUND(VLOOKUP(C119,Données!$A$4:$J$41,2,FALSE)*POWER(AVERAGE($R$44:$R$45)-J119,VLOOKUP(C119,Données!$A$4:$J$41,3,FALSE)),0)*D119+ROUND(VLOOKUP(C119,Données!$A$4:$J$41,4,FALSE)*POWER(AVERAGE($R$44:$R$45)-J119,VLOOKUP(C119,Données!$A$4:$J$41,5,FALSE)),0)*2,""),"") ->  | R119: 0 | S119: =IF(OR(L119="",F119="D+D"),"",IF(M119<N119,L119*0.95,L119)) ->  | U119: 0 | V119: 0 | Y119: 0 | BA119: 65 | BC119: 0 | BD119: 0 | BE119: 0 | BF119: 0
E120: =IF(D120=0,"",VLOOKUP(C120&"-"&IF(D120<4,4,IF(D120>18,18,EVEN(D120))),$O$168:$P$239,2,FALSE)) ->  | K120: =+IF(D120<>0,IF(J120<>0,ROUND(VLOOKUP(C120,Données!$A$4:$J$41,2,FALSE)*POWER(AVERAGE($R$44:$R$45)-J120,VLOOKUP(C120,Données!$A$4:$J$41,3,FALSE)),0)*D120+ROUND(VLOOKUP(C120,Données!$A$4:$J$41,4,FALSE)*POWER(AVERAGE($R$44:$R$45)-J120,VLOOKUP(C120,Données!$A$4:$J$41,5,FALSE)),0)*2,""),"") ->  | R120: 0 | U120: 0 | V120: =IF(F119="D+D",D120*B120+V119,B120*D120) -> 0 | Y120: =+$V$3*(D120*B120)/1000 -> 0 | Z120: =(0.001*M120^1.8155)*Y120 ->  | AA120: =(0.00007*M120^1.9823)*Y120 ->  | AB120: =(0.00009*M120^1.857)*Y120 ->  | AC120: =(0.00005*M120^1.8638)*Y120 ->  | AD120: =(0.00008*M120^1.7517)*Y120 ->  | AE120: =(0.0003*M120^1.9011)*Y120 ->  | AF120: =(0.0001*M120^1.8431)*Y120 ->  | AG120: =(0.00005*M120^1.8638)*Y120 ->  | AH120: =(0.00008*M120^1.7357)*Y120 ->  | AI120: =+(0.0057*M120^1.8927)*Y120 ->  | AJ120: =+(0.0017*M120^1.8272)*Y120 ->  | AK120: =+(0.0009*M120^1.817)*Y120 ->  | AL120: =+(0.0004*M120^1.8646)*Y120 ->  | AM120: =+(0.0002*M120^1.881)*Y120 ->  | AN120: =+(0.0033*M120^1.8334)*Y120 ->  | AO120: =+(0.0011*M120^1.8159)*Y120 ->  | AP120: =+(0.0004*M120^1.8646)*Y120 ->  | AQ120: =+(0.0003*M120^1.8288)*Y120 ->  | BA120: 66 | BC120: =+IF(F119="D+D",BC119+BD120,BD120) -> 0 | BD120: =IF(D120<>0,B120*K120,0) -> 0 | BE120: =+IF(F119="D+D",BE119+BF120,BF120) -> 0 | BF120: =IF(D120<>0,U120,0) -> 0
F121: =IF(C121<>0,"D"," ") ->  | K121: =+IF(D121<>0,IF(J121<>0,ROUND(VLOOKUP(C121,Données!$A$4:$J$41,2,FALSE)*POWER(AVERAGE($R$44:$R$45)-J121,VLOOKUP(C121,Données!$A$4:$J$41,3,FALSE)),0)*D121+ROUND(VLOOKUP(C121,Données!$A$4:$J$41,4,FALSE)*POWER(AVERAGE($R$44:$R$45)-J121,VLOOKUP(C121,Données!$A$4:$J$41,5,FALSE)),0)*2,""),"") ->  | O121: =IF(P121="","",IF(P121="3/4''",ROUND(M121/55,1),IF(P121="1''",ROUND(M121/105,1),IF(P121="1'' 1/4",ROUND(0.0006*M121^1.2613,1),"")))) ->  | P121: =IF(C121="","",IF($R$48="OUI",IF(M121<550,"3/4''",IF(M121<1050,"1''",IF(M121<2151,"1'' 1/4","débit ++"))),IF(M121<320,"1/2''",IF(M121<650,"3/4''",IF(M121<1200,"1''",IF(M121<2151,"1'' 1/4","débit trop élevé")))))) ->  | Q121: =IF(C121="","",IF($R$48="OUI",IF(M121<551,15,IF(M121<1101,18,25)))) ->  | R121: =IF(B121="",0,IF(F120="D+D",BE121,IF(L121="",0,U121))) -> 0 | U121: 0 | V121: 0 | Y121: 0 | BA121: 67 | BC121: 0 | BD121: 0 | BE121: 0 | BF121: 0
G122: =IF(C122=0,"",IF(C122<>0,IF(I122<>"OUI",W122,IF(I122="OUI",W122+X122,"")))) ->  | H122: =IF(C122=0,"",IF(C122<>0,VLOOKUP(C122,$Y$5:$AE$27,7,FALSE),"")) ->  | I122: =+IF(NOT(ISBLANK($C122)),"NON","") ->  | K122: =+IF(D122<>0,IF(J122<>0,ROUND(VLOOKUP(C122,Données!$A$4:$J$41,2,FALSE)*POWER(AVERAGE($R$44:$R$45)-J122,VLOOKUP(C122,Données!$A$4:$J$41,3,FALSE)),0)*D122+ROUND(VLOOKUP(C122,Données!$A$4:$J$41,4,FALSE)*POWER(AVERAGE($R$44:$R$45)-J122,VLOOKUP(C122,Données!$A$4:$J$41,5,FALSE)),0)*2,""),"") ->  | L122: =+IF(C122="","",IF(F121="D+D",BC122,K122*B122)) ->  | M122: =IF(C122="","",IF(L122=" "," ",L122/1.16/($R$44-$R$45))) ->  | N122: =+IF(C122="","",IF(F122="D",VLOOKUP(C122,$Y$5:$AA$27,3,FALSE),IF(F122="B",VLOOKUP(C122,$Y$30:$AA$49,3,FALSE),IF(F122="D+D",VLOOKUP(C122,$Y$5:$AA$27,3,FALSE),"")))) ->  | R122: 0 | U122: =IF(OR(C122="",H122="-"),0,ROUNDUP(HLOOKUP(C122&F122,$Z$55:$AZ$164,BA122,FALSE),2)) -> 0 | V122: 0 | Y122: 0 | AR122: =+AI122 ->  | AS122: =+AJ122 ->  | AT122: =+AK122 ->  | AU122: =+AL122 ->  | AV122: =+AM122 ->  | AW122: =+AN122 ->  | AX122: =+AM122 ->  | AY122: =+AP122 ->  | AZ122: =+AQ122 ->  | BA122: 68 | BC122: 0 | BD122: 0 | BE122: 0 | BF122: 0
K123: =+IF(D123<>0,IF(J123<>0,ROUND(VLOOKUP(C123,Données!$A$4:$J$41,2,FALSE)*POWER(AVERAGE($R$44:$R$45)-J123,VLOOKUP(C123,Données!$A$4:$J$41,3,FALSE)),0)*D123+ROUND(VLOOKUP(C123,Données!$A$4:$J$41,4,FALSE)*POWER(AVERAGE($R$44:$R$45)-J123,VLOOKUP(C123,Données!$A$4:$J$41,5,FALSE)),0)*2,""),"") ->  | R123: 0 | U123: 0 | V123: 0 | Y123: 0 | BA123: 69 | BC123: 0 | BD123: 0 | BE123: 0 | BF123: 0
K124: =+IF(D124<>0,IF(J124<>0,ROUND(VLOOKUP(C124,Données!$A$4:$J$41,2,FALSE)*POWER(AVERAGE($R$44:$R$45)-J124,VLOOKUP(C124,Données!$A$4:$J$41,3,FALSE)),0)*D124+ROUND(VLOOKUP(C124,Données!$A$4:$J$41,4,FALSE)*POWER(AVERAGE($R$44:$R$45)-J124,VLOOKUP(C124,Données!$A$4:$J$41,5,FALSE)),0)*2,""),"") ->  | R124: 0 | U124: 0 | V124: 0 | Y124: 0 | BA124: 70 | BC124: 0 | BD124: 0 | BE124: 0 | BF124: 0
K125: =+IF(D125<>0,IF(J125<>0,ROUND(VLOOKUP(C125,Données!$A$4:$J$41,2,FALSE)*POWER(AVERAGE($R$44:$R$45)-J125,VLOOKUP(C125,Données!$A$4:$J$41,3,FALSE)),0)*D125+ROUND(VLOOKUP(C125,Données!$A$4:$J$41,4,FALSE)*POWER(AVERAGE($R$44:$R$45)-J125,VLOOKUP(C125,Données!$A$4:$J$41,5,FALSE)),0)*2,""),"") ->  | R125: 0 | U125: 0 | V125: 0 | Y125: 0 | BA125: 71 | BC125: 0 | BD125: 0 | BE125: 0 | BF125: 0
K126: =+IF(D126<>0,IF(J126<>0,ROUND(VLOOKUP(C126,Données!$A$4:$J$41,2,FALSE)*POWER(AVERAGE($R$44:$R$45)-J126,VLOOKUP(C126,Données!$A$4:$J$41,3,FALSE)),0)*D126+ROUND(VLOOKUP(C126,Données!$A$4:$J$41,4,FALSE)*POWER(AVERAGE($R$44:$R$45)-J126,VLOOKUP(C126,Données!$A$4:$J$41,5,FALSE)),0)*2,""),"") ->  | R126: 0 | U126: 0 | V126: 0 | Y126: 0 | BA126: 72 | BC126: 0 | BD126: 0 | BE126: 0 | BF126: 0
K127: =+IF(D127<>0,IF(J127<>0,ROUND(VLOOKUP(C127,Données!$A$4:$J$41,2,FALSE)*POWER(AVERAGE($R$44:$R$45)-J127,VLOOKUP(C127,Données!$A$4:$J$41,3,FALSE)),0)*D127+ROUND(VLOOKUP(C127,Données!$A$4:$J$41,4,FALSE)*POWER(AVERAGE($R$44:$R$45)-J127,VLOOKUP(C127,Données!$A$4:$J$41,5,FALSE)),0)*2,""),"") ->  | R127: 0 | U127: 0 | V127: 0 | Y127: 0 | BA127: 73 | BC127: 0 | BD127: 0 | BE127: 0 | BF127: 0
K128: =+IF(D128<>0,IF(J128<>0,ROUND(VLOOKUP(C128,Données!$A$4:$J$41,2,FALSE)*POWER(AVERAGE($R$44:$R$45)-J128,VLOOKUP(C128,Données!$A$4:$J$41,3,FALSE)),0)*D128+ROUND(VLOOKUP(C128,Données!$A$4:$J$41,4,FALSE)*POWER(AVERAGE($R$44:$R$45)-J128,VLOOKUP(C128,Données!$A$4:$J$41,5,FALSE)),0)*2,""),"") ->  | R128: 0 | U128: 0 | V128: 0 | Y128: 0 | BA128: 74 | BC128: 0 | BD128: 0 | BE128: 0 | BF128: 0
K129: =+IF(D129<>0,IF(J129<>0,ROUND(VLOOKUP(C129,Données!$A$4:$J$41,2,FALSE)*POWER(AVERAGE($R$44:$R$45)-J129,VLOOKUP(C129,Données!$A$4:$J$41,3,FALSE)),0)*D129+ROUND(VLOOKUP(C129,Données!$A$4:$J$41,4,FALSE)*POWER(AVERAGE($R$44:$R$45)-J129,VLOOKUP(C129,Données!$A$4:$J$41,5,FALSE)),0)*2,""),"") ->  | R129: 0 | U129: 0 | V129: 0 | Y129: 0 | BA129: 75 | BC129: 0 | BD129: 0 | BE129: 0 | BF129: 0
K130: =+IF(D130<>0,IF(J130<>0,ROUND(VLOOKUP(C130,Données!$A$4:$J$41,2,FALSE)*POWER(AVERAGE($R$44:$R$45)-J130,VLOOKUP(C130,Données!$A$4:$J$41,3,FALSE)),0)*D130+ROUND(VLOOKUP(C130,Données!$A$4:$J$41,4,FALSE)*POWER(AVERAGE($R$44:$R$45)-J130,VLOOKUP(C130,Données!$A$4:$J$41,5,FALSE)),0)*2,""),"") ->  | R130: 0 | U130: 0 | V130: 0 | Y130: 0 | BA130: 76 | BC130: 0 | BD130: 0 | BE130: 0 | BF130: 0
K131: =+IF(D131<>0,IF(J131<>0,ROUND(VLOOKUP(C131,Données!$A$4:$J$41,2,FALSE)*POWER(AVERAGE($R$44:$R$45)-J131,VLOOKUP(C131,Données!$A$4:$J$41,3,FALSE)),0)*D131+ROUND(VLOOKUP(C131,Données!$A$4:$J$41,4,FALSE)*POWER(AVERAGE($R$44:$R$45)-J131,VLOOKUP(C131,Données!$A$4:$J$41,5,FALSE)),0)*2,""),"") ->  | R131: 0 | U131: 0 | V131: 0 | Y131: 0 | BA131: 77 | BC131: 0 | BD131: 0 | BE131: 0 | BF131: 0
K132: =+IF(D132<>0,IF(J132<>0,ROUND(VLOOKUP(C132,Données!$A$4:$J$41,2,FALSE)*POWER(AVERAGE($R$44:$R$45)-J132,VLOOKUP(C132,Données!$A$4:$J$41,3,FALSE)),0)*D132+ROUND(VLOOKUP(C132,Données!$A$4:$J$41,4,FALSE)*POWER(AVERAGE($R$44:$R$45)-J132,VLOOKUP(C132,Données!$A$4:$J$41,5,FALSE)),0)*2,""),"") ->  | R132: 0 | U132: 0 | V132: 0 | Y132: 0 | BA132: 78 | BC132: 0 | BD132: 0 | BE132: 0 | BF132: 0
K133: =+IF(D133<>0,IF(J133<>0,ROUND(VLOOKUP(C133,Données!$A$4:$J$41,2,FALSE)*POWER(AVERAGE($R$44:$R$45)-J133,VLOOKUP(C133,Données!$A$4:$J$41,3,FALSE)),0)*D133+ROUND(VLOOKUP(C133,Données!$A$4:$J$41,4,FALSE)*POWER(AVERAGE($R$44:$R$45)-J133,VLOOKUP(C133,Données!$A$4:$J$41,5,FALSE)),0)*2,""),"") ->  | R133: 0 | U133: 0 | V133: 0 | Y133: 0 | BA133: 79 | BC133: 0 | BD133: 0 | BE133: 0 | BF133: 0
K134: =+IF(D134<>0,IF(J134<>0,ROUND(VLOOKUP(C134,Données!$A$4:$J$41,2,FALSE)*POWER(AVERAGE($R$44:$R$45)-J134,VLOOKUP(C134,Données!$A$4:$J$41,3,FALSE)),0)*D134+ROUND(VLOOKUP(C134,Données!$A$4:$J$41,4,FALSE)*POWER(AVERAGE($R$44:$R$45)-J134,VLOOKUP(C134,Données!$A$4:$J$41,5,FALSE)),0)*2,""),"") ->  | R134: 0 | U134: 0 | V134: 0 | Y134: 0 | BA134: 80 | BC134: 0 | BD134: 0 | BE134: 0 | BF134: 0
K135: =+IF(D135<>0,IF(J135<>0,ROUND(VLOOKUP(C135,Données!$A$4:$J$41,2,FALSE)*POWER(AVERAGE($R$44:$R$45)-J135,VLOOKUP(C135,Données!$A$4:$J$41,3,FALSE)),0)*D135+ROUND(VLOOKUP(C135,Données!$A$4:$J$41,4,FALSE)*POWER(AVERAGE($R$44:$R$45)-J135,VLOOKUP(C135,Données!$A$4:$J$41,5,FALSE)),0)*2,""),"") ->  | R135: 0 | U135: 0 | V135: 0 | Y135: 0 | BA135: 81 | BC135: 0 | BD135: 0 | BE135: 0 | BF135: 0
K136: =+IF(D136<>0,IF(J136<>0,ROUND(VLOOKUP(C136,Données!$A$4:$J$41,2,FALSE)*POWER(AVERAGE($R$44:$R$45)-J136,VLOOKUP(C136,Données!$A$4:$J$41,3,FALSE)),0)*D136+ROUND(VLOOKUP(C136,Données!$A$4:$J$41,4,FALSE)*POWER(AVERAGE($R$44:$R$45)-J136,VLOOKUP(C136,Données!$A$4:$J$41,5,FALSE)),0)*2,""),"") ->  | R136: 0 | U136: 0 | V136: 0 | Y136: 0 | BA136: 82 | BC136: 0 | BD136: 0 | BE136: 0 | BF136: 0
K137: =+IF(D137<>0,IF(J137<>0,ROUND(VLOOKUP(C137,Données!$A$4:$J$41,2,FALSE)*POWER(AVERAGE($R$44:$R$45)-J137,VLOOKUP(C137,Données!$A$4:$J$41,3,FALSE)),0)*D137+ROUND(VLOOKUP(C137,Données!$A$4:$J$41,4,FALSE)*POWER(AVERAGE($R$44:$R$45)-J137,VLOOKUP(C137,Données!$A$4:$J$41,5,FALSE)),0)*2,""),"") ->  | R137: 0 | U137: 0 | V137: 0 | Y137: 0 | BA137: 83 | BC137: 0 | BD137: 0 | BE137: 0 | BF137: 0
K138: =+IF(D138<>0,IF(J138<>0,ROUND(VLOOKUP(C138,Données!$A$4:$J$41,2,FALSE)*POWER(AVERAGE($R$44:$R$45)-J138,VLOOKUP(C138,Données!$A$4:$J$41,3,FALSE)),0)*D138+ROUND(VLOOKUP(C138,Données!$A$4:$J$41,4,FALSE)*POWER(AVERAGE($R$44:$R$45)-J138,VLOOKUP(C138,Données!$A$4:$J$41,5,FALSE)),0)*2,""),"") ->  | R138: 0 | U138: 0 | V138: 0 | Y138: 0 | BA138: 84 | BC138: 0 | BD138: 0 | BE138: 0 | BF138: 0
K139: =+IF(D139<>0,IF(J139<>0,ROUND(VLOOKUP(C139,Données!$A$4:$J$41,2,FALSE)*POWER(AVERAGE($R$44:$R$45)-J139,VLOOKUP(C139,Données!$A$4:$J$41,3,FALSE)),0)*D139+ROUND(VLOOKUP(C139,Données!$A$4:$J$41,4,FALSE)*POWER(AVERAGE($R$44:$R$45)-J139,VLOOKUP(C139,Données!$A$4:$J$41,5,FALSE)),0)*2,""),"") ->  | R139: 0 | U139: 0 | V139: 0 | Y139: 0 | BA139: 85 | BC139: 0 | BD139: 0 | BE139: 0 | BF139: 0
K140: =+IF(D140<>0,IF(J140<>0,ROUND(VLOOKUP(C140,Données!$A$4:$J$41,2,FALSE)*POWER(AVERAGE($R$44:$R$45)-J140,VLOOKUP(C140,Données!$A$4:$J$41,3,FALSE)),0)*D140+ROUND(VLOOKUP(C140,Données!$A$4:$J$41,4,FALSE)*POWER(AVERAGE($R$44:$R$45)-J140,VLOOKUP(C140,Données!$A$4:$J$41,5,FALSE)),0)*2,""),"") ->  | R140: 0 | U140: 0 | V140: 0 | Y140: 0 | BA140: 86 | BC140: 0 | BD140: 0 | BE140: 0 | BF140: 0
K141: =+IF(D141<>0,IF(J141<>0,ROUND(VLOOKUP(C141,Données!$A$4:$J$41,2,FALSE)*POWER(AVERAGE($R$44:$R$45)-J141,VLOOKUP(C141,Données!$A$4:$J$41,3,FALSE)),0)*D141+ROUND(VLOOKUP(C141,Données!$A$4:$J$41,4,FALSE)*POWER(AVERAGE($R$44:$R$45)-J141,VLOOKUP(C141,Données!$A$4:$J$41,5,FALSE)),0)*2,""),"") ->  | R141: 0 | U141: 0 | V141: 0 | Y141: 0 | BA141: 87 | BC141: 0 | BD141: 0 | BE141: 0 | BF141: 0
K142: =+IF(D142<>0,IF(J142<>0,ROUND(VLOOKUP(C142,Données!$A$4:$J$41,2,FALSE)*POWER(AVERAGE($R$44:$R$45)-J142,VLOOKUP(C142,Données!$A$4:$J$41,3,FALSE)),0)*D142+ROUND(VLOOKUP(C142,Données!$A$4:$J$41,4,FALSE)*POWER(AVERAGE($R$44:$R$45)-J142,VLOOKUP(C142,Données!$A$4:$J$41,5,FALSE)),0)*2,""),"") ->  | R142: 0 | U142: 0 | V142: 0 | W142: =+IF(C142="","",D142*VLOOKUP(C142,$Y$5:$AC$27,4,FALSE)+VLOOKUP(C142,$Y$5:$AC$27,5,FALSE)) ->  | X142: =+IF(C142="","",VLOOKUP(C142,$Y$5:$AD$27,6,FALSE)*D142) ->  | Y142: 0 | BA142: 88 | BC142: 0 | BD142: 0 | BE142: 0 | BF142: 0
K143: =+IF(D143<>0,IF(J143<>0,ROUND(VLOOKUP(C143,Données!$A$4:$J$41,2,FALSE)*POWER(AVERAGE($R$44:$R$45)-J143,VLOOKUP(C143,Données!$A$4:$J$41,3,FALSE)),0)*D143+ROUND(VLOOKUP(C143,Données!$A$4:$J$41,4,FALSE)*POWER(AVERAGE($R$44:$R$45)-J143,VLOOKUP(C143,Données!$A$4:$J$41,5,FALSE)),0)*2,""),"") ->  | R143: 0 | U143: 0 | V143: 0 | Y143: 0 | BA143: 89 | BC143: 0 | BD143: 0 | BE143: 0 | BF143: 0
K144: =+IF(D144<>0,IF(J144<>0,ROUND(VLOOKUP(C144,Données!$A$4:$J$41,2,FALSE)*POWER(AVERAGE($R$44:$R$45)-J144,VLOOKUP(C144,Données!$A$4:$J$41,3,FALSE)),0)*D144+ROUND(VLOOKUP(C144,Données!$A$4:$J$41,4,FALSE)*POWER(AVERAGE($R$44:$R$45)-J144,VLOOKUP(C144,Données!$A$4:$J$41,5,FALSE)),0)*2,""),"") ->  | R144: 0 | U144: 0 | V144: 0 | Y144: 0 | BA144: 90 | BC144: 0 | BD144: 0 | BE144: 0 | BF144: 0
K145: =+IF(D145<>0,IF(J145<>0,ROUND(VLOOKUP(C145,Données!$A$4:$J$41,2,FALSE)*POWER(AVERAGE($R$44:$R$45)-J145,VLOOKUP(C145,Données!$A$4:$J$41,3,FALSE)),0)*D145+ROUND(VLOOKUP(C145,Données!$A$4:$J$41,4,FALSE)*POWER(AVERAGE($R$44:$R$45)-J145,VLOOKUP(C145,Données!$A$4:$J$41,5,FALSE)),0)*2,""),"") ->  | R145: 0 | U145: 0 | V145: 0 | Y145: 0 | BA145: 91 | BC145: 0 | BD145: 0 | BE145: 0 | BF145: 0
K146: =+IF(D146<>0,IF(J146<>0,ROUND(VLOOKUP(C146,Données!$A$4:$J$41,2,FALSE)*POWER(AVERAGE($R$44:$R$45)-J146,VLOOKUP(C146,Données!$A$4:$J$41,3,FALSE)),0)*D146+ROUND(VLOOKUP(C146,Données!$A$4:$J$41,4,FALSE)*POWER(AVERAGE($R$44:$R$45)-J146,VLOOKUP(C146,Données!$A$4:$J$41,5,FALSE)),0)*2,""),"") ->  | R146: 0 | U146: 0 | V146: 0 | Y146: 0 | BA146: 92 | BC146: 0 | BD146: 0 | BE146: 0 | BF146: 0
K147: =+IF(D147<>0,IF(J147<>0,ROUND(VLOOKUP(C147,Données!$A$4:$J$41,2,FALSE)*POWER(AVERAGE($R$44:$R$45)-J147,VLOOKUP(C147,Données!$A$4:$J$41,3,FALSE)),0)*D147+ROUND(VLOOKUP(C147,Données!$A$4:$J$41,4,FALSE)*POWER(AVERAGE($R$44:$R$45)-J147,VLOOKUP(C147,Données!$A$4:$J$41,5,FALSE)),0)*2,""),"") ->  | R147: 0 | U147: 0 | V147: 0 | Y147: 0 | BA147: 93 | BC147: 0 | BD147: 0 | BE147: 0 | BF147: 0
K148: =+IF(D148<>0,IF(J148<>0,ROUND(VLOOKUP(C148,Données!$A$4:$J$41,2,FALSE)*POWER(AVERAGE($R$44:$R$45)-J148,VLOOKUP(C148,Données!$A$4:$J$41,3,FALSE)),0)*D148+ROUND(VLOOKUP(C148,Données!$A$4:$J$41,4,FALSE)*POWER(AVERAGE($R$44:$R$45)-J148,VLOOKUP(C148,Données!$A$4:$J$41,5,FALSE)),0)*2,""),"") ->  | R148: 0 | U148: 0 | V148: 0 | Y148: 0 | BA148: 94 | BC148: 0 | BD148: 0 | BE148: 0 | BF148: 0
K149: =+IF(D149<>0,IF(J149<>0,ROUND(VLOOKUP(C149,Données!$A$4:$J$41,2,FALSE)*POWER(AVERAGE($R$44:$R$45)-J149,VLOOKUP(C149,Données!$A$4:$J$41,3,FALSE)),0)*D149+ROUND(VLOOKUP(C149,Données!$A$4:$J$41,4,FALSE)*POWER(AVERAGE($R$44:$R$45)-J149,VLOOKUP(C149,Données!$A$4:$J$41,5,FALSE)),0)*2,""),"") ->  | R149: 0 | U149: 0 | V149: 0 | Y149: 0 | BA149: 95 | BC149: 0 | BD149: 0 | BE149: 0 | BF149: 0
K150: =+IF(D150<>0,IF(J150<>0,ROUND(VLOOKUP(C150,Données!$A$4:$J$41,2,FALSE)*POWER(AVERAGE($R$44:$R$45)-J150,VLOOKUP(C150,Données!$A$4:$J$41,3,FALSE)),0)*D150+ROUND(VLOOKUP(C150,Données!$A$4:$J$41,4,FALSE)*POWER(AVERAGE($R$44:$R$45)-J150,VLOOKUP(C150,Données!$A$4:$J$41,5,FALSE)),0)*2,""),"") ->  | R150: 0 | U150: 0 | V150: 0 | Y150: 0 | BA150: 96 | BC150: 0 | BD150: 0 | BE150: 0 | BF150: 0
K151: =+IF(D151<>0,IF(J151<>0,ROUND(VLOOKUP(C151,Données!$A$4:$J$41,2,FALSE)*POWER(AVERAGE($R$44:$R$45)-J151,VLOOKUP(C151,Données!$A$4:$J$41,3,FALSE)),0)*D151+ROUND(VLOOKUP(C151,Données!$A$4:$J$41,4,FALSE)*POWER(AVERAGE($R$44:$R$45)-J151,VLOOKUP(C151,Données!$A$4:$J$41,5,FALSE)),0)*2,""),"") ->  | R151: 0 | U151: 0 | V151: 0 | Y151: 0 | BA151: 97 | BC151: 0 | BD151: 0 | BE151: 0 | BF151: 0
E152: =IF(D152=0,"",VLOOKUP(C152&"-"&IF(D152<4,4,IF(D152>18,18,EVEN(D152))),$O$168:$P$239,2,FALSE)) ->  | K152: =+IF(D152<>0,IF(J152<>0,ROUND(VLOOKUP(C152,Données!$A$4:$J$41,2,FALSE)*POWER(AVERAGE($R$44:$R$45)-J152,VLOOKUP(C152,Données!$A$4:$J$41,3,FALSE)),0)*D152+ROUND(VLOOKUP(C152,Données!$A$4:$J$41,4,FALSE)*POWER(AVERAGE($R$44:$R$45)-J152,VLOOKUP(C152,Données!$A$4:$J$41,5,FALSE)),0)*2,""),"") ->  | R152: 0 | U152: 0 | V152: =IF(F151="D+D",D152*B152+V151,B152*D152) -> 0 | Y152: =+$V$3*(D152*B152)/1000 -> 0 | Z152: =(0.001*M152^1.8155)*Y152 ->  | AA152: =(0.00007*M152^1.9823)*Y152 ->  | AB152: =(0.00009*M152^1.857)*Y152 ->  | AC152: =(0.00005*M152^1.8638)*Y152 ->  | AD152: =(0.00008*M152^1.7517)*Y152 ->  | AE152: =(0.0003*M152^1.9011)*Y152 ->  | AF152: =(0.0001*M152^1.8431)*Y152 ->  | AG152: =(0.00005*M152^1.8638)*Y152 ->  | AH152: =(0.00008*M152^1.7357)*Y152 ->  | AI152: =+(0.0057*M152^1.8927)*Y152 ->  | AJ152: =+(0.0017*M152^1.8272)*Y152 ->  | AK152: =+(0.0009*M152^1.817)*Y152 ->  | AL152: =+(0.0004*M152^1.8646)*Y152 ->  | AM152: =+(0.0002*M152^1.881)*Y152 ->  | AN152: =+(0.0033*M152^1.8334)*Y152 ->  | AO152: =+(0.0011*M152^1.8159)*Y152 ->  | AP152: =+(0.0004*M152^1.8646)*Y152 ->  | AQ152: =+(0.0003*M152^1.8288)*Y152 ->  | BA152: 98 | BC152: =+IF(F151="D+D",BC151+BD152,BD152) -> 0 | BD152: =IF(D152<>0,B152*K152,0) -> 0 | BE152: =+IF(F151="D+D",BE151+BF152,BF152) -> 0 | BF152: =IF(D152<>0,U152,0) -> 0
K153: =+IF(D153<>0,IF(J153<>0,ROUND(VLOOKUP(C153,Données!$A$4:$J$41,2,FALSE)*POWER(AVERAGE($R$44:$R$45)-J153,VLOOKUP(C153,Données!$A$4:$J$41,3,FALSE)),0)*D153+ROUND(VLOOKUP(C153,Données!$A$4:$J$41,4,FALSE)*POWER(AVERAGE($R$44:$R$45)-J153,VLOOKUP(C153,Données!$A$4:$J$41,5,FALSE)),0)*2,""),"") ->  | R153: 0 | U153: 0 | V153: 0 | Y153: 0 | BA153: 99 | BC153: 0 | BD153: 0 | BE153: 0 | BF153: 0
K154: =+IF(D154<>0,IF(J154<>0,ROUND(VLOOKUP(C154,Données!$A$4:$J$41,2,FALSE)*POWER(AVERAGE($R$44:$R$45)-J154,VLOOKUP(C154,Données!$A$4:$J$41,3,FALSE)),0)*D154+ROUND(VLOOKUP(C154,Données!$A$4:$J$41,4,FALSE)*POWER(AVERAGE($R$44:$R$45)-J154,VLOOKUP(C154,Données!$A$4:$J$41,5,FALSE)),0)*2,""),"") ->  | R154: 0 | U154: 0 | V154: 0 | Y154: 0 | BA154: 100 | BC154: 0 | BD154: 0 | BE154: 0 | BF154: 0
K155: =+IF(D155<>0,IF(J155<>0,ROUND(VLOOKUP(C155,Données!$A$4:$J$41,2,FALSE)*POWER(AVERAGE($R$44:$R$45)-J155,VLOOKUP(C155,Données!$A$4:$J$41,3,FALSE)),0)*D155+ROUND(VLOOKUP(C155,Données!$A$4:$J$41,4,FALSE)*POWER(AVERAGE($R$44:$R$45)-J155,VLOOKUP(C155,Données!$A$4:$J$41,5,FALSE)),0)*2,""),"") ->  | O155: =IF(P155="","",IF(P155="3/4''",ROUND(M155/55,1),IF(P155="1''",ROUND(M155/105,1),IF(P155="1'' 1/4",ROUND(M155/220,1),"")))) ->  | P155: =IF(C155="","",IF($R$48="OUI",IF(M155<550,"3/4''",IF(M155<1050,"1''",IF(M155<2200,"1'' 1/4","débit ++"))),IF(M155<320,"1/2''",IF(M155<650,"3/4''",IF(M155<1200,"1''",IF(M155<2151,"1'' 1/4","débit trop élevé")))))) ->  | R155: 0 | U155: 0 | V155: 0 | Y155: 0 | BA155: 101 | BC155: 0 | BD155: 0 | BE155: 0 | BF155: 0
K156: =+IF(D156<>0,IF(J156<>0,ROUND(VLOOKUP(C156,Données!$A$4:$J$41,2,FALSE)*POWER(AVERAGE($R$44:$R$45)-J156,VLOOKUP(C156,Données!$A$4:$J$41,3,FALSE)),0)*D156+ROUND(VLOOKUP(C156,Données!$A$4:$J$41,4,FALSE)*POWER(AVERAGE($R$44:$R$45)-J156,VLOOKUP(C156,Données!$A$4:$J$41,5,FALSE)),0)*2,""),"") ->  | R156: 0 | U156: 0 | V156: 0 | Y156: 0 | BA156: 102 | BC156: 0 | BD156: 0 | BE156: 0 | BF156: 0
K157: =+IF(D157<>0,IF(J157<>0,ROUND(VLOOKUP(C157,Données!$A$4:$J$41,2,FALSE)*POWER(AVERAGE($R$44:$R$45)-J157,VLOOKUP(C157,Données!$A$4:$J$41,3,FALSE)),0)*D157+ROUND(VLOOKUP(C157,Données!$A$4:$J$41,4,FALSE)*POWER(AVERAGE($R$44:$R$45)-J157,VLOOKUP(C157,Données!$A$4:$J$41,5,FALSE)),0)*2,""),"") ->  | R157: 0 | U157: 0 | V157: 0 | Y157: 0 | BA157: 103 | BC157: 0 | BD157: 0 | BE157: 0 | BF157: 0
K158: =+IF(D158<>0,IF(J158<>0,ROUND(VLOOKUP(C158,Données!$A$4:$J$41,2,FALSE)*POWER(AVERAGE($R$44:$R$45)-J158,VLOOKUP(C158,Données!$A$4:$J$41,3,FALSE)),0)*D158+ROUND(VLOOKUP(C158,Données!$A$4:$J$41,4,FALSE)*POWER(AVERAGE($R$44:$R$45)-J158,VLOOKUP(C158,Données!$A$4:$J$41,5,FALSE)),0)*2,""),"") ->  | R158: 0 | U158: 0 | V158: 0 | Y158: 0 | BA158: 104 | BC158: 0 | BD158: 0 | BE158: 0 | BF158: 0
K159: =+IF(D159<>0,IF(J159<>0,ROUND(VLOOKUP(C159,Données!$A$4:$J$41,2,FALSE)*POWER(AVERAGE($R$44:$R$45)-J159,VLOOKUP(C159,Données!$A$4:$J$41,3,FALSE)),0)*D159+ROUND(VLOOKUP(C159,Données!$A$4:$J$41,4,FALSE)*POWER(AVERAGE($R$44:$R$45)-J159,VLOOKUP(C159,Données!$A$4:$J$41,5,FALSE)),0)*2,""),"") ->  | R159: 0 | U159: 0 | V159: 0 | Y159: 0 | BA159: 105 | BC159: 0 | BD159: 0 | BE159: 0 | BF159: 0
K160: =+IF(D160<>0,IF(J160<>0,ROUND(VLOOKUP(C160,Données!$A$4:$J$41,2,FALSE)*POWER(AVERAGE($R$44:$R$45)-J160,VLOOKUP(C160,Données!$A$4:$J$41,3,FALSE)),0)*D160+ROUND(VLOOKUP(C160,Données!$A$4:$J$41,4,FALSE)*POWER(AVERAGE($R$44:$R$45)-J160,VLOOKUP(C160,Données!$A$4:$J$41,5,FALSE)),0)*2,""),"") ->  | R160: 0 | U160: 0 | V160: 0 | Y160: 0 | BA160: 106 | BC160: 0 | BD160: 0 | BE160: 0 | BF160: 0
F161: =IF(C161<>0,"D"," ") ->  | K161: =+IF(D161<>0,IF(J161<>0,ROUND(VLOOKUP(C161,Données!$A$4:$J$41,2,FALSE)*POWER(AVERAGE($R$44:$R$45)-J161,VLOOKUP(C161,Données!$A$4:$J$41,3,FALSE)),0)*D161+ROUND(VLOOKUP(C161,Données!$A$4:$J$41,4,FALSE)*POWER(AVERAGE($R$44:$R$45)-J161,VLOOKUP(C161,Données!$A$4:$J$41,5,FALSE)),0)*2,""),"") ->  | R161: 0 | U161: 0 | V161: 0 | Y161: 0 | BA161: 107 | BC161: 0 | BD161: 0 | BE161: 0 | BF161: 0
F162: =IF(C162<>0,"D"," ") ->  | K162: =+IF(D162<>0,IF(J162<>0,ROUND(VLOOKUP(C162,Données!$A$4:$J$41,2,FALSE)*POWER(AVERAGE($R$44:$R$45)-J162,VLOOKUP(C162,Données!$A$4:$J$41,3,FALSE)),0)*D162+ROUND(VLOOKUP(C162,Données!$A$4:$J$41,4,FALSE)*POWER(AVERAGE($R$44:$R$45)-J162,VLOOKUP(C162,Données!$A$4:$J$41,5,FALSE)),0)*2,""),"") ->  | R162: 0 | U162: 0 | V162: 0 | Y162: 0 | BA162: 108 | BC162: 0 | BD162: 0 | BE162: 0 | BF162: 0
F163: =IF(C163<>0,"D"," ") ->  | K163: =+IF(D163<>0,IF(J163<>0,ROUND(VLOOKUP(C163,Données!$A$4:$J$41,2,FALSE)*POWER(AVERAGE($R$44:$R$45)-J163,VLOOKUP(C163,Données!$A$4:$J$41,3,FALSE)),0)*D163+ROUND(VLOOKUP(C163,Données!$A$4:$J$41,4,FALSE)*POWER(AVERAGE($R$44:$R$45)-J163,VLOOKUP(C163,Données!$A$4:$J$41,5,FALSE)),0)*2,""),"") ->  | R163: 0 | U163: 0 | V163: 0 | Y163: 0 | BA163: 109 | BC163: 0 | BD163: 0 | BE163: 0 | BF163: 0
F164: =IF(C164<>0,"D"," ") ->  | K164: =+IF(D164<>0,IF(J164<>0,ROUND(VLOOKUP(C164,Données!$A$4:$J$41,2,FALSE)*POWER(AVERAGE($R$44:$R$45)-J164,VLOOKUP(C164,Données!$A$4:$J$41,3,FALSE)),0)*D164+ROUND(VLOOKUP(C164,Données!$A$4:$J$41,4,FALSE)*POWER(AVERAGE($R$44:$R$45)-J164,VLOOKUP(C164,Données!$A$4:$J$41,5,FALSE)),0)*2,""),"") ->  | R164: 0 | U164: 0 | V164: 0 | Y164: 0 | BA164: 110 | BC164: 0 | BD164: 0 | BE164: 0 | BF164: 0
O168: DS2-03
O169: DS2-03-4 | P169: 0025001
O170: DS2-03-6 | P170: 0025002
O171: DS2-03-8 | P171: 0025002
O172: DS2-03-10 | P172: 0025003
O173: DS2-03-12 | P173: 0025003
O174: DS2-03-14 | P174: 0025004
O175: DS2-03-16 | P175: 0025004
O176: DS2-03-18 | P176: 0025005
O177: DS2-06
O178: DS2-06-4 | P178: 0025011
O179: DS2-06-6 | P179: 0025012
O180: DS2-06-8 | P180: 0025012
O181: DS2-06-10 | P181: 0025013
O182: DS2-06-12 | P182: 0025013
O183: DS2-06-14 | P183: 0025014
O184: DS2-06-16 | P184: 0025014
O185: DS2-06-18 | P185: 0025015
O186: DS2-09
O187: DS2-09-4 | P187: 0025021
O188: DS2-09-6 | P188: 0025022
O189: DS2-09-8 | P189: 0025022
O190: DS2-09-10 | P190: 0025023
O191: DS2-09-12 | P191: 0025023
O192: DS2-09-14 | P192: 0025024
O193: DS2-09-16 | P193: 0025024
O194: DS2-09-18 | P194: 0025025
O195: DS2-12
O196: DS2-12-4 | P196: 0025071
O197: DS2-12-6 | P197: 0025072
O198: DS2-12-8 | P198: 0025072
O199: DS2-12-10 | P199: 0025073
O200: DS2-12-12 | P200: 0025073
O201: DS2-12-14 | P201: 0025074
O202: DS2-12-16 | P202: 0025074
O203: DS2-12-18 | P203: 0025075
O204: DS3-03
O205: DS3-03-4 | P205: 0025031
... 34 more rows

Sheet Données (hidden)
B1: '9090A19x ou 20x + 808020CD
B2: Panneau /ml | D2: Paire de collecteurs | I2: Manchons | J2: Largeur | K2: Collecteur relevé | U2: Longueur | V2: Position | X2: Collecteur | Z2: Isolant | AB2: diamétre
B3: K | C3: N | D3: K | E3: N | F3: Code Cache tube | G3: Quantité de référence dans la sélection | H3: Qté Caches tubes unitaire | J3: [m] | K3: Code travail | L3: Code cache collecteur | P3: Digit 1/2/3/4 | Q3: Digit 1 | R3: Digit 2 | S3: Digit 3 | T3: Digit 4 | U3: Digit 5 | V3: Digit 6 | X3: Digit 7 | Z3: Digit 8 | AB3: Digit 9
A4: DS18-3-030 | B4: 1.933 | C4: 1.159 | D4: 0.393 | E4: 1.216 | F4: 9090A161 | G4: =SUMIF(#REF!,Données!A4,#REF!) ->  | H4: 2 | I4: 3 | J4: 0.3 | K4: 808020CD | L4: 9090A191 | O4: DS18-3-030 | P4: =+CONCATENATE(Q4,R4,S4,T4) -> 09G12030 | Q4: 09G | R4: 1 | S4: 2 | T4: 030 | U4: 1 | V4: 1 | W4: FI | X4: N | Y4: B5 | Z4: 0 | AA4: SANS | AB4: 0 | AC4: Intermédiaire
A5: DS18-3-060 | B5: 3.247 | C5: 1.157 | D5: 0.779 | E5: 1.216 | F5: 9090A163 | G5: =SUMIF(#REF!,Données!A5,#REF!) ->  | H5: 2 | I5: 6 | J5: 0.6 | K5: 808020CD | L5: 9090A193 | O5: DS18-3-060 | P5: =+CONCATENATE(Q5,R5,S5,T5) -> 09G12060 | Q5: 09G | R5: 1 | S5: 2 | T5: 060 | U5: 2 | V5: 2 | W5: IN | X5: Q | Y5: B7 | Z5: 1 | AA5: 40 mm | AB5: 1 | AC5: 1/2''
A6: DS18-3-090 | B6: 4.448 | C6: 1.173 | D6: 1.177 | E6: 1.216 | F6: 9090A165 | G6: =SUMIF(#REF!,Données!A6,#REF!) ->  | H6: 2 | I6: 9 | J6: 0.9 | K6: 808020CD | L6: 9090A195 | O6: DS18-3-090 | P6: 09G12090 | Q6: 09G | R6: 1 | S6: 2 | T6: 090 | U6: 3 | V6: 3 | W6: ED | X6: S | Y6: D | Z6: 2 | AA6: 30 mm | AB6: 2 | AC6: 3/4''
A7: DS18-3-120 | B7: 5.731 | C7: 1.169 | D7: 1.582 | E7: 1.216 | F7: 9090A167 | G7: =SUMIF(#REF!,Données!A7,#REF!) ->  | H7: 4 | I7: 12 | J7: 1.2 | K7: 808020CD | L7: 9090A197 | O7: DS18-3-120 | P7: =+CONCATENATE(Q7,R7,S7,T7) -> 09G12120 | Q7: 09G | R7: 1 | S7: 2 | T7: 120 | U7: 4 | V7: 4 | W7: CO | X7: W | Y7: G | AB7: 3 | AC7: 1''
A8: DS18-3-150 | B8: 7.173 | C8: 1.164 | D8: 1.962 | E8: 1.216 | F8: 9090A169 | G8: =SUMIF(#REF!,Données!A8,#REF!) ->  | H8: 4 | I8: 15 | J8: 1.5 | K8: 808020CD | L8: 9090A199 | O8: DS18-3-150 | P8: 09G12150 | Q8: 09G | R8: 1 | S8: 2 | T8: 150 | U8: 5 | X8: M | Y8: NH | AB8: 4 | AC8: 1''1/4
A9: DS18-4-030 | B9: 2.075 | C9: 1.161 | D9: 0.435 | E9: 1.235 | F9: 9090A171 | G9: =SUMIF(#REF!,Données!A9,#REF!) ->  | H9: 2 | I9: 4 | J9: 0.3 | K9: 808020CD | L9: 9090A201 | O9: DS18-4-030 | P9: 09G11030 | Q9: 09G | R9: 1 | S9: 1 | T9: 030 | U9: 6 | X9: P | Y9: B6 | AB9: 3 | AC9: indiquer le débit selon NdC
A10: DS18-4-060 | B10: 3.354 | C10: 1.175 | D10: 0.861 | E10: 1.235 | F10: 9090A173 | G10: =SUMIF(#REF!,Données!A10,#REF!) ->  | H10: 2 | I10: 8 | J10: 0.6 | K10: 808020CD | L10: 9090A203 | O10: DS18-4-060 | P10: 09G11060 | Q10: 09G | R10: 1 | S10: 1 | T10: 060 | X10: R | Y10: B8
A11: DS18-4-090 | B11: 4.569 | C11: 1.182 | D11: 1.305 | E11: 1.235 | F11: 9090A175 | G11: =SUMIF(#REF!,Données!A11,#REF!) ->  | H11: 2 | I11: 12 | J11: 0.9 | K11: 808020CD | L11: 9090A205 | O11: DS18-4-090 | P11: 09G11090 | Q11: 09G | R11: 1 | S11: 1 | T11: 090 | X11: T | Y11: D+D
A12: DS18-4-120 | B12: 5.852 | C12: 1.182 | D12: 1.757 | E12: 1.235 | F12: 9090A177 | G12: =SUMIF(#REF!,Données!A12,#REF!) ->  | H12: 4 | I12: 16 | J12: 1.2 | K12: 808020CD | L12: 9090A207 | O12: DS18-4-120 | P12: 09G11120 | Q12: 09G | R12: 1 | S12: 1 | T12: 120 | X12: U | Y12: 56
A13: DS18-3-030-perforé | B13: 1.933 | C13: 1.159 | D13: 0.393 | E13: 1.216 | F13: 9090A161 | G13: =SUMIF(#REF!,Données!A13,#REF!) ->  | H13: 2 | I13: 3 | J13: 0.3 | K13: 808020CD | L13: 9090A191 | O13: DS18-3-030-perforé | P13: 09F12030 | Q13: 09F | R13: 1 | S13: 2 | T13: 030 | X13: V | Y13: 78
A14: DS18-3-060-perforé | B14: 3.247 | C14: 1.157 | D14: 0.779 | E14: 1.216 | F14: 9090A163 | G14: =SUMIF(#REF!,Données!A14,#REF!) ->  | H14: 2 | I14: 6 | J14: 0.6 | K14: 808020CD | L14: 9090A193 | O14: DS18-3-060-perforé | P14: 09F12060 | Q14: 09F | R14: 1 | S14: 2 | T14: 060
A15: DS18-3-090-perforé | B15: 4.448 | C15: 1.173 | D15: 1.177 | E15: 1.216 | F15: 9090A165 | G15: =SUMIF(#REF!,Données!A15,#REF!) ->  | H15: 2 | I15: 9 | J15: 0.9 | K15: 808020CD | L15: 9090A195 | O15: DS18-3-090-perforé | P15: 09F12090 | Q15: 09F | R15: 1 | S15: 2 | T15: 090 | Y15: Complet
A16: DS28-2-030 | B16: 1.794 | C16: 1,165 | D16: 0,377 | E16: 1,257 | F16: 9090A181 | G16: =SUMIF(#REF!,Données!A16,#REF!) ->  | H16: 2 | I16: 2 | J16: 0.3 | K16: 808020CD | L16: 9090A211 | O16: DS28-2-030 | P16: 09G23030 | Q16: 09G | R16: 2 | S16: 3 | T16: 030 | X16: S | Y16: D
A17: DS28-2-045 | B17: 2.514 | C17: 1,156 | D17: 0,567 | E17: 1,257 | F17: 9090A182 | G17: =SUMIF(#REF!,Données!A17,#REF!) ->  | H17: 2 | I17: 3 | J17: 0.45 | K17: 808020CD | L17: 9090A212 | O17: DS28-2-045 | P17: 09G23045 | Q17: 09G | R17: 2 | S17: 3 | T17: 045 | X17: T | Y17: D+D
A18: DS28-2-060 | B18: 3,09 | C18: 1,165 | D18: 0,747 | E18: 1,257 | F18: 9090A183 | G18: =SUMIF(#REF!,Données!A18,#REF!) ->  | H18: 2 | I18: 4 | J18: 0.6 | K18: 808020CD | L18: 9090A213 | O18: DS28-2-060 | P18: 09G23060 | Q18: 09G | R18: 2 | S18: 3 | T18: 060 | X18: U | Y18: B
A19: DS28-2-075 | B19: 3,938 | C19: 1,162 | D19: 0,944 | E19: 1,257 | F19: 9090A184 | G19: =SUMIF(#REF!,Données!A19,#REF!) ->  | H19: 2 | I19: 5 | J19: 0.75 | K19: 808020CD | L19: 9090A214 | O19: DS28-2-075 | P19: 09G23075 | Q19: 09G | R19: 2 | S19: 3 | T19: 075 | X19: W | Y19: G
A20: DS28-2-090 | B20: 4,75 | C20: 1,155 | D20: 1,132 | E20: 1,257 | F20: 9090A185 | G20: =SUMIF(#REF!,Données!A20,#REF!) ->  | H20: 2 | I20: 6 | J20: 0.9 | K20: 808020CD | L20: 9090A215 | O20: DS28-2-090 | P20: 09G23090 | Q20: 09G | R20: 2 | S20: 3 | T20: 090 | X20: M | Y20: NH
A21: DS28-2-105 | B21: 5,137 | C21: 1,169 | D21: 1,320 | E21: 1,257 | F21: 9090A186 | G21: =SUMIF(#REF!,Données!A21,#REF!) ->  | H21: 4 | I21: 7 | J21: 1.05 | K21: 808020CD | L21: 9090A216 | O21: DS28-2-105 | P21: 09G23105 | Q21: 09G | R21: 2 | S21: 3 | T21: 105
A22: DS28-2-120 | B22: 5,838 | C22: 1,17 | D22: 1,526 | E22: 1,257 | F22: 9090A187 | G22: =SUMIF(#REF!,Données!A22,#REF!) ->  | H22: 4 | I22: 8 | J22: 1.2 | K22: 808020CD | L22: 9090A217 | O22: DS28-2-120 | P22: 09G23120 | Q22: 09G | R22: 2 | S22: 3 | T22: 120 | Y22: First
A23: DS28-2-135 | B23: 6,472 | C23: 1,17 | D23: 1,698 | E23: 1,257 | F23: 9090A188 | G23: =SUMIF(#REF!,Données!A23,#REF!) ->  | H23: 4 | I23: 9 | J23: 1.35 | K23: 808020CD | L23: 9090A218 | O23: DS28-2-135 | P23: 09G23135 | Q23: 09G | R23: 2 | S23: 3 | T23: 135 | X23: N | Y23: B
A24: DS28-2-150 | B24: 7,075 | C24: 1,17 | D24: 1,887 | E24: 1,257 | F24: 9090A189 | G24: =SUMIF(#REF!,Données!A24,#REF!) ->  | H24: 4 | I24: 10 | J24: 1.5 | K24: 808020CD | L24: 9090A219 | O24: DS28-2-150 | P24: 09G23150 | Q24: 09G | R24: 2 | S24: 3 | T24: 150 | X24: S | Y24: D
A25: DS28-2-030_SP | B25: 1.794 | C25: 1,165 | D25: 0,377 | E25: 1,257 | F25: 9090A181 | G25: =SUMIF(#REF!,Données!A25,#REF!) ->  | H25: 2 | I25: 2 | J25: 0.3 | K25: 808020CD | L25: 9090A211 | O25: =+O16&"_SP" -> DS28-2-030_SP | P25: =+CONCATENATE(Q25,R25,S25,T25) -> 09G33030 | Q25: 09G | R25: 3 | S25: 3 | T25: 030 | X25: W | Y25: G
A26: DS28-2-045_SP | B26: 2.514 | C26: 1,156 | D26: 0,567 | E26: 1,257 | F26: 9090A182 | G26: =SUMIF(#REF!,Données!A26,#REF!) ->  | H26: 2 | I26: 3 | J26: 0.45 | K26: 808020CD | L26: 9090A212 | O26: DS28-2-045_SP | P26: 09G33045 | Q26: 09G | R26: 3 | S26: 3 | T26: 045 | X26: M | Y26: NH
A27: DS28-2-060_SP | B27: 3,09 | C27: 1,165 | D27: 0,747 | E27: 1,257 | F27: 9090A183 | G27: =SUMIF(#REF!,Données!A27,#REF!) ->  | H27: 2 | I27: 4 | J27: 0.6 | K27: 808020CD | L27: 9090A213 | O27: DS28-2-060_SP | P27: 09G33060 | Q27: 09G | R27: 3 | S27: 3 | T27: 060 | X27: S | Y27: D+D
A28: DS28-2-075_SP | B28: 3,938 | C28: 1,162 | D28: 0,944 | E28: 1,257 | F28: 9090A184 | G28: =SUMIF(#REF!,Données!A28,#REF!) ->  | H28: 2 | I28: 5 | J28: 0.75 | K28: 808020CD | L28: 9090A214 | O28: DS28-2-075_SP | P28: 09G33075 | Q28: 09G | R28: 3 | S28: 3 | T28: 075
A29: DS28-2-090_SP | B29: 4,75 | C29: 1,155 | D29: 1,132 | E29: 1,257 | F29: 9090A185 | G29: =SUMIF(#REF!,Données!A29,#REF!) ->  | H29: 2 | I29: 6 | J29: 0.9 | K29: 808020CD | L29: 9090A215 | O29: DS28-2-090_SP | P29: 09G33090 | Q29: 09G | R29: 3 | S29: 3 | T29: 090 | Y29: Final
A30: DS28-2-105_SP | B30: 5,137 | C30: 1,169 | D30: 1,320 | E30: 1,257 | F30: 9090A186 | G30: =SUMIF(#REF!,Données!A30,#REF!) ->  | H30: 4 | I30: 7 | J30: 1.05 | K30: 808020CD | L30: 9090A216 | O30: DS28-2-105_SP | P30: 09G33105 | Q30: 09G | R30: 3 | S30: 3 | T30: 105 | X30: P | Y30: B
A31: DS28-2-120_SP | B31: 5,838 | C31: 1,17 | D31: 1,526 | E31: 1,257 | F31: 9090A187 | G31: =SUMIF(#REF!,Données!A31,#REF!) ->  | H31: 4 | I31: 8 | J31: 1.2 | K31: 808020CD | L31: 9090A217 | O31: DS28-2-120_SP | P31: 09G33120 | Q31: 09G | R31: 3 | S31: 3 | T31: 120 | X31: S | Y31: D
A32: DS28-2-135_SP | B32: 6,472 | C32: 1,17 | D32: 1,698 | E32: 1,257 | F32: 9090A188 | G32: =SUMIF(#REF!,Données!A32,#REF!) ->  | H32: 4 | I32: 9 | J32: 1.35 | K32: 808020CD | L32: 9090A218 | O32: DS28-2-135_SP | P32: 09G33135 | Q32: 09G | R32: 3 | S32: 3 | T32: 135 | X32: S | Y32: G
A33: DS28-2-150_SP | B33: 7,075 | C33: 1,17 | D33: 1,887 | E33: 1,257 | F33: 9090A189 | G33: =SUMIF(#REF!,Données!A33,#REF!) ->  | H33: 4 | I33: 10 | J33: 1.5 | K33: 808020CD | L33: 9090A219 | O33: DS28-2-150_SP | P33: 09G33150 | Q33: 09G | R33: 3 | S33: 3 | T33: 150 | X33: M | Y33: NH
A34: DS2-03 | B34: 1.6346 | C34: 1.147 | D34: 0.80168 | E34: 1.2033 | H34: 2 | I34: 2 | J34: 0.3 | K34: 808020CD | X34: T | Y34: D+D
A35: DS2-06 | B35: 2.8547 | C35: 1.1519 | D35: 1.39832 | E35: 1.2349 | H35: 4 | I35: 4 | J35: 0.6 | K35: 808020CD
A36: DS2-09 | B36: 3.924 | C36: 1.1577 | D36: 2.21298 | E36: 1.2198 | H36: 6 | I36: 6 | J36: 0.9 | K36: 808020CD
A37: DS2-12 | B37: 5.4315 | C37: 1.1489 | D37: 2.82062 | E37: 1.2161 | H37: 8 | I37: 8 | J37: 1.2 | K37: 808020CD
A38: DS3-03 | B38: 1.7367 | C38: 1.1771 | D38: 0.81147 | E38: 1.2221 | H38: 2 | I38: 3 | J38: 0.3 | K38: 808020CD
A39: DS3-06 | B39: 3.0624 | C39: 1.1786 | D39: 1.47147 | E39: 1.2196 | H39: 4 | I39: 6 | J39: 0.6 | K39: 808020CD
A40: DS3-09 | B40: 4.4192 | C40: 1.1807 | D40: 2.60469 | E40: 1.1849 | H40: 6 | I40: 9 | J40: 0.9 | K40: 808020CD
A41: DS3-12 | B41: 5.7425 | C41: 1.1757 | D41: 2.93865 | E41: 1.2237 | H41: 8 | I41: 12 | J41: 1.2 | K41: 808020CD
P44: Complet | R44: Entrée | T44: Inter | V44: Final | Y44: Code RAL | Z44: Nom officiel
B45: PULSAR | P45: Qté | Q45: long. | R45: Qté | S45: long. | T45: Qté | U45: long. | V45: Qté | W45: long. | Y45: RAL 1000 | Z45: Beige vert | AA45: =RIGHT(Y45,4) -> 1000 | AB45: =Y45&" "&Z45 -> RAL 1000 Beige vert
A46: DS18303 | C46: P | D46: W | E46: R | O46: 3 | P46: 1 | Q46: 3 | R46: 0 | S46: 0 | T46: 0 | U46: 0 | V46: 0 | W46: 0 | Y46: RAL 1001 | Z46: Beige | AA46: =RIGHT(Y46,4) -> 1001 | AB46: =Y46&" "&Z46 -> RAL 1001 Beige
A47: DS18306 | B47: 0 | C47: 595 | D47: 610 | E47: =C47+60 -> 655 | O47: 4 | P47: 1 | Q47: 4 | R47: 0 | S47: 0 | T47: 0 | U47: 0 | V47: 0 | W47: 0 | Y47: RAL 1002 | Z47: Jaune sable | AA47: 1002 | AB47: RAL 1002 Jaune sable
A48: DS18309 | B48: 1 | C48: 1195 | D48: 1234 | E48: =C48+60 -> 1255 | O48: 5 | P48: 1 | Q48: 5 | R48: 0 | S48: 0 | T48: 0 | U48: 0 | V48: 0 | W48: 0 | Y48: RAL 1003 | Z48: Jaune de sécurité | AA48: 1003 | AB48: RAL 1003 Jaune de sécurité
A49: DS18312 | B49: 2 | C49: 1795 | D49: 1858 | E49: =C49+60 -> 1855 | O49: 6 | P49: 1 | Q49: 6 | R49: 0 | S49: 0 | T49: 0 | U49: 0 | V49: 0 | W49: 0 | Y49: RAL 1004 | Z49: Jaune or | AA49: 1004 | AB49: RAL 1004 Jaune or
A50: DS18403 | B50: 3 | C50: 2395 | D50: 2482 | E50: =C50+60 -> 2455 | O50: 7 | P50: 0 | Q50: 0 | R50: 0 | S50: 0 | T50: 0 | U50: 0 | V50: 1 | W50: 3 | Y50: RAL 1005 | Z50: Jaune miel | AA50: 1005 | AB50: RAL 1005 Jaune miel
A51: DS18406 | B51: 4 | C51: 2995 | D51: 3106 | E51: =C51+60 -> 3055 | O51: 8 | P51: 0 | Q51: 0 | R51: 0 | S51: 0 | T51: 0 | U51: 0 | V51: 1 | W51: 4 | Y51: RAL 1006 | Z51: Jaune maïs | AA51: 1006 | AB51: RAL 1006 Jaune maïs
A52: DS18409 | O52: 9 | P52: 0 | Q52: 0 | R52: 0 | S52: 0 | T52: 0 | U52: 0 | V52: 1 | W52: 5 | Y52: RAL 1007 | Z52: Jaune narcisse | AA52: 1007 | AB52: RAL 1007 Jaune narcisse
A53: DS18412 | O53: 10 | P53: 0 | Q53: 0 | R53: 0 | S53: 0 | T53: 0 | U53: 0 | V53: 1 | W53: 6 | Y53: RAL 1011 | Z53: Brun beige | AA53: 1011 | AB53: RAL 1011 Brun beige
O54: 11 | P54: 0 | Q54: 0 | R54: 0 | S54: 0 | T54: 0 | U54: 0 | V54: 1 | W54: 5 | Y54: RAL 1012 | Z54: Jaune citron | AA54: 1012 | AB54: RAL 1012 Jaune citron
O55: 12 | P55: 0 | Q55: 0 | R55: 0 | S55: 0 | T55: 0 | U55: 0 | V55: 1 | W55: 6 | Y55: RAL 1013 | Z55: Blanc perlé | AA55: 1013 | AB55: RAL 1013 Blanc perlé
O56: 13 | P56: 0 | Q56: 0 | R56: 1 | S56: 4 | T56: 1 | U56: 5 | V56: 1 | W56: 4 | Y56: RAL 1014 | Z56: Ivoire | AA56: 1014 | AB56: RAL 1014 Ivoire
O57: 14 | P57: 0 | Q57: 0 | R57: 1 | S57: 4 | T57: 1 | U57: 6 | V57: 1 | W57: 4 | Y57: RAL 1015 | Z57: Ivoire clair | AA57: 1015 | AB57: RAL 1015 Ivoire clair
O58: 15 | P58: 0 | Q58: 0 | R58: 1 | S58: 4 | T58: 1 | U58: 5 | V58: 1 | W58: 6 | Y58: RAL 1016 | Z58: Jaune soufre | AA58: 1016 | AB58: RAL 1016 Jaune soufre
O59: 16 | P59: 0 | Q59: 0 | R59: 1 | S59: 4 | T59: 1 | U59: 6 | V59: 1 | W59: 6 | Y59: RAL 1017 | Z59: Jaune safran | AA59: 1017 | AB59: RAL 1017 Jaune safran
O60: 17 | P60: 0 | Q60: 0 | R60: 1 | S60: 6 | T60: 1 | U60: 5 | V60: 1 | W60: 6 | Y60: RAL 1018 | Z60: Jaune zinc | AA60: 1018 | AB60: RAL 1018 Jaune zinc
O61: 18 | P61: 0 | Q61: 0 | R61: 1 | S61: 6 | T61: 1 | U61: 6 | V61: 1 | W61: 6 | Y61: RAL 1019 | Z61: Beige gris | AA61: 1019 | AB61: RAL 1019 Beige gris
O62: 19 | P62: 0 | Q62: 0 | R62: 1 | S62: 4 | T62: 2 | U62: 6 | V62: 1 | W62: 3 | Y62: RAL 1020 | Z62: Jaune olive | AA62: 1020 | AB62: RAL 1020 Jaune olive
O63: 20 | P63: 0 | Q63: 0 | R63: 1 | S63: 4 | T63: 2 | U63: 6 | V63: 1 | W63: 4 | Y63: RAL 1021 | Z63: Jaune colza | AA63: 1021 | AB63: RAL 1021 Jaune colza
O64: 21 | P64: 0 | Q64: 0 | R64: 1 | S64: 6 | T64: 2 | U64: 6 | V64: 1 | W64: 3 | Y64: RAL 1023 | Z64: Jaune trafic | AA64: 1023 | AB64: RAL 1023 Jaune trafic
A65: OPTIONAL | B65: 6090141 | C65: PRESSFITTING X DS4.1 D 18 | O65: 22 | P65: 0 | Q65: 0 | R65: 1 | S65: 4 | T65: 2 | U65: 6 | V65: 1 | W65: 6 | Y65: RAL 1024 | Z65: Jaune ocre | AA65: 1024 | AB65: RAL 1024 Jaune ocre
A66: OPTIONAL | B66: 6090142 | C66: PRESSFITTING X DS4.1 D 28 | O66: 23 | P66: 0 | Q66: 0 | R66: 1 | S66: 6 | T66: 2 | U66: 6 | V66: 1 | W66: 5 | Y66: RAL 1026 | Z66: Jaune fluo | AA66: 1026 | AB66: RAL 1026 Jaune fluo
A67: OPTIONAL | B67: 9090A001 | C67: CAPOT PROTECTION ANTI-BALLON DS 4.1 030 - 1 m | O67: 24 | P67: 0 | Q67: 0 | R67: 1 | S67: 6 | T67: 2 | U67: 6 | V67: 1 | W67: 6 | Y67: RAL 1027 | Z67: Jaune curry | AA67: 1027 | AB67: RAL 1027 Jaune curry
A68: OPTIONAL | B68: 9090A002 | C68: CAPOT PROTECTION ANTI-BALLON DS 4.1 045 - 1 m | O68: 25 | P68: 0 | Q68: 0 | R68: 1 | S68: 4 | T68: 3 | U68: 6 | V68: 1 | W68: 3 | Y68: RAL 1028 | Z68: Jaune melon | AA68: 1028 | AB68: RAL 1028 Jaune melon
A69: OPTIONAL | B69: 9090A003 | C69: CAPOT PROTECTION ANTI-BALLON DS 4.1 060 - 1 m | O69: 26 | P69: 0 | Q69: 0 | R69: 1 | S69: 4 | T69: 3 | U69: 6 | V69: 1 | W69: 4 | Y69: RAL 1032 | Z69: Jaune genêt | AA69: 1032 | AB69: RAL 1032 Jaune genêt
A70: OPTIONAL | B70: 9090A004 | C70: CAPOT PROTECTION ANTI-BALLON DS 4.1 075 - 1 m | O70: 27 | P70: 0 | Q70: 0 | R70: 1 | S70: 6 | T70: 3 | U70: 6 | V70: 1 | W70: 3 | Y70: RAL 1033 | Z70: Jaune dahlia | AA70: 1033 | AB70: RAL 1033 Jaune dahlia
A71: OPTIONAL | B71: 9090A005 | C71: CAPOT PROTECTION ANTI-BALLON DS 4.1 090 - 1 m | O71: 28 | P71: 0 | Q71: 0 | R71: 1 | S71: 4 | T71: 3 | U71: 6 | V71: 1 | W71: 6 | Y71: RAL 1034 | Z71: Jaune pastel | AA71: 1034 | AB71: RAL 1034 Jaune pastel
A72: OPTIONAL | B72: 9090A006 | C72: CAPOT PROTECTION ANTI-BALLON DS 4.1 105 - 1 m | O72: 29 | P72: 0 | Q72: 0 | R72: 1 | S72: 6 | T72: 3 | U72: 6 | V72: 1 | W72: 5 | Y72: RAL 1035 | Z72: Beige perlé | AA72: 1035 | AB72: RAL 1035 Beige perlé
A73: OPTIONAL | B73: 9090A007 | C73: CAPOT PROTECTION ANTI-BALLON DS 4.1 120 - 1 m | O73: 30 | P73: 0 | Q73: 0 | R73: 1 | S73: 6 | T73: 3 | U73: 6 | V73: 1 | W73: 6 | Y73: RAL 1036 | Z73: Or perlé | AA73: 1036 | AB73: RAL 1036 Or perlé
A74: OPTIONAL | B74: 9090A008 | C74: CAPOT PROTECTION ANTI-BALLON DS 4.1 135 - 1 m | O74: 31 | P74: 0 | Q74: 0 | R74: 1 | S74: 4 | T74: 4 | U74: 6 | V74: 1 | W74: 3 | Y74: RAL 1037 | Z74: Jaune soleil | AA74: 1037 | AB74: RAL 1037 Jaune soleil
A75: OPTIONAL | B75: 9090A009 | C75: CAPOT PROTECTION ANTI-BALLON DS 4.1 150 - 1 m | O75: 32 | P75: 0 | Q75: 0 | R75: 1 | S75: 4 | T75: 4 | U75: 6 | V75: 1 | W75: 4 | Y75: RAL 2000 | Z75: Orange jaune | AA75: 2000 | AB75: RAL 2000 Orange jaune
A76: OPTIONAL | B76: 9090A011 | C76: CAPOT PROTECTION ANTI-BALLON DS 4.1 030 - 2 m | O76: 33 | P76: 0 | Q76: 0 | R76: 1 | S76: 6 | T76: 4 | U76: 6 | V76: 1 | W76: 3 | Y76: RAL 2001 | Z76: Orange rouge | AA76: 2001 | AB76: RAL 2001 Orange rouge
A77: OPTIONAL | B77: 9090A012 | C77: CAPOT PROTECTION ANTI-BALLON DS 4.1 045 - 2 m | O77: 34 | P77: 0 | Q77: 0 | R77: 1 | S77: 4 | T77: 4 | U77: 6 | V77: 1 | W77: 6 | Y77: RAL 2002 | Z77: Orange sang | AA77: 2002 | AB77: RAL 2002 Orange sang
A78: OPTIONAL | B78: 9090A013 | C78: CAPOT PROTECTION ANTI-BALLON DS 4.1 060 - 2 m | O78: 35 | P78: 0 | Q78: 0 | R78: 1 | S78: 6 | T78: 4 | U78: 6 | V78: 1 | W78: 5 | Y78: RAL 2003 | Z78: Orange pastel | AA78: 2003 | AB78: RAL 2003 Orange pastel
A79: OPTIONAL | B79: 9090A014 | C79: CAPOT PROTECTION ANTI-BALLON DS 4.1 075 - 2 m | O79: 36 | P79: 0 | Q79: 0 | R79: 1 | S79: 6 | T79: 4 | U79: 6 | V79: 1 | W79: 6 | Y79: RAL 2004 | Z79: Orange pur | AA79: 2004 | AB79: RAL 2004 Orange pur
A80: OPTIONAL | B80: 9090A015 | C80: CAPOT PROTECTION ANTI-BALLON DS 4.1 090 - 2 m | O80: 37 | P80: 0 | Q80: 0 | R80: 1 | S80: 4 | T80: 5 | U80: 6 | V80: 1 | W80: 3 | Y80: RAL 2005 | Z80: Orange fluo | AA80: 2005 | AB80: RAL 2005 Orange fluo
A81: OPTIONAL | B81: 9090A016 | C81: CAPOT PROTECTION ANTI-BALLON DS 4.1 105 - 2 m | O81: 38 | P81: 0 | Q81: 0 | R81: 1 | S81: 4 | T81: 5 | U81: 6 | V81: 1 | W81: 4 | Y81: RAL 2007 | Z81: Orange vif fluo | AA81: 2007 | AB81: RAL 2007 Orange vif fluo
A82: OPTIONAL | B82: 9090A017 | C82: CAPOT PROTECTION ANTI-BALLON DS 4.1 120 - 2 m | O82: 39 | P82: 0 | Q82: 0 | R82: 1 | S82: 6 | T82: 5 | U82: 6 | V82: 1 | W82: 3 | Y82: RAL 2008 | Z82: Orange rouge clair | AA82: 2008 | AB82: RAL 2008 Orange rouge clair
A83: OPTIONAL | B83: 9090A018 | C83: CAPOT PROTECTION ANTI-BALLON DS 4.1 135 - 2 m | O83: 40 | P83: 0 | Q83: 0 | R83: 1 | S83: 4 | T83: 5 | U83: 6 | V83: 1 | W83: 6 | Y83: RAL 2009 | Z83: Orange trafic | AA83: 2009 | AB83: RAL 2009 Orange trafic
A84: OPTIONAL | B84: 9090A019 | C84: CAPOT PROTECTION ANTI-BALLON DS 4.1 150 - 2 m | O84: 41 | P84: 0 | Q84: 0 | R84: 1 | S84: 6 | T84: 5 | U84: 6 | V84: 1 | W84: 5 | Y84: RAL 2010 | Z84: Orange signal | AA84: 2010 | AB84: RAL 2010 Orange signal
A85: OPTIONAL | B85: 9090A021 | C85: CAPOT PROTECTION ANTI-BALLON DS 4.1 030 - 3 m | O85: 42 | P85: 0 | Q85: 0 | R85: 1 | S85: 6 | T85: 5 | U85: 6 | V85: 1 | W85: 6 | Y85: RAL 2011 | Z85: Orange profond | AA85: 2011 | AB85: RAL 2011 Orange profond
A86: OPTIONAL | B86: 9090A022 | C86: CAPOT PROTECTION ANTI-BALLON DS 4.1 045 - 3 m | O86: 43 | P86: 0 | Q86: 0 | R86: 1 | S86: 4 | T86: 6 | U86: 6 | V86: 1 | W86: 3 | Y86: RAL 2012 | Z86: Orange saumon | AA86: 2012 | AB86: RAL 2012 Orange saumon
A87: OPTIONAL | B87: 9090A023 | C87: CAPOT PROTECTION ANTI-BALLON DS 4.1 060 - 3 m | O87: 44 | P87: 0 | Q87: 0 | R87: 1 | S87: 4 | T87: 6 | U87: 6 | V87: 1 | W87: 4 | Y87: RAL 2013 | Z87: Orange perlé | AA87: 2013 | AB87: RAL 2013 Orange perlé
A88: OPTIONAL | B88: 9090A024 | C88: CAPOT PROTECTION ANTI-BALLON DS 4.1 075 - 3 m | O88: 45 | P88: 0 | Q88: 0 | R88: 1 | S88: 6 | T88: 6 | U88: 6 | V88: 1 | W88: 3 | Y88: RAL 3000 | Z88: Rouge feu | AA88: 3000 | AB88: RAL 3000 Rouge feu
A89: OPTIONAL | B89: 9090A025 | C89: CAPOT PROTECTION ANTI-BALLON DS 4.1 090 - 3 m | O89: 46 | P89: 0 | Q89: 0 | R89: 1 | S89: 4 | T89: 6 | U89: 6 | V89: 1 | W89: 6 | Y89: RAL 3001 | Z89: Rouge signal | AA89: 3001 | AB89: RAL 3001 Rouge signal
A90: OPTIONAL | B90: 9090A026 | C90: CAPOT PROTECTION ANTI-BALLON DS 4.1 105 - 3 m | O90: 47 | P90: 0 | Q90: 0 | R90: 1 | S90: 6 | T90: 6 | U90: 6 | V90: 1 | W90: 5 | Y90: RAL 3002 | Z90: Rouge carmin | AA90: 3002 | AB90: RAL 3002 Rouge carmin
A91: OPTIONAL | B91: 9090A027 | C91: CAPOT PROTECTION ANTI-BALLON DS 4.1 120 - 3 m | O91: 48 | P91: 0 | Q91: 0 | R91: 1 | S91: 6 | T91: 6 | U91: 6 | V91: 1 | W91: 6 | Y91: RAL 3003 | Z91: Rouge rubis | AA91: 3003 | AB91: RAL 3003 Rouge rubis
A92: OPTIONAL | B92: 9090A028 | C92: CAPOT PROTECTION ANTI-BALLON DS 4.1 135 - 3 m | O92: 49 | P92: 0 | Q92: 0 | R92: 1 | S92: 4 | T92: 7 | U92: 6 | V92: 1 | W92: 3 | Y92: RAL 3004 | Z92: Rouge pourpre | AA92: 3004 | AB92: RAL 3004 Rouge pourpre
A93: OPTIONAL | B93: 9090A029 | C93: CAPOT PROTECTION ANTI-BALLON DS 4.1 150 - 3 m | O93: 50 | P93: 0 | Q93: 0 | R93: 1 | S93: 4 | T93: 7 | U93: 6 | V93: 1 | W93: 4 | Y93: RAL 3005 | Z93: Rouge vin | AA93: 3005 | AB93: RAL 3005 Rouge vin
A94: OPTIONAL | B94: 9090A031 | C94: CAPOT PROTECTION ANTI-BALLON DS 4.1 030 - 4 m | O94: =+O93+1 -> 51 | P94: 0 | Q94: 0 | R94: 1 | S94: 6 | T94: 7 | U94: 6 | V94: 1 | W94: 3 | Y94: RAL 3007 | Z94: Rouge noir | AA94: 3007 | AB94: RAL 3007 Rouge noir
A95: OPTIONAL | B95: 9090A032 | C95: CAPOT PROTECTION ANTI-BALLON DS 4.1 045 - 4 m | O95: =+O94+1 -> 52 | P95: 0 | Q95: 0 | R95: 1 | S95: 4 | T95: 7 | U95: 6 | V95: 1 | W95: 6 | Y95: RAL 3009 | Z95: Rouge oxyde | AA95: 3009 | AB95: RAL 3009 Rouge oxyde
A96: OPTIONAL | B96: 9090A033 | C96: CAPOT PROTECTION ANTI-BALLON DS 4.1 060 - 4 m | O96: 53 | P96: 0 | Q96: 0 | R96: 1 | S96: 6 | T96: 7 | U96: 6 | V96: 1 | W96: 5 | Y96: RAL 3011 | Z96: Rouge brun | AA96: 3011 | AB96: RAL 3011 Rouge brun
A97: OPTIONAL | B97: 9090A034 | C97: CAPOT PROTECTION ANTI-BALLON DS 4.1 075 - 4 m | O97: 54 | P97: 0 | Q97: 0 | R97: 1 | S97: 6 | T97: 7 | U97: 6 | V97: 1 | W97: 6 | Y97: RAL 3012 | Z97: Rouge beige | AA97: 3012 | AB97: RAL 3012 Rouge beige
A98: OPTIONAL | B98: 9090A035 | C98: CAPOT PROTECTION ANTI-BALLON DS 4.1 090 - 4 m | O98: 55 | P98: 0 | Q98: 0 | R98: 1 | S98: 4 | T98: 8 | U98: 6 | V98: 1 | W98: 3 | Y98: RAL 3013 | Z98: Rouge tomate | AA98: 3013 | AB98: RAL 3013 Rouge tomate
A99: OPTIONAL | B99: 9090A036 | C99: CAPOT PROTECTION ANTI-BALLON DS 4.1 105 - 4 m | O99: 56 | P99: 0 | Q99: 0 | R99: 1 | S99: 4 | T99: 8 | U99: 6 | V99: 1 | W99: 4 | Y99: RAL 3014 | Z99: Vieux rose | AA99: 3014 | AB99: RAL 3014 Vieux rose
A100: OPTIONAL | B100: 9090A037 | C100: CAPOT PROTECTION ANTI-BALLON DS 4.1 120 - 4 m | O100: 57 | P100: 0 | Q100: 0 | R100: 1 | S100: 6 | T100: 8 | U100: 6 | V100: 1 | W100: 3 | Y100: RAL 3015 | Z100: Rose clair | AA100: 3015 | AB100: RAL 3015 Rose clair
A101: OPTIONAL | B101: 9090A038 | C101: CAPOT PROTECTION ANTI-BALLON DS 4.1 135 - 4 m | O101: 58 | P101: 0 | Q101: 0 | R101: 1 | S101: 4 | T101: 8 | U101: 6 | V101: 1 | W101: 6 | Y101: RAL 3016 | Z101: Rouge corail | AA101: 3016 | AB101: RAL 3016 Rouge corail
A102: OPTIONAL | B102: 9090A039 | C102: CAPOT PROTECTION ANTI-BALLON DS 4.1 150 - 4 m | O102: 59 | P102: 0 | Q102: 0 | R102: 1 | S102: 6 | T102: 8 | U102: 6 | V102: 1 | W102: 5 | Y102: RAL 3017 | Z102: Rose framboise | AA102: 3017 | AB102: RAL 3017 Rose framboise
A103: OPTIONAL | B103: 9090A041 | C103: CAPOT PROTECTION ANTI-BALLON DS 4.1 030 - 5 m | O103: 60 | P103: 0 | Q103: 0 | R103: 1 | S103: 6 | T103: 8 | U103: 6 | V103: 1 | W103: 6 | Y103: RAL 3018 | Z103: Rouge fraise | AA103: 3018 | AB103: RAL 3018 Rouge fraise
A104: OPTIONAL | B104: 9090A042 | C104: CAPOT PROTECTION ANTI-BALLON DS 4.1 045 - 5 m | O104: 61 | P104: 0 | Q104: 0 | R104: 1 | S104: 4 | T104: 9 | U104: 6 | V104: 1 | W104: 3 | Y104: RAL 3020 | Z104: Rouge trafic | AA104: 3020 | AB104: RAL 3020 Rouge trafic
A105: OPTIONAL | B105: 9090A043 | C105: CAPOT PROTECTION ANTI-BALLON DS 4.1 060 - 5 m | O105: 62 | P105: 0 | Q105: 0 | R105: 1 | S105: 4 | T105: 9 | U105: 6 | V105: 1 | W105: 4 | Y105: RAL 3022 | Z105: Rouge saumon | AA105: 3022 | AB105: RAL 3022 Rouge saumon
A106: OPTIONAL | B106: 9090A044 | C106: CAPOT PROTECTION ANTI-BALLON DS 4.1 075 - 5 m | O106: 63 | P106: 0 | Q106: 0 | R106: 1 | S106: 6 | T106: 9 | U106: 6 | V106: 1 | W106: 3 | Y106: RAL 3024 | Z106: Rouge fluo | AA106: 3024 | AB106: RAL 3024 Rouge fluo
A107: OPTIONAL | B107: 9090A045 | C107: CAPOT PROTECTION ANTI-BALLON DS 4.1 090 - 5 m | O107: 64 | P107: 0 | Q107: 0 | R107: 1 | S107: 4 | T107: 9 | U107: 6 | V107: 1 | W107: 6 | Y107: RAL 3026 | Z107: Rouge vif fluo | AA107: 3026 | AB107: RAL 3026 Rouge vif fluo
A108: OPTIONAL | B108: 9090A046 | C108: CAPOT PROTECTION ANTI-BALLON DS 4.1 105 - 5 m | O108: 65 | P108: 0 | Q108: 0 | R108: 1 | S108: 6 | T108: 9 | U108: 6 | V108: 1 | W108: 5 | Y108: RAL 3027 | Z108: Rouge framboise | AA108: 3027 | AB108: RAL 3027 Rouge framboise
A109: OPTIONAL | B109: 9090A047 | C109: CAPOT PROTECTION ANTI-BALLON DS 4.1 120 - 5 m | O109: 66 | P109: 0 | Q109: 0 | R109: 1 | S109: 6 | T109: 9 | U109: 6 | V109: 1 | W109: 6 | Y109: RAL 3028 | Z109: Rouge pur | AA109: 3028 | AB109: RAL 3028 Rouge pur
A110: OPTIONAL | B110: 9090A048 | C110: CAPOT PROTECTION ANTI-BALLON DS 4.1 135 - 5 m | O110: 67 | P110: 0 | Q110: 0 | R110: 1 | S110: 4 | T110: 10 | U110: 6 | V110: 1 | W110: 3 | Y110: RAL 3031 | Z110: Rouge orient | AA110: =RIGHT(Y110,4) -> 3031 | AB110: =Y110&" "&Z110 -> RAL 3031 Rouge orient
A111: OPTIONAL | B111: 9090A049 | C111: CAPOT PROTECTION ANTI-BALLON DS 4.1 150 - 5 m | O111: 68 | P111: 0 | Q111: 0 | R111: 1 | S111: 4 | T111: 10 | U111: 6 | V111: 1 | W111: 4 | Y111: RAL 3032 | Z111: Rouge rubis perlé | AA111: 3032 | AB111: RAL 3032 Rouge rubis perlé
A112: OPTIONAL | B112: 9090A051 | C112: CAPOT PROTECTION ANTI-BALLON DS 4.1 030 - 6 m | O112: 69 | P112: 0 | Q112: 0 | R112: 1 | S112: 6 | T112: 10 | U112: 6 | V112: 1 | W112: 3 | Y112: RAL 3033 | Z112: Rouge nacré | AA112: 3033 | AB112: RAL 3033 Rouge nacré
A113: OPTIONAL | B113: 9090A052 | C113: CAPOT PROTECTION ANTI-BALLON DS 4.1 045 - 6 m | O113: 70 | P113: 0 | Q113: 0 | R113: 1 | S113: 4 | T113: 10 | U113: 6 | V113: 1 | W113: 6 | Y113: RAL 4001 | Z113: Lilac rouge | AA113: 4001 | AB113: RAL 4001 Lilac rouge
A114: OPTIONAL | B114: 9090A053 | C114: CAPOT PROTECTION ANTI-BALLON DS 4.1 060 - 6 m | Y114: RAL 4002 | Z114: Rouge pourpre | AA114: 4002 | AB114: RAL 4002 Rouge pourpre
A115: OPTIONAL | B115: 9090A054 | C115: CAPOT PROTECTION ANTI-BALLON DS 4.1 075 - 6 m | Y115: RAL 4003 | Z115: Rose bruyère | AA115: 4003 | AB115: RAL 4003 Rose bruyère
A116: OPTIONAL | B116: 9090A055 | C116: CAPOT PROTECTION ANTI-BALLON DS 4.1 090 - 6 m | Y116: RAL 4004 | Z116: Bordeaux | AA116: 4004 | AB116: RAL 4004 Bordeaux
A117: OPTIONAL | B117: 9090A056 | C117: CAPOT PROTECTION ANTI-BALLON DS 4.1 105 - 6 m | Y117: RAL 4005 | Z117: Lilac bleu | AA117: 4005 | AB117: RAL 4005 Lilac bleu
A118: OPTIONAL | B118: 9090A057 | C118: CAPOT PROTECTION ANTI-BALLON DS 4.1 120 - 6 m | Y118: RAL 4006 | Z118: Pourpre trafic | AA118: 4006 | AB118: RAL 4006 Pourpre trafic
A119: OPTIONAL | B119: 9090A058 | C119: CAPOT PROTECTION ANTI-BALLON DS 4.1 135 - 6 m | Y119: RAL 4007 | Z119: Violet pourpre | AA119: 4007 | AB119: RAL 4007 Violet pourpre
A120: OPTIONAL | B120: 9090A059 | C120: CAPOT PROTECTION ANTI-BALLON DS 4.1 150 - 6 m | Y120: RAL 4008 | Z120: Violet signal | AA120: 4008 | AB120: RAL 4008 Violet signal
Y121: RAL 4009 | Z121: Violet pastel | AA121: 4009 | AB121: RAL 4009 Violet pastel
A122: OPTIONAL | B122: 9090A071 | C122: JONCTION CAPOT PROTECTION ANTI-BALLON DS 4.1 Larg. 030 | Y122: RAL 4010 | Z122: Magenta télécom | AA122: 4010 | AB122: RAL 4010 Magenta télécom
A123: OPTIONAL | B123: 9090A072 | C123: JONCTION CAPOT PROTECTION ANTI-BALLON DS 4.1 Larg. 045 | Y123: RAL 4011 | Z123: Violet perlé | AA123: 4011 | AB123: RAL 4011 Violet perlé
A124: OPTIONAL | B124: 9090A073 | C124: JONCTION CAPOT PROTECTION ANTI-BALLON DS 4.1 Larg. 060 | Y124: RAL 4012 | Z124: Lilac perlé | AA124: 4012 | AB124: RAL 4012 Lilac perlé
A125: OPTIONAL | B125: 9090A074 | C125: JONCTION CAPOT PROTECTION ANTI-BALLON DS 4.1 Larg. 075 | Y125: RAL 5000 | Z125: Bleu violet | AA125: 5000 | AB125: RAL 5000 Bleu violet
A126: OPTIONAL | B126: 9090A075 | C126: JONCTION CAPOT PROTECTION ANTI-BALLON DS 4.1 Larg. 090 | Y126: RAL 5001 | Z126: Bleu vert | AA126: 5001 | AB126: RAL 5001 Bleu vert
A127: OPTIONAL | B127: 9090A076 | C127: JONCTION CAPOT PROTECTION ANTI-BALLON DS 4.1 Larg. 105 | Y127: RAL 5002 | Z127: Bleu outremer | AA127: 5002 | AB127: RAL 5002 Bleu outremer
A128: OPTIONAL | B128: 9090A077 | C128: JONCTION CAPOT PROTECTION ANTI-BALLON DS 4.1 Larg. 120 | Y128: RAL 5003 | Z128: Bleu saphir | AA128: 5003 | AB128: RAL 5003 Bleu saphir
A129: OPTIONAL | B129: 9090A078 | C129: JONCTION CAPOT PROTECTION ANTI-BALLON DS 4.1 Larg. 135 | Y129: RAL 5004 | Z129: Bleu noir | AA129: 5004 | AB129: RAL 5004 Bleu noir
A130: OPTIONAL | B130: 9090A079 | C130: JONCTION CAPOT PROTECTION ANTI-BALLON DS 4.1 Larg. 150 | Y130: RAL 5005 | Z130: Bleu signal | AA130: 5005 | AB130: RAL 5005 Bleu signal
Y131: RAL 5007 | Z131: Bleu brillant | AA131: 5007 | AB131: RAL 5007 Bleu brillant
A132: OPTIONAL | B132: 9090A081 | C132: KIT APPENSIONE TRAVERSA DS 4.1 030 | Y132: RAL 5008 | Z132: Bleu gris | AA132: 5008 | AB132: RAL 5008 Bleu gris
A133: OPTIONAL | B133: 9090A082 | C133: KIT APPENSIONE TRAVERSA DS 4.1 045 | Y133: RAL 5009 | Z133: Bleu azur | AA133: 5009 | AB133: RAL 5009 Bleu azur
A134: OPTIONAL | B134: 9090A083 | C134: KIT APPENSIONE TRAVERSA DS 4.1 060 | Y134: RAL 5010 | Z134: Bleu gentiane | AA134: 5010 | AB134: RAL 5010 Bleu gentiane
A135: OPTIONAL | B135: 9090A084 | C135: KIT APPENSIONE TRAVERSA DS 4.1 075 | Y135: RAL 5011 | Z135: Bleu acier | AA135: 5011 | AB135: RAL 5011 Bleu acier
A136: OPTIONAL | B136: 9090A085 | C136: KIT APPENSIONE TRAVERSA DS 4.1 090 | Y136: RAL 5012 | Z136: Bleu clair | AA136: 5012 | AB136: RAL 5012 Bleu clair
A137: OPTIONAL | B137: 9090A090 | C137: KIT GRUPPO SCOSSALINA DS 4.1(1MT L) | Y137: RAL 5013 | Z137: Bleu cobalt | AA137: 5013 | AB137: RAL 5013 Bleu cobalt
A138: OPTIONAL | B138: 9090A091 | C138: KIT PAN.COPERT.PIANA DS 4.1 030 MT1 | Y138: RAL 5014 | Z138: Bleu pigeon | AA138: 5014 | AB138: RAL 5014 Bleu pigeon
A139: OPTIONAL | B139: 9090A092 | C139: KIT PAN.COPERT.PIANA DS 4.1 045 MT1 | Y139: RAL 5015 | Z139: Bleu ciel | AA139: 5015 | AB139: RAL 5015 Bleu ciel
A140: OPTIONAL | B140: 9090A093 | C140: KIT PAN.COPERT.PIANA DS 4.1 060 MT1 | Y140: RAL 5017 | Z140: Bleu trafic | AA140: 5017 | AB140: RAL 5017 Bleu trafic
A141: OPTIONAL | B141: 9090A094 | C141: KIT PAN.COPERT.PIANA DS 4.1 075 MT1 | Y141: RAL 5018 | Z141: Bleu turquoise | AA141: 5018 | AB141: RAL 5018 Bleu turquoise
A142: OPTIONAL | B142: 9090A095 | C142: KIT PAN.COPERT.PIANA DS 4.1 090 MT1 | Y142: RAL 5019 | Z142: Bleu capri | AA142: 5019 | AB142: RAL 5019 Bleu capri
A143: OPTIONAL | B143: 9090A096 | C143: KIT PAN.COPERT.PIANA DS 4.1 105 MT1 | Y143: RAL 5020 | Z143: Bleu océan | AA143: 5020 | AB143: RAL 5020 Bleu océan
A144: OPTIONAL | B144: 9090A097 | C144: KIT PAN.COPERT.PIANA DS 4.1 120 MT1 | Y144: RAL 5021 | Z144: Bleu eau | AA144: 5021 | AB144: RAL 5021 Bleu eau
A145: OPTIONAL | B145: 9090A098 | C145: KIT PAN.COPERT.PIANA DS 4.1 135 MT1 | Y145: RAL 5022 | Z145: Bleu nuit | AA145: 5022 | AB145: RAL 5022 Bleu nuit
A146: OPTIONAL | B146: 9090A099 | C146: KIT PAN.COPERT.PIANA DS 4.1 150 MT1 | Y146: RAL 5023 | Z146: Bleu distant | AA146: 5023 | AB146: RAL 5023 Bleu distant
A147: OPTIONAL | B147: 9090A101 | C147: KIT PAN.COPERT.PIANA DS 4.1 030 MT2 | Y147: RAL 5024 | Z147: Bleu pastel | AA147: 5024 | AB147: RAL 5024 Bleu pastel
A148: OPTIONAL | B148: 9090A102 | C148: KIT PAN.COPERT.PIANA DS 4.1 045 MT2 | Y148: RAL 5025 | Z148: Bleu perlé | AA148: 5025 | AB148: RAL 5025 Bleu perlé
A149: OPTIONAL | B149: 9090A103 | C149: KIT PAN.COPERT.PIANA DS 4.1 060 MT2 | Y149: RAL 5026 | Z149: Bleu nuit perlé | AA149: 5026 | AB149: RAL 5026 Bleu nuit perlé
A150: OPTIONAL | B150: 9090A104 | C150: KIT PAN.COPERT.PIANA DS 4.1 075 MT2 | Y150: RAL 6000 | Z150: Vert patine | AA150: 6000 | AB150: RAL 6000 Vert patine
A151: OPTIONAL | B151: 9090A105 | C151: KIT PAN.COPERT.PIANA DS 4.1 090 MT2 | Y151: RAL 6001 | Z151: Vert émeraude | AA151: 6001 | AB151: RAL 6001 Vert émeraude
A152: OPTIONAL | B152: 9090A106 | C152: KIT PAN.COPERT.PIANA DS 4.1 105 MT2 | Y152: RAL 6002 | Z152: Vert feuillage | AA152: 6002 | AB152: RAL 6002 Vert feuillage
A153: OPTIONAL | B153: 9090A107 | C153: KIT PAN.COPERT.PIANA DS 4.1 120 MT2 | Y153: RAL 6003 | Z153: Vert olive | AA153: 6003 | AB153: RAL 6003 Vert olive
A154: OPTIONAL | B154: 9090A108 | C154: KIT PAN.COPERT.PIANA DS 4.1 135 MT2 | Y154: RAL 6004 | Z154: Vert bleu | AA154: 6004 | AB154: RAL 6004 Vert bleu
A155: OPTIONAL | B155: 9090A109 | C155: KIT PAN.COPERT.PIANA DS 4.1 150 MT2 | Y155: RAL 6005 | Z155: Vert mousse | AA155: 6005 | AB155: RAL 6005 Vert mousse
A156: OPTIONAL | B156: 9090A111 | C156: KIT PAN.COPERT.PIANA DS 4.1 030 MT3 | Y156: RAL 6006 | Z156: Vert gris olive | AA156: 6006 | AB156: RAL 6006 Vert gris olive
A157: OPTIONAL | B157: 9090A112 | C157: KIT PAN.COPERT.PIANA DS 4.1 045 MT3 | Y157: RAL 6007 | Z157: Vert bouteille | AA157: 6007 | AB157: RAL 6007 Vert bouteille
A158: OPTIONAL | B158: 9090A113 | C158: KIT PAN.COPERT.PIANA DS 4.1 060 MT3 | Y158: RAL 6008 | Z158: Vert brun | AA158: 6008 | AB158: RAL 6008 Vert brun
A159: OPTIONAL | B159: 9090A114 | C159: KIT PAN.COPERT.PIANA DS 4.1 075 MT3 | Y159: RAL 6009 | Z159: Vert sapin | AA159: 6009 | AB159: RAL 6009 Vert sapin
A160: OPTIONAL | B160: 9090A115 | C160: KIT PAN.COPERT.PIANA DS 4.1 090 MT3 | Y160: RAL 6010 | Z160: Vert herbe | AA160: 6010 | AB160: RAL 6010 Vert herbe
A161: OPTIONAL | B161: 9090A116 | C161: KIT PAN.COPERT.PIANA DS 4.1 105 MT3 | Y161: RAL 6011 | Z161: Vert réséda | AA161: 6011 | AB161: RAL 6011 Vert réséda
A162: OPTIONAL | B162: 9090A117 | C162: KIT PAN.COPERT.PIANA DS 4.1 120 MT3 | Y162: RAL 6012 | Z162: Vert noir | AA162: 6012 | AB162: RAL 6012 Vert noir
A163: OPTIONAL | B163: 9090A118 | C163: KIT PAN.COPERT.PIANA DS 4.1 135 MT3 | Y163: RAL 6013 | Z163: Vert jonc | AA163: 6013 | AB163: RAL 6013 Vert jonc
A164: OPTIONAL | B164: 9090A119 | C164: KIT PAN.COPERT.PIANA DS 4.1 150 MT3 | Y164: RAL 6014 | Z164: Brun olive | AA164: 6014 | AB164: RAL 6014 Brun olive
A165: OPTIONAL | B165: 9090A121 | C165: KIT PAN.COPERT.PIANA DS 4.1 030 MT4 | Y165: RAL 6015 | Z165: Noir olive | AA165: 6015 | AB165: RAL 6015 Noir olive
A166: OPTIONAL | B166: 9090A122 | C166: KIT PAN.COPERT.PIANA DS 4.1 045 MT4 | Y166: RAL 6016 | Z166: Vert turquoise | AA166: 6016 | AB166: RAL 6016 Vert turquoise
A167: OPTIONAL | B167: 9090A123 | C167: KIT PAN.COPERT.PIANA DS 4.1 060 MT4 | Y167: RAL 6017 | Z167: Vert mai | AA167: 6017 | AB167: RAL 6017 Vert mai
A168: OPTIONAL | B168: 9090A124 | C168: KIT PAN.COPERT.PIANA DS 4.1 075 MT4 | Y168: RAL 6018 | Z168: Vert jaune | AA168: 6018 | AB168: RAL 6018 Vert jaune
A169: OPTIONAL | B169: 9090A125 | C169: KIT PAN.COPERT.PIANA DS 4.1 090 MT4 | Y169: RAL 6019 | Z169: Vert pastel | AA169: 6019 | AB169: RAL 6019 Vert pastel
A170: OPTIONAL | B170: 9090A126 | C170: KIT PAN.COPERT.PIANA DS 4.1 105 MT4 | Y170: RAL 6020 | Z170: Vert chrome | AA170: 6020 | AB170: RAL 6020 Vert chrome
A171: OPTIONAL | B171: 9090A127 | C171: KIT PAN.COPERT.PIANA DS 4.1 120 MT4 | Y171: RAL 6021 | Z171: Vert pâle | AA171: 6021 | AB171: RAL 6021 Vert pâle
A172: OPTIONAL | B172: 9090A128 | C172: KIT PAN.COPERT.PIANA DS 4.1 135 MT4 | Y172: RAL 6022 | Z172: Brun olive foncé | AA172: 6022 | AB172: RAL 6022 Brun olive foncé
A173: OPTIONAL | B173: 9090A129 | C173: KIT PAN.COPERT.PIANA DS 4.1 150 MT4 | Y173: RAL 6024 | Z173: Vert trafic | AA173: 6024 | AB173: RAL 6024 Vert trafic
A174: OPTIONAL | B174: 9090A131 | C174: KIT PAN.COPERT.PIANA DS 4.1 030 MT5 | Y174: RAL 6025 | Z174: Vert fougère | AA174: =RIGHT(Y174,4) -> 6025 | AB174: =Y174&" "&Z174 -> RAL 6025 Vert fougère
A175: OPTIONAL | B175: 9090A132 | C175: KIT PAN.COPERT.PIANA DS 4.1 045 MT5 | Y175: RAL 6026 | Z175: Vert opale | AA175: 6026 | AB175: RAL 6026 Vert opale
A176: OPTIONAL | B176: 9090A133 | C176: KIT PAN.COPERT.PIANA DS 4.1 060 MT5 | Y176: RAL 6027 | Z176: Vert clair | AA176: 6027 | AB176: RAL 6027 Vert clair
A177: OPTIONAL | B177: 9090A134 | C177: KIT PAN.COPERT.PIANA DS 4.1 075 MT5 | Y177: RAL 6028 | Z177: Vert pin | AA177: 6028 | AB177: RAL 6028 Vert pin
A178: OPTIONAL | B178: 9090A135 | C178: KIT PAN.COPERT.PIANA DS 4.1 090 MT5 | Y178: RAL 6029 | Z178: Vert menthe | AA178: 6029 | AB178: RAL 6029 Vert menthe
A179: OPTIONAL | B179: 9090A136 | C179: KIT PAN.COPERT.PIANA DS 4.1 105 MT5 | Y179: RAL 6032 | Z179: Vert signal | AA179: 6032 | AB179: RAL 6032 Vert signal
A180: OPTIONAL | B180: 9090A137 | C180: KIT PAN.COPERT.PIANA DS 4.1 120 MT5 | Y180: RAL 6033 | Z180: Vert menthe pastel | AA180: 6033 | AB180: RAL 6033 Vert menthe pastel
A181: OPTIONAL | B181: 9090A138 | C181: KIT PAN.COPERT.PIANA DS 4.1 135 MT5 | Y181: RAL 6034 | Z181: Vert turquoise pastel | AA181: 6034 | AB181: RAL 6034 Vert turquoise pastel
A182: OPTIONAL | B182: 9090A139 | C182: KIT PAN.COPERT.PIANA DS 4.1 150 MT5 | Y182: RAL 6035 | Z182: Vert perlé | AA182: 6035 | AB182: RAL 6035 Vert perlé
A183: OPTIONAL | B183: 9090A141 | C183: KIT PAN.COPERT.PIANA DS 4.1 030 MT6 | Y183: RAL 6036 | Z183: Vert opale perlé | AA183: 6036 | AB183: RAL 6036 Vert opale perlé
A184: OPTIONAL | B184: 9090A142 | C184: KIT PAN.COPERT.PIANA DS 4.1 045 MT6 | Y184: RAL 6037 | Z184: Vert pur | AA184: 6037 | AB184: RAL 6037 Vert pur
A185: OPTIONAL | B185: 9090A143 | C185: KIT PAN.COPERT.PIANA DS 4.1 060 MT6 | Y185: RAL 6038 | Z185: Vert fluo | AA185: 6038 | AB185: RAL 6038 Vert fluo
A186: OPTIONAL | B186: 9090A144 | C186: KIT PAN.COPERT.PIANA DS 4.1 075 MT6 | Y186: RAL 7000 | Z186: Gris petit-gris | AA186: 7000 | AB186: RAL 7000 Gris petit-gris
A187: OPTIONAL | B187: 9090A145 | C187: KIT PAN.COPERT.PIANA DS 4.1 090 MT6 | Y187: RAL 7001 | Z187: Gris argent | AA187: 7001 | AB187: RAL 7001 Gris argent
A188: OPTIONAL | B188: 9090A146 | C188: KIT PAN.COPERT.PIANA DS 4.1 105 MT6 | Y188: RAL 7002 | Z188: Gris olive | AA188: 7002 | AB188: RAL 7002 Gris olive
A189: OPTIONAL | B189: 9090A147 | C189: KIT PAN.COPERT.PIANA DS 4.1 120 MT6 | Y189: RAL 7003 | Z189: Gris mousse | AA189: 7003 | AB189: RAL 7003 Gris mousse
A190: OPTIONAL | B190: 9090A148 | C190: KIT PAN.COPERT.PIANA DS 4.1 135 MT6 | Y190: RAL 7004 | Z190: Gris signal | AA190: 7004 | AB190: RAL 7004 Gris signal
A191: OPTIONAL | B191: 9090A149 | C191: KIT PAN.COPERT.PIANA DS 4.1 150 MT6 | Y191: RAL 7005 | Z191: Gris souris | AA191: 7005 | AB191: RAL 7005 Gris souris
A192: OPTIONAL | B192: 9090A151 | C192: KIT INT.PAN.COPERT.PIANA DS 4.1 030 | Y192: RAL 7006 | Z192: Gris beige | AA192: 7006 | AB192: RAL 7006 Gris beige
A193: OPTIONAL | B193: 9090A152 | C193: KIT INT.PAN.COPERT.PIANA DS 4.1 045 | Y193: RAL 7008 | Z193: Gris kaki | AA193: 7008 | AB193: RAL 7008 Gris kaki
A194: OPTIONAL | B194: 9090A153 | C194: KIT INT.PAN.COPERT.PIANA DS 4.1 060 | Y194: RAL 7009 | Z194: Gris vert | AA194: 7009 | AB194: RAL 7009 Gris vert
A195: OPTIONAL | B195: 9090A154 | C195: KIT INT.PAN.COPERT.PIANA DS 4.1 075 | Y195: RAL 7010 | Z195: Gris tente | AA195: 7010 | AB195: RAL 7010 Gris tente
A196: OPTIONAL | B196: 9090A155 | C196: KIT INT.PAN.COPERT.PIANA DS 4.1 090 | Y196: RAL 7011 | Z196: Gris fer | AA196: 7011 | AB196: RAL 7011 Gris fer
A197: OPTIONAL | B197: 9090A156 | C197: KIT INT.PAN.COPERT.PIANA DS 4.1 105 | Y197: RAL 7012 | Z197: Gris basalte | AA197: 7012 | AB197: RAL 7012 Gris basalte
A198: OPTIONAL | B198: 9090A157 | C198: KIT INT.PAN.COPERT.PIANA DS 4.1 120 | Y198: RAL 7013 | Z198: Gris brun | AA198: 7013 | AB198: RAL 7013 Gris brun
A199: OPTIONAL | B199: 9090A158 | C199: KIT INT.PAN.COPERT.PIANA DS 4.1 135 | Y199: RAL 7015 | Z199: Gris ardoise | AA199: 7015 | AB199: RAL 7015 Gris ardoise
A200: OPTIONAL | B200: 9090A159 | C200: KIT INT.PAN.COPERT.PIANA DS 4.1 150 | Y200: RAL 7016 | Z200: Gris anthracite | AA200: 7016 | AB200: RAL 7016 Gris anthracite
Y201: RAL 7021 | Z201: Gris noir | AA201: 7021 | AB201: RAL 7021 Gris noir
A202: OPTIONAL | B202: 9090A161 | C202: Cache tubes pour DS18-3-030 | Y202: RAL 7022 | Z202: Gris ombre | AA202: 7022 | AB202: RAL 7022 Gris ombre
... 55 more rows

Sheet PULS_Calcul
A2: ="Entreprise : "&Home!$A$15 -> Entreprise : | S2: POIDS EN CHARGE | Y2: =IF(OR($L$19<15,$L$20<15),"Impossible - Température de rosée ≈ 15°C",IF($L$19<30,"Panneaux en mode rafraîchissement selon EN 14037-4",IF($L$20<=25,"Régime d'eau inadapté !",IF($L$19>90,"Impossible - Température maximale de fonctionnement = 90°C",IF($L$19>=30,"Panneaux en mode chauffage",""))))) -> Panneaux en mode chauffage | AA2: Panneaux en mode chauffage
A3: ="À l'attention de : "&Home!$A$16 -> À l'attention de : | T3: 0 | U3: 1 | V3: 2 | W3: 3 | X3: 4 | Y3: Panneaux en mode rafraîchissement suivant EN 14240 | AA3: Panneaux en mode rafraîchissement suivant EN 14037-4
A4: ="Projet : "&Home!$A$17 -> Projet : | S4: P | T4: 6.5 | U4: 13.9 | V4: 20.9 | W4: 27.8 | X4: 34.8 | AA4: Panneaux en mode rafraîchissement suivant EN 14240
A5: ="Devis # : "&Home!$A$18 -> Devis # : | S5: PS | T5: 6.5 | U5: 13.9 | V5: 20.9 | W5: 27.8 | X5: 34.8
S6: PS. | T6: 6.5 | U6: 13.9 | V6: 20.9 | W6: 27.8 | X6: 34.8
S7: PA | T7: 6.5 | U7: 13.9 | V7: 20.9 | W7: 27.8 | X7: 34.8
S8: PB | T8: 6.5 | U8: 13.9 | V8: 20.9 | W8: 27.8 | X8: 34.8
S9: W | T9: 6.5 | U9: 13.9 | V9: 20.9 | W9: 27.8 | X9: 34.8
S10: WS | T10: 6.5 | U10: 13.9 | V10: 20.9 | W10: 27.8 | X10: 34.8
S11: WS. | T11: 6.5 | U11: 13.9 | V11: 20.9 | W11: 27.8 | X11: 34.8
S12: WA | T12: 6.5 | U12: 13.9 | V12: 20.9 | W12: 27.8 | X12: 34.8
S13: WB | T13: 6.5 | U13: 13.9 | V13: 20.9 | W13: 27.8 | X13: 34.8
S14: R | T14: 7.7 | U14: 15 | V14: 22.5 | W14: 29.9 | X14: 37.4
S15: RA | T15: 7.7 | U15: 15 | V15: 22.5 | W15: 29.9 | X15: 37.4
S16: RB | T16: 7.7 | U16: 15 | V16: 22.5 | W16: 29.9 | X16: 37.4
A18: ="Date : "&Home!$A$19 -> Date : | L18: Conditions de sélection:
A19: ="Réalisé par : "&Home!$A$20 -> Réalisé par : | J19: Température de départ | L19: 60
J20: Température de retour | L20: 50
L21: *Hypothèse de calcul à valider par vos soins
L23: =IF(OR($L$19<15,$L$20<15),"Impossible - Température de rosée ≈ 15°C",IF($L$19<30,"Panneaux en mode rafraîchissement suivant EN 14240",IF($L$20<=25,"Régime d'eau inadapté !",IF($L$19>90,"Impossible - Température maximale de fonctionnement = 90°C",IF($L$19>=30,"Panneaux en mode chauffage",""))))) -> Panneaux en mode chauffage
K24: Montage en faux plafond
A28: (*) Dans le cas de panneaux raccordés en série, il s'agit de la puissance totale de l'ensemble de la ligne de panneaux | W28: Débit mini | X28: T° moy
W29: =IF(L20>25,ROUND((0.0039*L20*L20-0.9895*L20+86.409),0),VLOOKUP(L19,$Z$352:$AA$362,2,FALSE)) -> 47 | X29: =+AVERAGE(L19:L20) -> 55
A30: Description | B30: Nb | C30: Type P - W - R 0 1 2 3 4 | E30: Long. mm | F30: Poids en charge | G30: Temp. amb. | H30: Puissance W/ml | I30: Puiss. Unitaire Panneau | J30: Puiss. Totale Ligne (*) | K30: Débit par panneau (ou ligne) | L30: PdC panneau (ou ligne) [kPa] | M30: Puissance réelle | N30: Calcul puissance froide | Y30: Puiss. Totale Ligne (*) | Z30: Débit panneau (ou ligne) | AC30: PdC panneau (ou ligne)
W31: 1=Normal | Z31: Théorique | AA31: Mini | AB31: Retenu | AD31: Vitesse | AE31: Δps - singulaire | AF31: Δps - linéaire
A32: ="Régime d'eau : "&L19&"/"&L20&" > Tmoy = "&((L19+L20)/2)&"°C - "&IF(OR($L$19<35,$L$20<35),"","Hauteur minimale d'installation conseillée : "&TEXT(AVERAGE(L19,L20)*0.02+1.5,"0,00")&" m")&" - débit turbulent = "&W29&" L/h" -> Régime d'eau : 60/50 > Tmoy = 55°C - Hauteur minimale d'installation conseillée : 2,60 m - débit turbulent = 47 L/h | W32: 2=Série
E33: =IF(D33<>"",IF(LEFT(C33,1)="P",VLOOKUP(D33,Données!$B$46:$E$51,2,FALSE),IF(LEFT(C33,1)="W",VLOOKUP(D33,Données!$B$46:$E$51,3,FALSE),IF(LEFT(C33,1)="R",VLOOKUP(D33,Données!$B$46:$E$51,4,FALSE),"/"))),"") ->  | F33: =IF(D33<>"",HLOOKUP(D33,$S$3:$X$16,MATCH(C33,$S$3:$S$16,0),FALSE),"") ->  | H33: =IF(AND(NOT(ISBLANK(B33)),OR($L$19>90,MIN($L$19:$L$20)<15)),"-",IF(G33=0,"",IF($L$19>25,3.28086*POWER(AVERAGE($L$19:$L$20)-G33,1.1536),N33))) ->  | I33: =IF(H33="-","-",IF(G33=0,"",VLOOKUP(D33,$W$342:$X$346,2,0)*H33)) ->  | J33: =IF(I33="-","-",IF(W33=0,"",IF(W33=1,Y33,IF(W33=2,"")))) ->  | K33: =IF(J33="-","-",IF(W33=1,Z33,"")) ->  | L33: =IF(K33="-","-",IF(W33=0,0,IF(W33=1,ROUND(AC33,2),IF(W33=2,0)))) -> 0 | M33: =+IF(K33="","",IF(K33<$W$29,J33*0.95,J33)) ->  | N33: =IF(G33="","",IF($L$23="Panneaux en mode rafraîchissement suivant EN 14240",(5.7091*(G33-AVERAGE($L$19:$L$20))-5.1818)*1.45,IF($K$24="Montage en faux plafond",(5.7091*(G33-AVERAGE($L$19:$L$20))-5.1818),IF($K$24="Montage apparent",(7.5455*(G33-AVERAGE($L$19:$L$20))-5.1818),"")))) -> 
E34: =IF(D34<>"",IF(LEFT(C34,1)="P",VLOOKUP(D34,Données!$B$46:$E$51,2,FALSE),IF(LEFT(C34,1)="W",VLOOKUP(D34,Données!$B$46:$E$51,3,FALSE),IF(LEFT(C34,1)="R",VLOOKUP(D34,Données!$B$46:$E$51,4,FALSE),"/"))),"") ->  | L34: =IF(K34="-","-",IF(W34=0,0,IF(W34=1,ROUND(AC34,2),IF(W34=2,0)))) -> 0 | M34: =+IF(K34="","",IF(K34<$W$29,J34*0.95,J34)) ->  | W34: =IF(OR(C34="PA",C34="PB",C34="WA",C34="WB",C34="RA",C34="RB",C34="PS",C34="WS"),2,IF(OR(C34="P",C34="W",C34="R"),1,0)) -> 0 | X34: =IF(W35=0,0,IF(W35=2,1,0)) -> 0 | Y34: =IF(AND(W34=0,X34=0),0,IF(X34=0,I34*B34,IF(X34=1,I34*B34+Y35,0))) -> 0 | Z34: =IF(W34=2,Z33,IF(W34=0,"",IF(W34=1,IF($L$19>29,J34/($L$19-$L$20)/1.16,IF($L$19<29,J34/($L$20-$L$19)/1.16,""))))) ->  | AA34: =IF(W34=0,"",IF(W34=1,$W$29,IF(W34=2,AA33))) ->  | AB34: =IF(MAX(Z34,AA34)=0,"",MAX(Z34,AA34)) ->  | AC34: =IF(AND(W34=0,X34=0),0,IF(X34=0,AE34+AF34,IF(X34=1,AC35+AE34+AF34,0))) -> 0 | AD34: =IF(Z34="",0,IF(OR(Z34=0,Z34=""),0,(Z34/1000/3600)/(PI()*POWER((0.0126/2),2)))) -> 0 | AE34: =($Z$329*($X$349*(POWER(AD34,2)))/2)/1000 -> 0 | AF34: =(($W$336/$W$339)*(($X$349*(POWER(AD34,2)))/2)*(VLOOKUP(D34,$W$342:$X$346,2,0)*6*B34))/1000 -> 0
E35: =IF(D35<>"",IF(LEFT(C35,1)="P",VLOOKUP(D35,Données!$B$46:$E$51,2,FALSE),IF(LEFT(C35,1)="W",VLOOKUP(D35,Données!$B$46:$E$51,3,FALSE),IF(LEFT(C35,1)="R",VLOOKUP(D35,Données!$B$46:$E$51,4,FALSE),"/"))),"") ->  | F35: =IF(D35<>"",HLOOKUP(D35,$S$3:$X$16,MATCH(C35,$S$3:$S$16,0),FALSE),"") ->  | L35: 0 | M35: =+IF(K35="","",IF(K35<$W$29,J35*0.95,J35)) ->  | W35: 0 | X35: =IF(W36=0,0,IF(W36=2,1,0)) -> 0 | Y35: 0 | AA35: =IF(W35=0,"",IF(W35=1,$W$29,IF(W35=2,AA34))) ->  | AB35: =IF(MAX(Z35,AA35)=0,"",MAX(Z35,AA35)) ->  | AC35: =IF(AND(W35=0,X35=0),0,IF(X35=0,AE35+AF35,IF(X35=1,AC36+AE35+AF35,0))) -> 0 | AD35: =IF(Z35="",0,IF(OR(Z35=0,Z35=""),0,(Z35/1000/3600)/(PI()*POWER((0.0126/2),2)))) -> 0 | AE35: =($Z$329*($X$349*(POWER(AD35,2)))/2)/1000 -> 0 | AF35: 0
E36: =IF(D36<>"",IF(LEFT(C36,1)="P",VLOOKUP(D36,Données!$B$46:$E$51,2,FALSE),IF(LEFT(C36,1)="W",VLOOKUP(D36,Données!$B$46:$E$51,3,FALSE),IF(LEFT(C36,1)="R",VLOOKUP(D36,Données!$B$46:$E$51,4,FALSE),"/"))),"") ->  | F36: =IF(D36<>"",HLOOKUP(D36,$S$3:$X$16,MATCH(C36,$S$3:$S$16,0),FALSE),"") ->  | L36: 0 | W36: 0 | X36: 0 | Y36: 0 | AC36: 0 | AD36: 0 | AE36: 0 | AF36: 0
E37: =IF(D37<>"",IF(LEFT(C37,1)="P",VLOOKUP(D37,Données!$B$46:$E$51,2,FALSE),IF(LEFT(C37,1)="W",VLOOKUP(D37,Données!$B$46:$E$51,3,FALSE),IF(LEFT(C37,1)="R",VLOOKUP(D37,Données!$B$46:$E$51,4,FALSE),"/"))),"") ->  | L37: 0 | W37: 0 | X37: 0 | Y37: 0 | AC37: 0 | AD37: 0 | AE37: 0 | AF37: 0
E38: =IF(D38<>"",IF(LEFT(C38,1)="P",VLOOKUP(D38,Données!$B$46:$E$51,2,FALSE),IF(LEFT(C38,1)="W",VLOOKUP(D38,Données!$B$46:$E$51,3,FALSE),IF(LEFT(C38,1)="R",VLOOKUP(D38,Données!$B$46:$E$51,4,FALSE),"/"))),"") ->  | L38: 0 | W38: 0 | X38: 0 | Y38: 0 | AC38: 0 | AD38: 0 | AE38: 0 | AF38: 0
E39: =IF(D39<>"",IF(LEFT(C39,1)="P",VLOOKUP(D39,Données!$B$46:$E$51,2,FALSE),IF(LEFT(C39,1)="W",VLOOKUP(D39,Données!$B$46:$E$51,3,FALSE),IF(LEFT(C39,1)="R",VLOOKUP(D39,Données!$B$46:$E$51,4,FALSE),"/"))),"") ->  | L39: 0 | W39: 0 | X39: 0 | Y39: 0 | AC39: 0 | AD39: 0 | AE39: 0 | AF39: 0
E40: =IF(D40<>"",IF(LEFT(C40,1)="P",VLOOKUP(D40,Données!$B$46:$E$51,2,FALSE),IF(LEFT(C40,1)="W",VLOOKUP(D40,Données!$B$46:$E$51,3,FALSE),IF(LEFT(C40,1)="R",VLOOKUP(D40,Données!$B$46:$E$51,4,FALSE),"/"))),"") ->  | L40: 0 | W40: 0 | X40: 0 | Y40: 0 | AC40: 0 | AD40: 0 | AE40: 0 | AF40: 0
E41: =IF(D41<>"",IF(LEFT(C41,1)="P",VLOOKUP(D41,Données!$B$46:$E$51,2,FALSE),IF(LEFT(C41,1)="W",VLOOKUP(D41,Données!$B$46:$E$51,3,FALSE),IF(LEFT(C41,1)="R",VLOOKUP(D41,Données!$B$46:$E$51,4,FALSE),"/"))),"") ->  | L41: 0 | W41: 0 | X41: =IF(W42=0,0,IF(W42=2,1,0)) -> 0 | Y41: 0 | AA41: =IF(W41=0,"",IF(W41=1,$W$29,IF(W41=2,AA40))) ->  | AB41: =IF(MAX(Z41,AA41)=0,"",MAX(Z41,AA41)) ->  | AC41: =IF(AND(W41=0,X41=0),0,IF(X41=0,AE41+AF41,IF(X41=1,AC42+AE41+AF41,0))) -> 0 | AD41: 0 | AE41: 0 | AF41: 0
E42: =IF(D42<>"",IF(LEFT(C42,1)="P",VLOOKUP(D42,Données!$B$46:$E$51,2,FALSE),IF(LEFT(C42,1)="W",VLOOKUP(D42,Données!$B$46:$E$51,3,FALSE),IF(LEFT(C42,1)="R",VLOOKUP(D42,Données!$B$46:$E$51,4,FALSE),"/"))),"") ->  | L42: 0 | W42: 0 | X42: =IF(W43=0,0,IF(W43=2,1,0)) -> 0 | Y42: 0 | AA42: =IF(W42=0,"",IF(W42=1,$W$29,IF(W42=2,AA41))) ->  | AB42: =IF(MAX(Z42,AA42)=0,"",MAX(Z42,AA42)) ->  | AC42: =IF(AND(W42=0,X42=0),0,IF(X42=0,AE42+AF42,IF(X42=1,AC43+AE42+AF42,0))) -> 0 | AD42: 0 | AE42: 0 | AF42: 0
E43: =IF(D43<>"",IF(LEFT(C43,1)="P",VLOOKUP(D43,Données!$B$46:$E$51,2,FALSE),IF(LEFT(C43,1)="W",VLOOKUP(D43,Données!$B$46:$E$51,3,FALSE),IF(LEFT(C43,1)="R",VLOOKUP(D43,Données!$B$46:$E$51,4,FALSE),"/"))),"") ->  | L43: 0 | W43: 0 | X43: =IF(W44=0,0,IF(W44=2,1,0)) -> 0 | Y43: 0 | AA43: =IF(W43=0,"",IF(W43=1,$W$29,IF(W43=2,AA42))) ->  | AB43: =IF(MAX(Z43,AA43)=0,"",MAX(Z43,AA43)) ->  | AC43: =IF(AND(W43=0,X43=0),0,IF(X43=0,AE43+AF43,IF(X43=1,AC44+AE43+AF43,0))) -> 0 | AD43: 0 | AE43: 0 | AF43: 0
E44: =IF(D44<>"",IF(LEFT(C44,1)="P",VLOOKUP(D44,Données!$B$46:$E$51,2,FALSE),IF(LEFT(C44,1)="W",VLOOKUP(D44,Données!$B$46:$E$51,3,FALSE),IF(LEFT(C44,1)="R",VLOOKUP(D44,Données!$B$46:$E$51,4,FALSE),"/"))),"") ->  | L44: 0 | W44: 0 | X44: =IF(W45=0,0,IF(W45=2,1,0)) -> 0 | Y44: 0 | AA44: =IF(W44=0,"",IF(W44=1,$W$29,IF(W44=2,AA43))) ->  | AB44: =IF(MAX(Z44,AA44)=0,"",MAX(Z44,AA44)) ->  | AC44: =IF(AND(W44=0,X44=0),0,IF(X44=0,AE44+AF44,IF(X44=1,AC45+AE44+AF44,0))) -> 0 | AD44: 0 | AE44: 0 | AF44: 0
E45: =IF(D45<>"",IF(LEFT(C45,1)="P",VLOOKUP(D45,Données!$B$46:$E$51,2,FALSE),IF(LEFT(C45,1)="W",VLOOKUP(D45,Données!$B$46:$E$51,3,FALSE),IF(LEFT(C45,1)="R",VLOOKUP(D45,Données!$B$46:$E$51,4,FALSE),"/"))),"") ->  | L45: 0 | W45: 0 | X45: 0 | Y45: 0 | AC45: 0 | AD45: 0 | AE45: 0 | AF45: 0
E46: =IF(D46<>"",IF(LEFT(C46,1)="P",VLOOKUP(D46,Données!$B$46:$E$51,2,FALSE),IF(LEFT(C46,1)="W",VLOOKUP(D46,Données!$B$46:$E$51,3,FALSE),IF(LEFT(C46,1)="R",VLOOKUP(D46,Données!$B$46:$E$51,4,FALSE),"/"))),"") ->  | L46: 0 | W46: 0 | X46: =IF(W47=0,0,IF(W47=2,1,0)) -> 0 | Y46: 0 | AA46: =IF(W46=0,"",IF(W46=1,$W$29,IF(W46=2,AA45))) ->  | AB46: =IF(MAX(Z46,AA46)=0,"",MAX(Z46,AA46)) ->  | AC46: =IF(AND(W46=0,X46=0),0,IF(X46=0,AE46+AF46,IF(X46=1,AC47+AE46+AF46,0))) -> 0 | AD46: 0 | AE46: 0 | AF46: 0
E47: =IF(D47<>"",IF(LEFT(C47,1)="P",VLOOKUP(D47,Données!$B$46:$E$51,2,FALSE),IF(LEFT(C47,1)="W",VLOOKUP(D47,Données!$B$46:$E$51,3,FALSE),IF(LEFT(C47,1)="R",VLOOKUP(D47,Données!$B$46:$E$51,4,FALSE),"/"))),"") ->  | L47: 0 | W47: 0 | X47: =IF(W48=0,0,IF(W48=2,1,0)) -> 0 | Y47: 0 | AA47: =IF(W47=0,"",IF(W47=1,$W$29,IF(W47=2,AA46))) ->  | AB47: =IF(MAX(Z47,AA47)=0,"",MAX(Z47,AA47)) ->  | AC47: =IF(AND(W47=0,X47=0),0,IF(X47=0,AE47+AF47,IF(X47=1,AC48+AE47+AF47,0))) -> 0 | AD47: 0 | AE47: 0 | AF47: 0
E48: =IF(D48<>"",IF(LEFT(C48,1)="P",VLOOKUP(D48,Données!$B$46:$E$51,2,FALSE),IF(LEFT(C48,1)="W",VLOOKUP(D48,Données!$B$46:$E$51,3,FALSE),IF(LEFT(C48,1)="R",VLOOKUP(D48,Données!$B$46:$E$51,4,FALSE),"/"))),"") ->  | L48: 0 | W48: 0 | X48: =IF(W49=0,0,IF(W49=2,1,0)) -> 0 | Y48: 0 | AA48: =IF(W48=0,"",IF(W48=1,$W$29,IF(W48=2,AA47))) ->  | AB48: =IF(MAX(Z48,AA48)=0,"",MAX(Z48,AA48)) ->  | AC48: =IF(AND(W48=0,X48=0),0,IF(X48=0,AE48+AF48,IF(X48=1,AC49+AE48+AF48,0))) -> 0 | AD48: 0 | AE48: 0 | AF48: 0
E49: =IF(D49<>"",IF(LEFT(C49,1)="P",VLOOKUP(D49,Données!$B$46:$E$51,2,FALSE),IF(LEFT(C49,1)="W",VLOOKUP(D49,Données!$B$46:$E$51,3,FALSE),IF(LEFT(C49,1)="R",VLOOKUP(D49,Données!$B$46:$E$51,4,FALSE),"/"))),"") ->  | L49: 0 | W49: 0 | X49: 0 | Y49: 0 | AC49: 0 | AD49: 0 | AE49: 0 | AF49: 0
E50: =IF(D50<>"",IF(LEFT(C50,1)="P",VLOOKUP(D50,Données!$B$46:$E$51,2,FALSE),IF(LEFT(C50,1)="W",VLOOKUP(D50,Données!$B$46:$E$51,3,FALSE),IF(LEFT(C50,1)="R",VLOOKUP(D50,Données!$B$46:$E$51,4,FALSE),"/"))),"") ->  | L50: 0 | W50: 0 | X50: 0 | Y50: 0 | AC50: 0 | AD50: 0 | AE50: 0 | AF50: 0
E51: =IF(D51<>"",IF(LEFT(C51,1)="P",VLOOKUP(D51,Données!$B$46:$E$51,2,FALSE),IF(LEFT(C51,1)="W",VLOOKUP(D51,Données!$B$46:$E$51,3,FALSE),IF(LEFT(C51,1)="R",VLOOKUP(D51,Données!$B$46:$E$51,4,FALSE),"/"))),"") ->  | L51: 0 | W51: 0 | X51: 0 | Y51: 0 | AC51: 0 | AD51: 0 | AE51: 0 | AF51: 0
E52: =IF(D52<>"",IF(LEFT(C52,1)="P",VLOOKUP(D52,Données!$B$46:$E$51,2,FALSE),IF(LEFT(C52,1)="W",VLOOKUP(D52,Données!$B$46:$E$51,3,FALSE),IF(LEFT(C52,1)="R",VLOOKUP(D52,Données!$B$46:$E$51,4,FALSE),"/"))),"") ->  | L52: 0 | W52: 0 | X52: 0 | Y52: 0 | AC52: 0 | AD52: 0 | AE52: 0 | AF52: 0
E53: =IF(D53<>"",IF(LEFT(C53,1)="P",VLOOKUP(D53,Données!$B$46:$E$51,2,FALSE),IF(LEFT(C53,1)="W",VLOOKUP(D53,Données!$B$46:$E$51,3,FALSE),IF(LEFT(C53,1)="R",VLOOKUP(D53,Données!$B$46:$E$51,4,FALSE),"/"))),"") ->  | L53: 0 | W53: 0 | X53: =IF(W54=0,0,IF(W54=2,1,0)) -> 0 | Y53: 0 | AA53: =IF(W53=0,"",IF(W53=1,$W$29,IF(W53=2,AA52))) ->  | AB53: =IF(MAX(Z53,AA53)=0,"",MAX(Z53,AA53)) ->  | AC53: =IF(AND(W53=0,X53=0),0,IF(X53=0,AE53+AF53,IF(X53=1,AC54+AE53+AF53,0))) -> 0 | AD53: 0 | AE53: 0 | AF53: 0
E54: =IF(D54<>"",IF(LEFT(C54,1)="P",VLOOKUP(D54,Données!$B$46:$E$51,2,FALSE),IF(LEFT(C54,1)="W",VLOOKUP(D54,Données!$B$46:$E$51,3,FALSE),IF(LEFT(C54,1)="R",VLOOKUP(D54,Données!$B$46:$E$51,4,FALSE),"/"))),"") ->  | L54: 0 | W54: 0 | X54: =IF(W55=0,0,IF(W55=2,1,0)) -> 0 | Y54: 0 | AA54: =IF(W54=0,"",IF(W54=1,$W$29,IF(W54=2,AA53))) ->  | AB54: =IF(MAX(Z54,AA54)=0,"",MAX(Z54,AA54)) ->  | AC54: =IF(AND(W54=0,X54=0),0,IF(X54=0,AE54+AF54,IF(X54=1,AC55+AE54+AF54,0))) -> 0 | AD54: 0 | AE54: 0 | AF54: 0
E55: =IF(D55<>"",IF(LEFT(C55,1)="P",VLOOKUP(D55,Données!$B$46:$E$51,2,FALSE),IF(LEFT(C55,1)="W",VLOOKUP(D55,Données!$B$46:$E$51,3,FALSE),IF(LEFT(C55,1)="R",VLOOKUP(D55,Données!$B$46:$E$51,4,FALSE),"/"))),"") ->  | L55: 0 | W55: 0 | X55: =IF(W56=0,0,IF(W56=2,1,0)) -> 0 | Y55: 0 | AA55: =IF(W55=0,"",IF(W55=1,$W$29,IF(W55=2,AA54))) ->  | AB55: =IF(MAX(Z55,AA55)=0,"",MAX(Z55,AA55)) ->  | AC55: =IF(AND(W55=0,X55=0),0,IF(X55=0,AE55+AF55,IF(X55=1,AC56+AE55+AF55,0))) -> 0 | AD55: 0 | AE55: 0 | AF55: 0
E56: =IF(D56<>"",IF(LEFT(C56,1)="P",VLOOKUP(D56,Données!$B$46:$E$51,2,FALSE),IF(LEFT(C56,1)="W",VLOOKUP(D56,Données!$B$46:$E$51,3,FALSE),IF(LEFT(C56,1)="R",VLOOKUP(D56,Données!$B$46:$E$51,4,FALSE),"/"))),"") ->  | L56: 0 | W56: 0 | X56: 0 | Y56: 0 | AC56: 0 | AD56: 0 | AE56: 0 | AF56: 0
E57: =IF(D57<>"",IF(LEFT(C57,1)="P",VLOOKUP(D57,Données!$B$46:$E$51,2,FALSE),IF(LEFT(C57,1)="W",VLOOKUP(D57,Données!$B$46:$E$51,3,FALSE),IF(LEFT(C57,1)="R",VLOOKUP(D57,Données!$B$46:$E$51,4,FALSE),"/"))),"") ->  | L57: 0 | W57: 0 | X57: 0 | Y57: 0 | AC57: 0 | AD57: 0 | AE57: 0 | AF57: 0
E58: =IF(D58<>"",IF(LEFT(C58,1)="P",VLOOKUP(D58,Données!$B$46:$E$51,2,FALSE),IF(LEFT(C58,1)="W",VLOOKUP(D58,Données!$B$46:$E$51,3,FALSE),IF(LEFT(C58,1)="R",VLOOKUP(D58,Données!$B$46:$E$51,4,FALSE),"/"))),"") ->  | L58: 0 | W58: 0 | X58: =IF(W59=0,0,IF(W59=2,1,0)) -> 0 | Y58: 0 | AA58: =IF(W58=0,"",IF(W58=1,$W$29,IF(W58=2,AA57))) ->  | AB58: =IF(MAX(Z58,AA58)=0,"",MAX(Z58,AA58)) ->  | AC58: =IF(AND(W58=0,X58=0),0,IF(X58=0,AE58+AF58,IF(X58=1,AC59+AE58+AF58,0))) -> 0 | AD58: 0 | AE58: 0 | AF58: 0
E59: =IF(D59<>"",IF(LEFT(C59,1)="P",VLOOKUP(D59,Données!$B$46:$E$51,2,FALSE),IF(LEFT(C59,1)="W",VLOOKUP(D59,Données!$B$46:$E$51,3,FALSE),IF(LEFT(C59,1)="R",VLOOKUP(D59,Données!$B$46:$E$51,4,FALSE),"/"))),"") ->  | L59: 0 | W59: 0 | X59: =IF(W60=0,0,IF(W60=2,1,0)) -> 0 | Y59: 0 | AA59: =IF(W59=0,"",IF(W59=1,$W$29,IF(W59=2,AA58))) ->  | AB59: =IF(MAX(Z59,AA59)=0,"",MAX(Z59,AA59)) ->  | AC59: =IF(AND(W59=0,X59=0),0,IF(X59=0,AE59+AF59,IF(X59=1,AC60+AE59+AF59,0))) -> 0 | AD59: 0 | AE59: 0 | AF59: 0
E60: =IF(D60<>"",IF(LEFT(C60,1)="P",VLOOKUP(D60,Données!$B$46:$E$51,2,FALSE),IF(LEFT(C60,1)="W",VLOOKUP(D60,Données!$B$46:$E$51,3,FALSE),IF(LEFT(C60,1)="R",VLOOKUP(D60,Données!$B$46:$E$51,4,FALSE),"/"))),"") ->  | L60: 0 | W60: 0 | X60: =IF(W61=0,0,IF(W61=2,1,0)) -> 0 | Y60: 0 | AA60: =IF(W60=0,"",IF(W60=1,$W$29,IF(W60=2,AA59))) ->  | AB60: =IF(MAX(Z60,AA60)=0,"",MAX(Z60,AA60)) ->  | AC60: =IF(AND(W60=0,X60=0),0,IF(X60=0,AE60+AF60,IF(X60=1,AC61+AE60+AF60,0))) -> 0 | AD60: 0 | AE60: 0 | AF60: 0
E61: =IF(D61<>"",IF(LEFT(C61,1)="P",VLOOKUP(D61,Données!$B$46:$E$51,2,FALSE),IF(LEFT(C61,1)="W",VLOOKUP(D61,Données!$B$46:$E$51,3,FALSE),IF(LEFT(C61,1)="R",VLOOKUP(D61,Données!$B$46:$E$51,4,FALSE),"/"))),"") ->  | L61: 0 | W61: 0 | X61: =IF(W62=0,0,IF(W62=2,1,0)) -> 0 | Y61: 0 | AA61: =IF(W61=0,"",IF(W61=1,$W$29,IF(W61=2,AA60))) ->  | AB61: =IF(MAX(Z61,AA61)=0,"",MAX(Z61,AA61)) ->  | AC61: =IF(AND(W61=0,X61=0),0,IF(X61=0,AE61+AF61,IF(X61=1,AC62+AE61+AF61,0))) -> 0 | AD61: 0 | AE61: 0 | AF61: 0
E62: =IF(D62<>"",IF(LEFT(C62,1)="P",VLOOKUP(D62,Données!$B$46:$E$51,2,FALSE),IF(LEFT(C62,1)="W",VLOOKUP(D62,Données!$B$46:$E$51,3,FALSE),IF(LEFT(C62,1)="R",VLOOKUP(D62,Données!$B$46:$E$51,4,FALSE),"/"))),"") ->  | L62: 0 | W62: 0 | X62: 0 | Y62: 0 | AC62: 0 | AD62: 0 | AE62: 0 | AF62: 0
E63: =IF(D63<>"",IF(LEFT(C63,1)="P",VLOOKUP(D63,Données!$B$46:$E$51,2,FALSE),IF(LEFT(C63,1)="W",VLOOKUP(D63,Données!$B$46:$E$51,3,FALSE),IF(LEFT(C63,1)="R",VLOOKUP(D63,Données!$B$46:$E$51,4,FALSE),"/"))),"") ->  | L63: 0 | W63: 0 | X63: 0 | Y63: 0 | AC63: 0 | AD63: 0 | AE63: 0 | AF63: 0
E64: =IF(D64<>"",IF(LEFT(C64,1)="P",VLOOKUP(D64,Données!$B$46:$E$51,2,FALSE),IF(LEFT(C64,1)="W",VLOOKUP(D64,Données!$B$46:$E$51,3,FALSE),IF(LEFT(C64,1)="R",VLOOKUP(D64,Données!$B$46:$E$51,4,FALSE),"/"))),"") ->  | L64: 0 | W64: 0 | X64: 0 | Y64: 0 | AC64: 0 | AD64: 0 | AE64: 0 | AF64: 0
E65: =IF(D65<>"",IF(LEFT(C65,1)="P",VLOOKUP(D65,Données!$B$46:$E$51,2,FALSE),IF(LEFT(C65,1)="W",VLOOKUP(D65,Données!$B$46:$E$51,3,FALSE),IF(LEFT(C65,1)="R",VLOOKUP(D65,Données!$B$46:$E$51,4,FALSE),"/"))),"") ->  | L65: 0 | W65: 0 | X65: 0 | Y65: 0 | AC65: 0 | AD65: 0 | AE65: 0 | AF65: 0
E66: =IF(D66<>"",IF(LEFT(C66,1)="P",VLOOKUP(D66,Données!$B$46:$E$51,2,FALSE),IF(LEFT(C66,1)="W",VLOOKUP(D66,Données!$B$46:$E$51,3,FALSE),IF(LEFT(C66,1)="R",VLOOKUP(D66,Données!$B$46:$E$51,4,FALSE),"/"))),"") ->  | L66: 0 | W66: 0 | X66: 0 | Y66: 0 | AC66: 0 | AD66: 0 | AE66: 0 | AF66: 0
E67: =IF(D67<>"",IF(LEFT(C67,1)="P",VLOOKUP(D67,Données!$B$46:$E$51,2,FALSE),IF(LEFT(C67,1)="W",VLOOKUP(D67,Données!$B$46:$E$51,3,FALSE),IF(LEFT(C67,1)="R",VLOOKUP(D67,Données!$B$46:$E$51,4,FALSE),"/"))),"") ->  | L67: 0 | W67: 0 | X67: 0 | Y67: 0 | AC67: 0 | AD67: 0 | AE67: 0 | AF67: 0
E68: =IF(D68<>"",IF(LEFT(C68,1)="P",VLOOKUP(D68,Données!$B$46:$E$51,2,FALSE),IF(LEFT(C68,1)="W",VLOOKUP(D68,Données!$B$46:$E$51,3,FALSE),IF(LEFT(C68,1)="R",VLOOKUP(D68,Données!$B$46:$E$51,4,FALSE),"/"))),"") ->  | L68: 0 | W68: 0 | X68: =IF(W69=0,0,IF(W69=2,1,0)) -> 0 | Y68: 0 | AA68: =IF(W68=0,"",IF(W68=1,$W$29,IF(W68=2,AA67))) ->  | AB68: =IF(MAX(Z68,AA68)=0,"",MAX(Z68,AA68)) ->  | AC68: =IF(AND(W68=0,X68=0),0,IF(X68=0,AE68+AF68,IF(X68=1,AC69+AE68+AF68,0))) -> 0 | AD68: 0 | AE68: 0 | AF68: 0
E69: =IF(D69<>"",IF(LEFT(C69,1)="P",VLOOKUP(D69,Données!$B$46:$E$51,2,FALSE),IF(LEFT(C69,1)="W",VLOOKUP(D69,Données!$B$46:$E$51,3,FALSE),IF(LEFT(C69,1)="R",VLOOKUP(D69,Données!$B$46:$E$51,4,FALSE),"/"))),"") ->  | L69: 0 | W69: 0 | X69: =IF(W70=0,0,IF(W70=2,1,0)) -> 0 | Y69: 0 | AA69: =IF(W69=0,"",IF(W69=1,$W$29,IF(W69=2,AA68))) ->  | AB69: =IF(MAX(Z69,AA69)=0,"",MAX(Z69,AA69)) ->  | AC69: =IF(AND(W69=0,X69=0),0,IF(X69=0,AE69+AF69,IF(X69=1,AC70+AE69+AF69,0))) -> 0 | AD69: 0 | AE69: 0 | AF69: 0
E70: =IF(D70<>"",IF(LEFT(C70,1)="P",VLOOKUP(D70,Données!$B$46:$E$51,2,FALSE),IF(LEFT(C70,1)="W",VLOOKUP(D70,Données!$B$46:$E$51,3,FALSE),IF(LEFT(C70,1)="R",VLOOKUP(D70,Données!$B$46:$E$51,4,FALSE),"/"))),"") ->  | L70: 0 | W70: 0 | X70: =IF(W71=0,0,IF(W71=2,1,0)) -> 0 | Y70: 0 | AA70: =IF(W70=0,"",IF(W70=1,$W$29,IF(W70=2,AA69))) ->  | AB70: =IF(MAX(Z70,AA70)=0,"",MAX(Z70,AA70)) ->  | AC70: =IF(AND(W70=0,X70=0),0,IF(X70=0,AE70+AF70,IF(X70=1,AC71+AE70+AF70,0))) -> 0 | AD70: 0 | AE70: 0 | AF70: 0
E71: =IF(D71<>"",IF(LEFT(C71,1)="P",VLOOKUP(D71,Données!$B$46:$E$51,2,FALSE),IF(LEFT(C71,1)="W",VLOOKUP(D71,Données!$B$46:$E$51,3,FALSE),IF(LEFT(C71,1)="R",VLOOKUP(D71,Données!$B$46:$E$51,4,FALSE),"/"))),"") ->  | L71: 0 | W71: 0 | X71: 0 | Y71: 0 | AC71: 0 | AD71: 0 | AE71: 0 | AF71: 0
E72: =IF(D72<>"",IF(LEFT(C72,1)="P",VLOOKUP(D72,Données!$B$46:$E$51,2,FALSE),IF(LEFT(C72,1)="W",VLOOKUP(D72,Données!$B$46:$E$51,3,FALSE),IF(LEFT(C72,1)="R",VLOOKUP(D72,Données!$B$46:$E$51,4,FALSE),"/"))),"") ->  | L72: 0 | W72: 0 | X72: 0 | Y72: 0 | AC72: 0 | AD72: 0 | AE72: 0 | AF72: 0
E73: =IF(D73<>"",IF(LEFT(C73,1)="P",VLOOKUP(D73,Données!$B$46:$E$51,2,FALSE),IF(LEFT(C73,1)="W",VLOOKUP(D73,Données!$B$46:$E$51,3,FALSE),IF(LEFT(C73,1)="R",VLOOKUP(D73,Données!$B$46:$E$51,4,FALSE),"/"))),"") ->  | L73: 0 | W73: 0 | X73: 0 | Y73: 0 | AC73: 0 | AD73: 0 | AE73: 0 | AF73: 0
E74: =IF(D74<>"",IF(LEFT(C74,1)="P",VLOOKUP(D74,Données!$B$46:$E$51,2,FALSE),IF(LEFT(C74,1)="W",VLOOKUP(D74,Données!$B$46:$E$51,3,FALSE),IF(LEFT(C74,1)="R",VLOOKUP(D74,Données!$B$46:$E$51,4,FALSE),"/"))),"") ->  | L74: 0 | W74: 0 | X74: 0 | Y74: 0 | AC74: 0 | AD74: 0 | AE74: 0 | AF74: 0
E75: =IF(D75<>"",IF(LEFT(C75,1)="P",VLOOKUP(D75,Données!$B$46:$E$51,2,FALSE),IF(LEFT(C75,1)="W",VLOOKUP(D75,Données!$B$46:$E$51,3,FALSE),IF(LEFT(C75,1)="R",VLOOKUP(D75,Données!$B$46:$E$51,4,FALSE),"/"))),"") ->  | L75: 0 | W75: 0 | X75: 0 | Y75: 0 | AC75: 0 | AD75: 0 | AE75: 0 | AF75: 0
E76: =IF(D76<>"",IF(LEFT(C76,1)="P",VLOOKUP(D76,Données!$B$46:$E$51,2,FALSE),IF(LEFT(C76,1)="W",VLOOKUP(D76,Données!$B$46:$E$51,3,FALSE),IF(LEFT(C76,1)="R",VLOOKUP(D76,Données!$B$46:$E$51,4,FALSE),"/"))),"") ->  | L76: 0 | W76: 0 | X76: =IF(W77=0,0,IF(W77=2,1,0)) -> 0 | Y76: 0 | AA76: =IF(W76=0,"",IF(W76=1,$W$29,IF(W76=2,AA75))) ->  | AB76: =IF(MAX(Z76,AA76)=0,"",MAX(Z76,AA76)) ->  | AC76: =IF(AND(W76=0,X76=0),0,IF(X76=0,AE76+AF76,IF(X76=1,AC77+AE76+AF76,0))) -> 0 | AD76: 0 | AE76: 0 | AF76: 0
E77: =IF(D77<>"",IF(LEFT(C77,1)="P",VLOOKUP(D77,Données!$B$46:$E$51,2,FALSE),IF(LEFT(C77,1)="W",VLOOKUP(D77,Données!$B$46:$E$51,3,FALSE),IF(LEFT(C77,1)="R",VLOOKUP(D77,Données!$B$46:$E$51,4,FALSE),"/"))),"") ->  | L77: 0 | W77: 0 | X77: =IF(W78=0,0,IF(W78=2,1,0)) -> 0 | Y77: 0 | AA77: =IF(W77=0,"",IF(W77=1,$W$29,IF(W77=2,AA76))) ->  | AB77: =IF(MAX(Z77,AA77)=0,"",MAX(Z77,AA77)) ->  | AC77: =IF(AND(W77=0,X77=0),0,IF(X77=0,AE77+AF77,IF(X77=1,AC78+AE77+AF77,0))) -> 0 | AD77: 0 | AE77: 0 | AF77: 0
E78: =IF(D78<>"",IF(LEFT(C78,1)="P",VLOOKUP(D78,Données!$B$46:$E$51,2,FALSE),IF(LEFT(C78,1)="W",VLOOKUP(D78,Données!$B$46:$E$51,3,FALSE),IF(LEFT(C78,1)="R",VLOOKUP(D78,Données!$B$46:$E$51,4,FALSE),"/"))),"") ->  | L78: 0 | W78: 0 | X78: =IF(W79=0,0,IF(W79=2,1,0)) -> 0 | Y78: 0 | AA78: =IF(W78=0,"",IF(W78=1,$W$29,IF(W78=2,AA77))) ->  | AB78: =IF(MAX(Z78,AA78)=0,"",MAX(Z78,AA78)) ->  | AC78: =IF(AND(W78=0,X78=0),0,IF(X78=0,AE78+AF78,IF(X78=1,AC79+AE78+AF78,0))) -> 0 | AD78: 0 | AE78: 0 | AF78: 0
E79: =IF(D79<>"",IF(LEFT(C79,1)="P",VLOOKUP(D79,Données!$B$46:$E$51,2,FALSE),IF(LEFT(C79,1)="W",VLOOKUP(D79,Données!$B$46:$E$51,3,FALSE),IF(LEFT(C79,1)="R",VLOOKUP(D79,Données!$B$46:$E$51,4,FALSE),"/"))),"") ->  | L79: 0 | W79: 0 | X79: 0 | Y79: 0 | AC79: 0 | AD79: 0 | AE79: 0 | AF79: 0
E80: =IF(D80<>"",IF(LEFT(C80,1)="P",VLOOKUP(D80,Données!$B$46:$E$51,2,FALSE),IF(LEFT(C80,1)="W",VLOOKUP(D80,Données!$B$46:$E$51,3,FALSE),IF(LEFT(C80,1)="R",VLOOKUP(D80,Données!$B$46:$E$51,4,FALSE),"/"))),"") ->  | L80: 0 | W80: 0 | X80: 0 | Y80: 0 | AC80: 0 | AD80: 0 | AE80: 0 | AF80: 0
E81: =IF(D81<>"",IF(LEFT(C81,1)="P",VLOOKUP(D81,Données!$B$46:$E$51,2,FALSE),IF(LEFT(C81,1)="W",VLOOKUP(D81,Données!$B$46:$E$51,3,FALSE),IF(LEFT(C81,1)="R",VLOOKUP(D81,Données!$B$46:$E$51,4,FALSE),"/"))),"") ->  | L81: 0 | W81: 0 | X81: 0 | Y81: 0 | AC81: 0 | AD81: 0 | AE81: 0 | AF81: 0
E82: =IF(D82<>"",IF(LEFT(C82,1)="P",VLOOKUP(D82,Données!$B$46:$E$51,2,FALSE),IF(LEFT(C82,1)="W",VLOOKUP(D82,Données!$B$46:$E$51,3,FALSE),IF(LEFT(C82,1)="R",VLOOKUP(D82,Données!$B$46:$E$51,4,FALSE),"/"))),"") ->  | L82: 0 | W82: 0 | X82: 0 | Y82: 0 | AC82: 0 | AD82: 0 | AE82: 0 | AF82: 0
E83: =IF(D83<>"",IF(LEFT(C83,1)="P",VLOOKUP(D83,Données!$B$46:$E$51,2,FALSE),IF(LEFT(C83,1)="W",VLOOKUP(D83,Données!$B$46:$E$51,3,FALSE),IF(LEFT(C83,1)="R",VLOOKUP(D83,Données!$B$46:$E$51,4,FALSE),"/"))),"") ->  | L83: 0 | W83: 0 | X83: 0 | Y83: 0 | AC83: 0 | AD83: 0 | AE83: 0 | AF83: 0
E84: =IF(D84<>"",IF(LEFT(C84,1)="P",VLOOKUP(D84,Données!$B$46:$E$51,2,FALSE),IF(LEFT(C84,1)="W",VLOOKUP(D84,Données!$B$46:$E$51,3,FALSE),IF(LEFT(C84,1)="R",VLOOKUP(D84,Données!$B$46:$E$51,4,FALSE),"/"))),"") ->  | L84: 0 | W84: 0 | X84: 0 | Y84: 0 | AC84: 0 | AD84: 0 | AE84: 0 | AF84: 0
E85: =IF(D85<>"",IF(LEFT(C85,1)="P",VLOOKUP(D85,Données!$B$46:$E$51,2,FALSE),IF(LEFT(C85,1)="W",VLOOKUP(D85,Données!$B$46:$E$51,3,FALSE),IF(LEFT(C85,1)="R",VLOOKUP(D85,Données!$B$46:$E$51,4,FALSE),"/"))),"") ->  | L85: 0 | W85: 0 | X85: 0 | Y85: 0 | AC85: 0 | AD85: 0 | AE85: 0 | AF85: 0
E86: =IF(D86<>"",IF(LEFT(C86,1)="P",VLOOKUP(D86,Données!$B$46:$E$51,2,FALSE),IF(LEFT(C86,1)="W",VLOOKUP(D86,Données!$B$46:$E$51,3,FALSE),IF(LEFT(C86,1)="R",VLOOKUP(D86,Données!$B$46:$E$51,4,FALSE),"/"))),"") ->  | L86: 0 | W86: 0 | X86: 0 | Y86: 0 | AC86: 0 | AD86: 0 | AE86: 0 | AF86: 0
E87: =IF(D87<>"",IF(LEFT(C87,1)="P",VLOOKUP(D87,Données!$B$46:$E$51,2,FALSE),IF(LEFT(C87,1)="W",VLOOKUP(D87,Données!$B$46:$E$51,3,FALSE),IF(LEFT(C87,1)="R",VLOOKUP(D87,Données!$B$46:$E$51,4,FALSE),"/"))),"") ->  | L87: 0 | W87: 0 | X87: 0 | Y87: 0 | AC87: 0 | AD87: 0 | AE87: 0 | AF87: 0
E88: =IF(D88<>"",IF(LEFT(C88,1)="P",VLOOKUP(D88,Données!$B$46:$E$51,2,FALSE),IF(LEFT(C88,1)="W",VLOOKUP(D88,Données!$B$46:$E$51,3,FALSE),IF(LEFT(C88,1)="R",VLOOKUP(D88,Données!$B$46:$E$51,4,FALSE),"/"))),"") ->  | L88: 0 | W88: 0 | X88: 0 | Y88: 0 | AC88: 0 | AD88: 0 | AE88: 0 | AF88: 0
E89: =IF(D89<>"",IF(LEFT(C89,1)="P",VLOOKUP(D89,Données!$B$46:$E$51,2,FALSE),IF(LEFT(C89,1)="W",VLOOKUP(D89,Données!$B$46:$E$51,3,FALSE),IF(LEFT(C89,1)="R",VLOOKUP(D89,Données!$B$46:$E$51,4,FALSE),"/"))),"") ->  | L89: 0 | W89: 0 | X89: 0 | Y89: 0 | AC89: 0 | AD89: 0 | AE89: 0 | AF89: 0
E90: =IF(D90<>"",IF(LEFT(C90,1)="P",VLOOKUP(D90,Données!$B$46:$E$51,2,FALSE),IF(LEFT(C90,1)="W",VLOOKUP(D90,Données!$B$46:$E$51,3,FALSE),IF(LEFT(C90,1)="R",VLOOKUP(D90,Données!$B$46:$E$51,4,FALSE),"/"))),"") ->  | L90: 0 | W90: 0 | X90: 0 | Y90: 0 | AC90: 0 | AD90: 0 | AE90: 0 | AF90: 0
E91: =IF(D91<>"",IF(LEFT(C91,1)="P",VLOOKUP(D91,Données!$B$46:$E$51,2,FALSE),IF(LEFT(C91,1)="W",VLOOKUP(D91,Données!$B$46:$E$51,3,FALSE),IF(LEFT(C91,1)="R",VLOOKUP(D91,Données!$B$46:$E$51,4,FALSE),"/"))),"") ->  | L91: 0 | W91: 0 | X91: 0 | Y91: 0 | AC91: 0 | AD91: 0 | AE91: 0 | AF91: 0
E92: =IF(D92<>"",IF(LEFT(C92,1)="P",VLOOKUP(D92,Données!$B$46:$E$51,2,FALSE),IF(LEFT(C92,1)="W",VLOOKUP(D92,Données!$B$46:$E$51,3,FALSE),IF(LEFT(C92,1)="R",VLOOKUP(D92,Données!$B$46:$E$51,4,FALSE),"/"))),"") ->  | L92: 0 | W92: 0 | X92: 0 | Y92: 0 | AC92: 0 | AD92: 0 | AE92: 0 | AF92: 0
E93: =IF(D93<>"",IF(LEFT(C93,1)="P",VLOOKUP(D93,Données!$B$46:$E$51,2,FALSE),IF(LEFT(C93,1)="W",VLOOKUP(D93,Données!$B$46:$E$51,3,FALSE),IF(LEFT(C93,1)="R",VLOOKUP(D93,Données!$B$46:$E$51,4,FALSE),"/"))),"") ->  | L93: 0 | W93: 0 | X93: 0 | Y93: 0 | AC93: 0 | AD93: 0 | AE93: 0 | AF93: 0
E94: =IF(D94<>"",IF(LEFT(C94,1)="P",VLOOKUP(D94,Données!$B$46:$E$51,2,FALSE),IF(LEFT(C94,1)="W",VLOOKUP(D94,Données!$B$46:$E$51,3,FALSE),IF(LEFT(C94,1)="R",VLOOKUP(D94,Données!$B$46:$E$51,4,FALSE),"/"))),"") ->  | L94: 0 | W94: 0 | X94: 0 | Y94: 0 | AC94: 0 | AD94: 0 | AE94: 0 | AF94: 0
E95: =IF(D95<>"",IF(LEFT(C95,1)="P",VLOOKUP(D95,Données!$B$46:$E$51,2,FALSE),IF(LEFT(C95,1)="W",VLOOKUP(D95,Données!$B$46:$E$51,3,FALSE),IF(LEFT(C95,1)="R",VLOOKUP(D95,Données!$B$46:$E$51,4,FALSE),"/"))),"") ->  | L95: 0 | W95: 0 | X95: 0 | Y95: 0 | AC95: 0 | AD95: 0 | AE95: 0 | AF95: 0
E96: =IF(D96<>"",IF(LEFT(C96,1)="P",VLOOKUP(D96,Données!$B$46:$E$51,2,FALSE),IF(LEFT(C96,1)="W",VLOOKUP(D96,Données!$B$46:$E$51,3,FALSE),IF(LEFT(C96,1)="R",VLOOKUP(D96,Données!$B$46:$E$51,4,FALSE),"/"))),"") ->  | L96: 0 | W96: 0 | X96: 0 | Y96: 0 | AC96: 0 | AD96: 0 | AE96: 0 | AF96: 0
E97: =IF(D97<>"",IF(LEFT(C97,1)="P",VLOOKUP(D97,Données!$B$46:$E$51,2,FALSE),IF(LEFT(C97,1)="W",VLOOKUP(D97,Données!$B$46:$E$51,3,FALSE),IF(LEFT(C97,1)="R",VLOOKUP(D97,Données!$B$46:$E$51,4,FALSE),"/"))),"") ->  | H97: =IF(AND(NOT(ISBLANK(B97)),OR($L$19>90,MIN($L$19:$L$20)<15)),"-",IF(G97=0,"",IF($L$19>25,3.28086*POWER(AVERAGE($L$19:$L$20)-G97,1.1536),N97))) ->  | I97: =IF(H97="-","-",IF(G97=0,"",VLOOKUP(D97,$W$342:$X$346,2,0)*H97)) ->  | J97: =IF(I97="-","-",IF(W97=0,"",IF(W97=1,Y97,IF(W97=2,"")))) ->  | K97: =IF(J97="-","-",IF(W97=1,Z97,"")) ->  | L97: 0 | N97: =IF(G97="","",IF($L$23="Panneaux en mode rafraîchissement suivant EN 14240",(5.7091*(G97-AVERAGE($L$19:$L$20))-5.1818)*1.45,IF($K$24="Montage en faux plafond",(5.7091*(G97-AVERAGE($L$19:$L$20))-5.1818),IF($K$24="Montage apparent",(7.5455*(G97-AVERAGE($L$19:$L$20))-5.1818),"")))) ->  | W97: 0 | X97: 0 | Y97: 0 | AC97: 0 | AD97: 0 | AE97: 0 | AF97: 0
E98: =IF(D98<>"",IF(LEFT(C98,1)="P",VLOOKUP(D98,Données!$B$46:$E$51,2,FALSE),IF(LEFT(C98,1)="W",VLOOKUP(D98,Données!$B$46:$E$51,3,FALSE),IF(LEFT(C98,1)="R",VLOOKUP(D98,Données!$B$46:$E$51,4,FALSE),"/"))),"") ->  | L98: =IF(K98="-","-",IF(W98=0,0,IF(W98=1,ROUND(AC98,2),IF(W98=2,0)))) -> 0 | W98: =IF(OR(C98="PA",C98="PB",C98="WA",C98="WB",C98="RA",C98="RB",C98="PS",C98="WS"),2,IF(OR(C98="P",C98="W",C98="R"),1,0)) -> 0 | X98: 0 | Y98: =IF(AND(W98=0,X98=0),0,IF(X98=0,I98*B98,IF(X98=1,I98*B98+Y99,0))) -> 0 | Z98: =IF(W98=2,Z97,IF(W98=0,"",IF(W98=1,IF($L$19>29,J98/($L$19-$L$20)/1.16,IF($L$19<29,J98/($L$20-$L$19)/1.16,""))))) ->  | AC98: 0 | AD98: 0 | AE98: 0 | AF98: =(($W$336/$W$339)*(($X$349*(POWER(AD98,2)))/2)*(VLOOKUP(D98,$W$342:$X$346,2,0)*6*B98))/1000 -> 0
E99: =IF(D99<>"",IF(LEFT(C99,1)="P",VLOOKUP(D99,Données!$B$46:$E$51,2,FALSE),IF(LEFT(C99,1)="W",VLOOKUP(D99,Données!$B$46:$E$51,3,FALSE),IF(LEFT(C99,1)="R",VLOOKUP(D99,Données!$B$46:$E$51,4,FALSE),"/"))),"") ->  | L99: 0 | M99: =+IF(K99="","",IF(K99<$W$29,J99*0.95,J99)) ->  | W99: 0 | X99: =IF(W100=0,0,IF(W100=2,1,0)) -> 0 | Y99: 0 | AA99: =IF(W99=0,"",IF(W99=1,$W$29,IF(W99=2,AA98))) ->  | AB99: =IF(MAX(Z99,AA99)=0,"",MAX(Z99,AA99)) ->  | AC99: =IF(AND(W99=0,X99=0),0,IF(X99=0,AE99+AF99,IF(X99=1,AC100+AE99+AF99,0))) -> 0 | AD99: =IF(Z99="",0,IF(OR(Z99=0,Z99=""),0,(Z99/1000/3600)/(PI()*POWER((0.0126/2),2)))) -> 0 | AE99: =($Z$329*($X$349*(POWER(AD99,2)))/2)/1000 -> 0 | AF99: 0
E100: =IF(D100<>"",IF(LEFT(C100,1)="P",VLOOKUP(D100,Données!$B$46:$E$51,2,FALSE),IF(LEFT(C100,1)="W",VLOOKUP(D100,Données!$B$46:$E$51,3,FALSE),IF(LEFT(C100,1)="R",VLOOKUP(D100,Données!$B$46:$E$51,4,FALSE),"/"))),"") ->  | F100: =IF(D100<>"",HLOOKUP(D100,$S$3:$X$16,MATCH(C100,$S$3:$S$16,0),FALSE),"") ->  | L100: 0 | W100: 0 | X100: 0 | Y100: 0 | AC100: 0 | AD100: 0 | AE100: 0 | AF100: 0
E101: =IF(D101<>"",IF(LEFT(C101,1)="P",VLOOKUP(D101,Données!$B$46:$E$51,2,FALSE),IF(LEFT(C101,1)="W",VLOOKUP(D101,Données!$B$46:$E$51,3,FALSE),IF(LEFT(C101,1)="R",VLOOKUP(D101,Données!$B$46:$E$51,4,FALSE),"/"))),"") ->  | L101: 0 | W101: 0 | X101: 0 | Y101: 0 | AC101: 0 | AD101: 0 | AE101: 0 | AF101: 0
E102: =IF(D102<>"",IF(LEFT(C102,1)="P",VLOOKUP(D102,Données!$B$46:$E$51,2,FALSE),IF(LEFT(C102,1)="W",VLOOKUP(D102,Données!$B$46:$E$51,3,FALSE),IF(LEFT(C102,1)="R",VLOOKUP(D102,Données!$B$46:$E$51,4,FALSE),"/"))),"") ->  | L102: 0 | W102: 0 | X102: 0 | Y102: 0 | AC102: 0 | AD102: 0 | AE102: 0 | AF102: 0
E103: =IF(D103<>"",IF(LEFT(C103,1)="P",VLOOKUP(D103,Données!$B$46:$E$51,2,FALSE),IF(LEFT(C103,1)="W",VLOOKUP(D103,Données!$B$46:$E$51,3,FALSE),IF(LEFT(C103,1)="R",VLOOKUP(D103,Données!$B$46:$E$51,4,FALSE),"/"))),"") ->  | L103: 0 | W103: 0 | X103: 0 | Y103: 0 | AC103: 0 | AD103: 0 | AE103: 0 | AF103: 0
E104: =IF(D104<>"",IF(LEFT(C104,1)="P",VLOOKUP(D104,Données!$B$46:$E$51,2,FALSE),IF(LEFT(C104,1)="W",VLOOKUP(D104,Données!$B$46:$E$51,3,FALSE),IF(LEFT(C104,1)="R",VLOOKUP(D104,Données!$B$46:$E$51,4,FALSE),"/"))),"") ->  | L104: 0 | W104: 0 | X104: 0 | Y104: 0 | AC104: 0 | AD104: 0 | AE104: 0 | AF104: 0
E105: =IF(D105<>"",IF(LEFT(C105,1)="P",VLOOKUP(D105,Données!$B$46:$E$51,2,FALSE),IF(LEFT(C105,1)="W",VLOOKUP(D105,Données!$B$46:$E$51,3,FALSE),IF(LEFT(C105,1)="R",VLOOKUP(D105,Données!$B$46:$E$51,4,FALSE),"/"))),"") ->  | L105: 0 | W105: 0 | X105: 0 | Y105: 0 | AC105: 0 | AD105: 0 | AE105: 0 | AF105: 0
E106: =IF(D106<>"",IF(LEFT(C106,1)="P",VLOOKUP(D106,Données!$B$46:$E$51,2,FALSE),IF(LEFT(C106,1)="W",VLOOKUP(D106,Données!$B$46:$E$51,3,FALSE),IF(LEFT(C106,1)="R",VLOOKUP(D106,Données!$B$46:$E$51,4,FALSE),"/"))),"") ->  | L106: 0 | W106: 0 | X106: 0 | Y106: 0 | AC106: 0 | AD106: 0 | AE106: 0 | AF106: 0
E107: =IF(D107<>"",IF(LEFT(C107,1)="P",VLOOKUP(D107,Données!$B$46:$E$51,2,FALSE),IF(LEFT(C107,1)="W",VLOOKUP(D107,Données!$B$46:$E$51,3,FALSE),IF(LEFT(C107,1)="R",VLOOKUP(D107,Données!$B$46:$E$51,4,FALSE),"/"))),"") ->  | L107: 0 | W107: 0 | X107: 0 | Y107: 0 | AC107: 0 | AD107: 0 | AE107: 0 | AF107: 0
E108: =IF(D108<>"",IF(LEFT(C108,1)="P",VLOOKUP(D108,Données!$B$46:$E$51,2,FALSE),IF(LEFT(C108,1)="W",VLOOKUP(D108,Données!$B$46:$E$51,3,FALSE),IF(LEFT(C108,1)="R",VLOOKUP(D108,Données!$B$46:$E$51,4,FALSE),"/"))),"") ->  | L108: 0 | W108: 0 | X108: 0 | Y108: 0 | AC108: 0 | AD108: 0 | AE108: 0 | AF108: 0
E109: =IF(D109<>"",IF(LEFT(C109,1)="P",VLOOKUP(D109,Données!$B$46:$E$51,2,FALSE),IF(LEFT(C109,1)="W",VLOOKUP(D109,Données!$B$46:$E$51,3,FALSE),IF(LEFT(C109,1)="R",VLOOKUP(D109,Données!$B$46:$E$51,4,FALSE),"/"))),"") ->  | L109: 0 | W109: 0 | X109: 0 | Y109: 0 | AC109: 0 | AD109: 0 | AE109: 0 | AF109: 0
E110: =IF(D110<>"",IF(LEFT(C110,1)="P",VLOOKUP(D110,Données!$B$46:$E$51,2,FALSE),IF(LEFT(C110,1)="W",VLOOKUP(D110,Données!$B$46:$E$51,3,FALSE),IF(LEFT(C110,1)="R",VLOOKUP(D110,Données!$B$46:$E$51,4,FALSE),"/"))),"") ->  | L110: 0 | W110: 0 | X110: 0 | Y110: 0 | AC110: 0 | AD110: 0 | AE110: 0 | AF110: 0
E111: =IF(D111<>"",IF(LEFT(C111,1)="P",VLOOKUP(D111,Données!$B$46:$E$51,2,FALSE),IF(LEFT(C111,1)="W",VLOOKUP(D111,Données!$B$46:$E$51,3,FALSE),IF(LEFT(C111,1)="R",VLOOKUP(D111,Données!$B$46:$E$51,4,FALSE),"/"))),"") ->  | L111: 0 | W111: 0 | X111: 0 | Y111: 0 | AC111: 0 | AD111: 0 | AE111: 0 | AF111: 0
E112: =IF(D112<>"",IF(LEFT(C112,1)="P",VLOOKUP(D112,Données!$B$46:$E$51,2,FALSE),IF(LEFT(C112,1)="W",VLOOKUP(D112,Données!$B$46:$E$51,3,FALSE),IF(LEFT(C112,1)="R",VLOOKUP(D112,Données!$B$46:$E$51,4,FALSE),"/"))),"") ->  | L112: 0 | W112: 0 | X112: 0 | Y112: 0 | AC112: 0 | AD112: 0 | AE112: 0 | AF112: 0
E113: =IF(D113<>"",IF(LEFT(C113,1)="P",VLOOKUP(D113,Données!$B$46:$E$51,2,FALSE),IF(LEFT(C113,1)="W",VLOOKUP(D113,Données!$B$46:$E$51,3,FALSE),IF(LEFT(C113,1)="R",VLOOKUP(D113,Données!$B$46:$E$51,4,FALSE),"/"))),"") ->  | L113: 0 | W113: 0 | X113: 0 | Y113: 0 | AC113: 0 | AD113: 0 | AE113: 0 | AF113: 0
E114: =IF(D114<>"",IF(LEFT(C114,1)="P",VLOOKUP(D114,Données!$B$46:$E$51,2,FALSE),IF(LEFT(C114,1)="W",VLOOKUP(D114,Données!$B$46:$E$51,3,FALSE),IF(LEFT(C114,1)="R",VLOOKUP(D114,Données!$B$46:$E$51,4,FALSE),"/"))),"") ->  | L114: 0 | W114: 0 | X114: 0 | Y114: 0 | AC114: 0 | AD114: 0 | AE114: 0 | AF114: 0
E115: =IF(D115<>"",IF(LEFT(C115,1)="P",VLOOKUP(D115,Données!$B$46:$E$51,2,FALSE),IF(LEFT(C115,1)="W",VLOOKUP(D115,Données!$B$46:$E$51,3,FALSE),IF(LEFT(C115,1)="R",VLOOKUP(D115,Données!$B$46:$E$51,4,FALSE),"/"))),"") ->  | L115: 0 | W115: 0 | X115: 0 | Y115: 0 | AC115: 0 | AD115: 0 | AE115: 0 | AF115: 0
E116: =IF(D116<>"",IF(LEFT(C116,1)="P",VLOOKUP(D116,Données!$B$46:$E$51,2,FALSE),IF(LEFT(C116,1)="W",VLOOKUP(D116,Données!$B$46:$E$51,3,FALSE),IF(LEFT(C116,1)="R",VLOOKUP(D116,Données!$B$46:$E$51,4,FALSE),"/"))),"") ->  | L116: 0 | W116: 0 | X116: 0 | Y116: 0 | AC116: 0 | AD116: 0 | AE116: 0 | AF116: 0
E117: =IF(D117<>"",IF(LEFT(C117,1)="P",VLOOKUP(D117,Données!$B$46:$E$51,2,FALSE),IF(LEFT(C117,1)="W",VLOOKUP(D117,Données!$B$46:$E$51,3,FALSE),IF(LEFT(C117,1)="R",VLOOKUP(D117,Données!$B$46:$E$51,4,FALSE),"/"))),"") ->  | L117: 0 | W117: 0 | X117: 0 | Y117: 0 | AC117: 0 | AD117: 0 | AE117: 0 | AF117: 0
E118: =IF(D118<>"",IF(LEFT(C118,1)="P",VLOOKUP(D118,Données!$B$46:$E$51,2,FALSE),IF(LEFT(C118,1)="W",VLOOKUP(D118,Données!$B$46:$E$51,3,FALSE),IF(LEFT(C118,1)="R",VLOOKUP(D118,Données!$B$46:$E$51,4,FALSE),"/"))),"") ->  | L118: 0 | W118: 0 | X118: 0 | Y118: 0 | AC118: 0 | AD118: 0 | AE118: 0 | AF118: 0
E119: =IF(D119<>"",IF(LEFT(C119,1)="P",VLOOKUP(D119,Données!$B$46:$E$51,2,FALSE),IF(LEFT(C119,1)="W",VLOOKUP(D119,Données!$B$46:$E$51,3,FALSE),IF(LEFT(C119,1)="R",VLOOKUP(D119,Données!$B$46:$E$51,4,FALSE),"/"))),"") ->  | L119: 0 | W119: 0 | X119: 0 | Y119: 0 | AC119: 0 | AD119: 0 | AE119: 0 | AF119: 0
E120: =IF(D120<>"",IF(LEFT(C120,1)="P",VLOOKUP(D120,Données!$B$46:$E$51,2,FALSE),IF(LEFT(C120,1)="W",VLOOKUP(D120,Données!$B$46:$E$51,3,FALSE),IF(LEFT(C120,1)="R",VLOOKUP(D120,Données!$B$46:$E$51,4,FALSE),"/"))),"") ->  | L120: 0 | W120: 0 | X120: 0 | Y120: 0 | AC120: 0 | AD120: 0 | AE120: 0 | AF120: 0
E121: =IF(D121<>"",IF(LEFT(C121,1)="P",VLOOKUP(D121,Données!$B$46:$E$51,2,FALSE),IF(LEFT(C121,1)="W",VLOOKUP(D121,Données!$B$46:$E$51,3,FALSE),IF(LEFT(C121,1)="R",VLOOKUP(D121,Données!$B$46:$E$51,4,FALSE),"/"))),"") ->  | L121: 0 | W121: 0 | X121: 0 | Y121: 0 | AC121: 0 | AD121: 0 | AE121: 0 | AF121: 0
E122: =IF(D122<>"",IF(LEFT(C122,1)="P",VLOOKUP(D122,Données!$B$46:$E$51,2,FALSE),IF(LEFT(C122,1)="W",VLOOKUP(D122,Données!$B$46:$E$51,3,FALSE),IF(LEFT(C122,1)="R",VLOOKUP(D122,Données!$B$46:$E$51,4,FALSE),"/"))),"") ->  | L122: 0 | W122: 0 | X122: 0 | Y122: 0 | AC122: 0 | AD122: 0 | AE122: 0 | AF122: 0
E123: =IF(D123<>"",IF(LEFT(C123,1)="P",VLOOKUP(D123,Données!$B$46:$E$51,2,FALSE),IF(LEFT(C123,1)="W",VLOOKUP(D123,Données!$B$46:$E$51,3,FALSE),IF(LEFT(C123,1)="R",VLOOKUP(D123,Données!$B$46:$E$51,4,FALSE),"/"))),"") ->  | L123: 0 | W123: 0 | X123: 0 | Y123: 0 | AC123: 0 | AD123: 0 | AE123: 0 | AF123: 0
E124: =IF(D124<>"",IF(LEFT(C124,1)="P",VLOOKUP(D124,Données!$B$46:$E$51,2,FALSE),IF(LEFT(C124,1)="W",VLOOKUP(D124,Données!$B$46:$E$51,3,FALSE),IF(LEFT(C124,1)="R",VLOOKUP(D124,Données!$B$46:$E$51,4,FALSE),"/"))),"") ->  | L124: 0 | W124: 0 | X124: 0 | Y124: 0 | AC124: 0 | AD124: 0 | AE124: 0 | AF124: 0
E125: =IF(D125<>"",IF(LEFT(C125,1)="P",VLOOKUP(D125,Données!$B$46:$E$51,2,FALSE),IF(LEFT(C125,1)="W",VLOOKUP(D125,Données!$B$46:$E$51,3,FALSE),IF(LEFT(C125,1)="R",VLOOKUP(D125,Données!$B$46:$E$51,4,FALSE),"/"))),"") ->  | L125: 0 | W125: 0 | X125: 0 | Y125: 0 | AC125: 0 | AD125: 0 | AE125: 0 | AF125: 0
E126: =IF(D126<>"",IF(LEFT(C126,1)="P",VLOOKUP(D126,Données!$B$46:$E$51,2,FALSE),IF(LEFT(C126,1)="W",VLOOKUP(D126,Données!$B$46:$E$51,3,FALSE),IF(LEFT(C126,1)="R",VLOOKUP(D126,Données!$B$46:$E$51,4,FALSE),"/"))),"") ->  | L126: 0 | W126: 0 | X126: 0 | Y126: 0 | AC126: 0 | AD126: 0 | AE126: 0 | AF126: 0
E127: =IF(D127<>"",IF(LEFT(C127,1)="P",VLOOKUP(D127,Données!$B$46:$E$51,2,FALSE),IF(LEFT(C127,1)="W",VLOOKUP(D127,Données!$B$46:$E$51,3,FALSE),IF(LEFT(C127,1)="R",VLOOKUP(D127,Données!$B$46:$E$51,4,FALSE),"/"))),"") ->  | L127: 0 | W127: 0 | X127: 0 | Y127: 0 | AC127: 0 | AD127: 0 | AE127: 0 | AF127: 0
E128: =IF(D128<>"",IF(LEFT(C128,1)="P",VLOOKUP(D128,Données!$B$46:$E$51,2,FALSE),IF(LEFT(C128,1)="W",VLOOKUP(D128,Données!$B$46:$E$51,3,FALSE),IF(LEFT(C128,1)="R",VLOOKUP(D128,Données!$B$46:$E$51,4,FALSE),"/"))),"") ->  | L128: 0 | W128: 0 | X128: 0 | Y128: 0 | AC128: 0 | AD128: 0 | AE128: 0 | AF128: 0
E129: =IF(D129<>"",IF(LEFT(C129,1)="P",VLOOKUP(D129,Données!$B$46:$E$51,2,FALSE),IF(LEFT(C129,1)="W",VLOOKUP(D129,Données!$B$46:$E$51,3,FALSE),IF(LEFT(C129,1)="R",VLOOKUP(D129,Données!$B$46:$E$51,4,FALSE),"/"))),"") ->  | L129: 0 | W129: 0 | X129: 0 | Y129: 0 | AC129: 0 | AD129: 0 | AE129: 0 | AF129: 0
E130: =IF(D130<>"",IF(LEFT(C130,1)="P",VLOOKUP(D130,Données!$B$46:$E$51,2,FALSE),IF(LEFT(C130,1)="W",VLOOKUP(D130,Données!$B$46:$E$51,3,FALSE),IF(LEFT(C130,1)="R",VLOOKUP(D130,Données!$B$46:$E$51,4,FALSE),"/"))),"") ->  | L130: 0 | W130: 0 | X130: 0 | Y130: 0 | AC130: 0 | AD130: 0 | AE130: 0 | AF130: 0
E131: =IF(D131<>"",IF(LEFT(C131,1)="P",VLOOKUP(D131,Données!$B$46:$E$51,2,FALSE),IF(LEFT(C131,1)="W",VLOOKUP(D131,Données!$B$46:$E$51,3,FALSE),IF(LEFT(C131,1)="R",VLOOKUP(D131,Données!$B$46:$E$51,4,FALSE),"/"))),"") ->  | L131: 0 | W131: 0 | X131: 0 | Y131: 0 | AC131: 0 | AD131: 0 | AE131: 0 | AF131: 0
E132: =IF(D132<>"",IF(LEFT(C132,1)="P",VLOOKUP(D132,Données!$B$46:$E$51,2,FALSE),IF(LEFT(C132,1)="W",VLOOKUP(D132,Données!$B$46:$E$51,3,FALSE),IF(LEFT(C132,1)="R",VLOOKUP(D132,Données!$B$46:$E$51,4,FALSE),"/"))),"") ->  | L132: 0 | W132: 0 | X132: 0 | Y132: 0 | AC132: 0 | AD132: 0 | AE132: 0 | AF132: 0
E133: =IF(D133<>"",IF(LEFT(C133,1)="P",VLOOKUP(D133,Données!$B$46:$E$51,2,FALSE),IF(LEFT(C133,1)="W",VLOOKUP(D133,Données!$B$46:$E$51,3,FALSE),IF(LEFT(C133,1)="R",VLOOKUP(D133,Données!$B$46:$E$51,4,FALSE),"/"))),"") ->  | L133: 0 | W133: 0 | X133: 0 | Y133: 0 | AC133: 0 | AD133: 0 | AE133: 0 | AF133: 0
E134: =IF(D134<>"",IF(LEFT(C134,1)="P",VLOOKUP(D134,Données!$B$46:$E$51,2,FALSE),IF(LEFT(C134,1)="W",VLOOKUP(D134,Données!$B$46:$E$51,3,FALSE),IF(LEFT(C134,1)="R",VLOOKUP(D134,Données!$B$46:$E$51,4,FALSE),"/"))),"") ->  | L134: 0 | W134: 0 | X134: 0 | Y134: 0 | AC134: 0 | AD134: 0 | AE134: 0 | AF134: 0
E135: =IF(D135<>"",IF(LEFT(C135,1)="P",VLOOKUP(D135,Données!$B$46:$E$51,2,FALSE),IF(LEFT(C135,1)="W",VLOOKUP(D135,Données!$B$46:$E$51,3,FALSE),IF(LEFT(C135,1)="R",VLOOKUP(D135,Données!$B$46:$E$51,4,FALSE),"/"))),"") ->  | L135: 0 | W135: 0 | X135: 0 | Y135: 0 | AC135: 0 | AD135: 0 | AE135: 0 | AF135: 0
E136: =IF(D136<>"",IF(LEFT(C136,1)="P",VLOOKUP(D136,Données!$B$46:$E$51,2,FALSE),IF(LEFT(C136,1)="W",VLOOKUP(D136,Données!$B$46:$E$51,3,FALSE),IF(LEFT(C136,1)="R",VLOOKUP(D136,Données!$B$46:$E$51,4,FALSE),"/"))),"") ->  | L136: 0 | W136: 0 | X136: 0 | Y136: 0 | AC136: 0 | AD136: 0 | AE136: 0 | AF136: 0
E137: =IF(D137<>"",IF(LEFT(C137,1)="P",VLOOKUP(D137,Données!$B$46:$E$51,2,FALSE),IF(LEFT(C137,1)="W",VLOOKUP(D137,Données!$B$46:$E$51,3,FALSE),IF(LEFT(C137,1)="R",VLOOKUP(D137,Données!$B$46:$E$51,4,FALSE),"/"))),"") ->  | L137: 0 | W137: 0 | X137: 0 | Y137: 0 | AC137: 0 | AD137: 0 | AE137: 0 | AF137: 0
E138: =IF(D138<>"",IF(LEFT(C138,1)="P",VLOOKUP(D138,Données!$B$46:$E$51,2,FALSE),IF(LEFT(C138,1)="W",VLOOKUP(D138,Données!$B$46:$E$51,3,FALSE),IF(LEFT(C138,1)="R",VLOOKUP(D138,Données!$B$46:$E$51,4,FALSE),"/"))),"") ->  | L138: 0 | W138: 0 | X138: 0 | Y138: 0 | AC138: 0 | AD138: 0 | AE138: 0 | AF138: 0
E139: =IF(D139<>"",IF(LEFT(C139,1)="P",VLOOKUP(D139,Données!$B$46:$E$51,2,FALSE),IF(LEFT(C139,1)="W",VLOOKUP(D139,Données!$B$46:$E$51,3,FALSE),IF(LEFT(C139,1)="R",VLOOKUP(D139,Données!$B$46:$E$51,4,FALSE),"/"))),"") ->  | L139: 0 | W139: 0 | X139: 0 | Y139: 0 | AC139: 0 | AD139: 0 | AE139: 0 | AF139: 0
E140: =IF(D140<>"",IF(LEFT(C140,1)="P",VLOOKUP(D140,Données!$B$46:$E$51,2,FALSE),IF(LEFT(C140,1)="W",VLOOKUP(D140,Données!$B$46:$E$51,3,FALSE),IF(LEFT(C140,1)="R",VLOOKUP(D140,Données!$B$46:$E$51,4,FALSE),"/"))),"") ->  | L140: 0 | W140: 0 | X140: 0 | Y140: 0 | AC140: 0 | AD140: 0 | AE140: 0 | AF140: 0
E141: =IF(D141<>"",IF(LEFT(C141,1)="P",VLOOKUP(D141,Données!$B$46:$E$51,2,FALSE),IF(LEFT(C141,1)="W",VLOOKUP(D141,Données!$B$46:$E$51,3,FALSE),IF(LEFT(C141,1)="R",VLOOKUP(D141,Données!$B$46:$E$51,4,FALSE),"/"))),"") ->  | L141: 0 | W141: 0 | X141: 0 | Y141: 0 | AC141: 0 | AD141: 0 | AE141: 0 | AF141: 0
E142: =IF(D142<>"",IF(LEFT(C142,1)="P",VLOOKUP(D142,Données!$B$46:$E$51,2,FALSE),IF(LEFT(C142,1)="W",VLOOKUP(D142,Données!$B$46:$E$51,3,FALSE),IF(LEFT(C142,1)="R",VLOOKUP(D142,Données!$B$46:$E$51,4,FALSE),"/"))),"") ->  | L142: 0 | W142: 0 | X142: 0 | Y142: 0 | AC142: 0 | AD142: 0 | AE142: 0 | AF142: 0
E143: =IF(D143<>"",IF(LEFT(C143,1)="P",VLOOKUP(D143,Données!$B$46:$E$51,2,FALSE),IF(LEFT(C143,1)="W",VLOOKUP(D143,Données!$B$46:$E$51,3,FALSE),IF(LEFT(C143,1)="R",VLOOKUP(D143,Données!$B$46:$E$51,4,FALSE),"/"))),"") ->  | L143: 0 | W143: 0 | X143: 0 | Y143: 0 | AC143: 0 | AD143: 0 | AE143: 0 | AF143: 0
E144: =IF(D144<>"",IF(LEFT(C144,1)="P",VLOOKUP(D144,Données!$B$46:$E$51,2,FALSE),IF(LEFT(C144,1)="W",VLOOKUP(D144,Données!$B$46:$E$51,3,FALSE),IF(LEFT(C144,1)="R",VLOOKUP(D144,Données!$B$46:$E$51,4,FALSE),"/"))),"") ->  | L144: 0 | W144: 0 | X144: 0 | Y144: 0 | AC144: 0 | AD144: 0 | AE144: 0 | AF144: 0
E145: =IF(D145<>"",IF(LEFT(C145,1)="P",VLOOKUP(D145,Données!$B$46:$E$51,2,FALSE),IF(LEFT(C145,1)="W",VLOOKUP(D145,Données!$B$46:$E$51,3,FALSE),IF(LEFT(C145,1)="R",VLOOKUP(D145,Données!$B$46:$E$51,4,FALSE),"/"))),"") ->  | L145: 0 | W145: 0 | X145: 0 | Y145: 0 | AC145: 0 | AD145: 0 | AE145: 0 | AF145: 0
E146: =IF(D146<>"",IF(LEFT(C146,1)="P",VLOOKUP(D146,Données!$B$46:$E$51,2,FALSE),IF(LEFT(C146,1)="W",VLOOKUP(D146,Données!$B$46:$E$51,3,FALSE),IF(LEFT(C146,1)="R",VLOOKUP(D146,Données!$B$46:$E$51,4,FALSE),"/"))),"") ->  | L146: 0 | W146: 0 | X146: 0 | Y146: 0 | AC146: 0 | AD146: 0 | AE146: 0 | AF146: 0
E147: =IF(D147<>"",IF(LEFT(C147,1)="P",VLOOKUP(D147,Données!$B$46:$E$51,2,FALSE),IF(LEFT(C147,1)="W",VLOOKUP(D147,Données!$B$46:$E$51,3,FALSE),IF(LEFT(C147,1)="R",VLOOKUP(D147,Données!$B$46:$E$51,4,FALSE),"/"))),"") ->  | L147: 0 | W147: 0 | X147: 0 | Y147: 0 | AC147: 0 | AD147: 0 | AE147: 0 | AF147: 0
E148: =IF(D148<>"",IF(LEFT(C148,1)="P",VLOOKUP(D148,Données!$B$46:$E$51,2,FALSE),IF(LEFT(C148,1)="W",VLOOKUP(D148,Données!$B$46:$E$51,3,FALSE),IF(LEFT(C148,1)="R",VLOOKUP(D148,Données!$B$46:$E$51,4,FALSE),"/"))),"") ->  | L148: 0 | W148: 0 | X148: 0 | Y148: 0 | AC148: 0 | AD148: 0 | AE148: 0 | AF148: 0
E149: =IF(D149<>"",IF(LEFT(C149,1)="P",VLOOKUP(D149,Données!$B$46:$E$51,2,FALSE),IF(LEFT(C149,1)="W",VLOOKUP(D149,Données!$B$46:$E$51,3,FALSE),IF(LEFT(C149,1)="R",VLOOKUP(D149,Données!$B$46:$E$51,4,FALSE),"/"))),"") ->  | L149: 0 | W149: 0 | X149: 0 | Y149: 0 | AC149: 0 | AD149: 0 | AE149: 0 | AF149: 0
E150: =IF(D150<>"",IF(LEFT(C150,1)="P",VLOOKUP(D150,Données!$B$46:$E$51,2,FALSE),IF(LEFT(C150,1)="W",VLOOKUP(D150,Données!$B$46:$E$51,3,FALSE),IF(LEFT(C150,1)="R",VLOOKUP(D150,Données!$B$46:$E$51,4,FALSE),"/"))),"") ->  | L150: 0 | W150: 0 | X150: 0 | Y150: 0 | AC150: 0 | AD150: 0 | AE150: 0 | AF150: 0
E151: =IF(D151<>"",IF(LEFT(C151,1)="P",VLOOKUP(D151,Données!$B$46:$E$51,2,FALSE),IF(LEFT(C151,1)="W",VLOOKUP(D151,Données!$B$46:$E$51,3,FALSE),IF(LEFT(C151,1)="R",VLOOKUP(D151,Données!$B$46:$E$51,4,FALSE),"/"))),"") ->  | L151: 0 | W151: 0 | X151: 0 | Y151: 0 | AC151: 0 | AD151: 0 | AE151: 0 | AF151: 0
E152: =IF(D152<>"",IF(LEFT(C152,1)="P",VLOOKUP(D152,Données!$B$46:$E$51,2,FALSE),IF(LEFT(C152,1)="W",VLOOKUP(D152,Données!$B$46:$E$51,3,FALSE),IF(LEFT(C152,1)="R",VLOOKUP(D152,Données!$B$46:$E$51,4,FALSE),"/"))),"") ->  | L152: 0 | W152: 0 | X152: 0 | Y152: 0 | AC152: 0 | AD152: 0 | AE152: 0 | AF152: 0
E153: =IF(D153<>"",IF(LEFT(C153,1)="P",VLOOKUP(D153,Données!$B$46:$E$51,2,FALSE),IF(LEFT(C153,1)="W",VLOOKUP(D153,Données!$B$46:$E$51,3,FALSE),IF(LEFT(C153,1)="R",VLOOKUP(D153,Données!$B$46:$E$51,4,FALSE),"/"))),"") ->  | L153: 0 | W153: 0 | X153: 0 | Y153: 0 | AC153: 0 | AD153: 0 | AE153: 0 | AF153: 0
E154: =IF(D154<>"",IF(LEFT(C154,1)="P",VLOOKUP(D154,Données!$B$46:$E$51,2,FALSE),IF(LEFT(C154,1)="W",VLOOKUP(D154,Données!$B$46:$E$51,3,FALSE),IF(LEFT(C154,1)="R",VLOOKUP(D154,Données!$B$46:$E$51,4,FALSE),"/"))),"") ->  | L154: 0 | W154: 0 | X154: 0 | Y154: 0 | AC154: 0 | AD154: 0 | AE154: 0 | AF154: 0
E155: =IF(D155<>"",IF(LEFT(C155,1)="P",VLOOKUP(D155,Données!$B$46:$E$51,2,FALSE),IF(LEFT(C155,1)="W",VLOOKUP(D155,Données!$B$46:$E$51,3,FALSE),IF(LEFT(C155,1)="R",VLOOKUP(D155,Données!$B$46:$E$51,4,FALSE),"/"))),"") ->  | L155: 0 | W155: 0 | X155: 0 | Y155: 0 | AC155: 0 | AD155: 0 | AE155: 0 | AF155: 0
E156: =IF(D156<>"",IF(LEFT(C156,1)="P",VLOOKUP(D156,Données!$B$46:$E$51,2,FALSE),IF(LEFT(C156,1)="W",VLOOKUP(D156,Données!$B$46:$E$51,3,FALSE),IF(LEFT(C156,1)="R",VLOOKUP(D156,Données!$B$46:$E$51,4,FALSE),"/"))),"") ->  | L156: 0 | W156: 0 | X156: 0 | Y156: 0 | AC156: 0 | AD156: 0 | AE156: 0 | AF156: 0
E157: =IF(D157<>"",IF(LEFT(C157,1)="P",VLOOKUP(D157,Données!$B$46:$E$51,2,FALSE),IF(LEFT(C157,1)="W",VLOOKUP(D157,Données!$B$46:$E$51,3,FALSE),IF(LEFT(C157,1)="R",VLOOKUP(D157,Données!$B$46:$E$51,4,FALSE),"/"))),"") ->  | L157: 0 | W157: 0 | X157: 0 | Y157: 0 | AC157: 0 | AD157: 0 | AE157: 0 | AF157: 0
E158: =IF(D158<>"",IF(LEFT(C158,1)="P",VLOOKUP(D158,Données!$B$46:$E$51,2,FALSE),IF(LEFT(C158,1)="W",VLOOKUP(D158,Données!$B$46:$E$51,3,FALSE),IF(LEFT(C158,1)="R",VLOOKUP(D158,Données!$B$46:$E$51,4,FALSE),"/"))),"") ->  | L158: 0 | W158: 0 | X158: 0 | Y158: 0 | AC158: 0 | AD158: 0 | AE158: 0 | AF158: 0
E159: =IF(D159<>"",IF(LEFT(C159,1)="P",VLOOKUP(D159,Données!$B$46:$E$51,2,FALSE),IF(LEFT(C159,1)="W",VLOOKUP(D159,Données!$B$46:$E$51,3,FALSE),IF(LEFT(C159,1)="R",VLOOKUP(D159,Données!$B$46:$E$51,4,FALSE),"/"))),"") ->  | L159: 0 | W159: 0 | X159: 0 | Y159: 0 | AC159: 0 | AD159: 0 | AE159: 0 | AF159: 0
E160: =IF(D160<>"",IF(LEFT(C160,1)="P",VLOOKUP(D160,Données!$B$46:$E$51,2,FALSE),IF(LEFT(C160,1)="W",VLOOKUP(D160,Données!$B$46:$E$51,3,FALSE),IF(LEFT(C160,1)="R",VLOOKUP(D160,Données!$B$46:$E$51,4,FALSE),"/"))),"") ->  | L160: 0 | W160: 0 | X160: 0 | Y160: 0 | AC160: 0 | AD160: 0 | AE160: 0 | AF160: 0
E161: =IF(D161<>"",IF(LEFT(C161,1)="P",VLOOKUP(D161,Données!$B$46:$E$51,2,FALSE),IF(LEFT(C161,1)="W",VLOOKUP(D161,Données!$B$46:$E$51,3,FALSE),IF(LEFT(C161,1)="R",VLOOKUP(D161,Données!$B$46:$E$51,4,FALSE),"/"))),"") ->  | H161: =IF(AND(NOT(ISBLANK(B161)),OR($L$19>90,MIN($L$19:$L$20)<15)),"-",IF(G161=0,"",IF($L$19>25,3.28086*POWER(AVERAGE($L$19:$L$20)-G161,1.1536),N161))) ->  | I161: =IF(H161="-","-",IF(G161=0,"",VLOOKUP(D161,$W$342:$X$346,2,0)*H161)) ->  | J161: =IF(I161="-","-",IF(W161=0,"",IF(W161=1,Y161,IF(W161=2,"")))) ->  | K161: =IF(J161="-","-",IF(W161=1,Z161,"")) ->  | L161: 0 | N161: =IF(G161="","",IF($L$23="Panneaux en mode rafraîchissement suivant EN 14240",(5.7091*(G161-AVERAGE($L$19:$L$20))-5.1818)*1.45,IF($K$24="Montage en faux plafond",(5.7091*(G161-AVERAGE($L$19:$L$20))-5.1818),IF($K$24="Montage apparent",(7.5455*(G161-AVERAGE($L$19:$L$20))-5.1818),"")))) ->  | W161: 0 | X161: 0 | Y161: 0 | AC161: 0 | AD161: 0 | AE161: 0 | AF161: 0
E162: =IF(D162<>"",IF(LEFT(C162,1)="P",VLOOKUP(D162,Données!$B$46:$E$51,2,FALSE),IF(LEFT(C162,1)="W",VLOOKUP(D162,Données!$B$46:$E$51,3,FALSE),IF(LEFT(C162,1)="R",VLOOKUP(D162,Données!$B$46:$E$51,4,FALSE),"/"))),"") ->  | L162: =IF(K162="-","-",IF(W162=0,0,IF(W162=1,ROUND(AC162,2),IF(W162=2,0)))) -> 0 | W162: =IF(OR(C162="PA",C162="PB",C162="WA",C162="WB",C162="RA",C162="RB",C162="PS",C162="WS"),2,IF(OR(C162="P",C162="W",C162="R"),1,0)) -> 0 | X162: 0 | Y162: =IF(AND(W162=0,X162=0),0,IF(X162=0,I162*B162,IF(X162=1,I162*B162+Y163,0))) -> 0 | Z162: =IF(W162=2,Z161,IF(W162=0,"",IF(W162=1,IF($L$19>29,J162/($L$19-$L$20)/1.16,IF($L$19<29,J162/($L$20-$L$19)/1.16,""))))) ->  | AC162: 0 | AD162: 0 | AE162: 0 | AF162: =(($W$336/$W$339)*(($X$349*(POWER(AD162,2)))/2)*(VLOOKUP(D162,$W$342:$X$346,2,0)*6*B162))/1000 -> 0
E163: =IF(D163<>"",IF(LEFT(C163,1)="P",VLOOKUP(D163,Données!$B$46:$E$51,2,FALSE),IF(LEFT(C163,1)="W",VLOOKUP(D163,Données!$B$46:$E$51,3,FALSE),IF(LEFT(C163,1)="R",VLOOKUP(D163,Données!$B$46:$E$51,4,FALSE),"/"))),"") ->  | L163: 0 | M163: =+IF(K163="","",IF(K163<$W$29,J163*0.95,J163)) ->  | W163: 0 | X163: =IF(W164=0,0,IF(W164=2,1,0)) -> 0 | Y163: 0 | AA163: =IF(W163=0,"",IF(W163=1,$W$29,IF(W163=2,AA162))) ->  | AB163: =IF(MAX(Z163,AA163)=0,"",MAX(Z163,AA163)) ->  | AC163: =IF(AND(W163=0,X163=0),0,IF(X163=0,AE163+AF163,IF(X163=1,AC164+AE163+AF163,0))) -> 0 | AD163: =IF(Z163="",0,IF(OR(Z163=0,Z163=""),0,(Z163/1000/3600)/(PI()*POWER((0.0126/2),2)))) -> 0 | AE163: =($Z$329*($X$349*(POWER(AD163,2)))/2)/1000 -> 0 | AF163: 0
E164: =IF(D164<>"",IF(LEFT(C164,1)="P",VLOOKUP(D164,Données!$B$46:$E$51,2,FALSE),IF(LEFT(C164,1)="W",VLOOKUP(D164,Données!$B$46:$E$51,3,FALSE),IF(LEFT(C164,1)="R",VLOOKUP(D164,Données!$B$46:$E$51,4,FALSE),"/"))),"") ->  | F164: =IF(D164<>"",HLOOKUP(D164,$S$3:$X$16,MATCH(C164,$S$3:$S$16,0),FALSE),"") ->  | L164: 0 | W164: 0 | X164: 0 | Y164: 0 | AC164: 0 | AD164: 0 | AE164: 0 | AF164: 0
E165: =IF(D165<>"",IF(LEFT(C165,1)="P",VLOOKUP(D165,Données!$B$46:$E$51,2,FALSE),IF(LEFT(C165,1)="W",VLOOKUP(D165,Données!$B$46:$E$51,3,FALSE),IF(LEFT(C165,1)="R",VLOOKUP(D165,Données!$B$46:$E$51,4,FALSE),"/"))),"") ->  | L165: 0 | W165: 0 | X165: 0 | Y165: 0 | AC165: 0 | AD165: 0 | AE165: 0 | AF165: 0
E166: =IF(D166<>"",IF(LEFT(C166,1)="P",VLOOKUP(D166,Données!$B$46:$E$51,2,FALSE),IF(LEFT(C166,1)="W",VLOOKUP(D166,Données!$B$46:$E$51,3,FALSE),IF(LEFT(C166,1)="R",VLOOKUP(D166,Données!$B$46:$E$51,4,FALSE),"/"))),"") ->  | L166: 0 | W166: 0 | X166: 0 | Y166: 0 | AC166: 0 | AD166: 0 | AE166: 0 | AF166: 0
E167: =IF(D167<>"",IF(LEFT(C167,1)="P",VLOOKUP(D167,Données!$B$46:$E$51,2,FALSE),IF(LEFT(C167,1)="W",VLOOKUP(D167,Données!$B$46:$E$51,3,FALSE),IF(LEFT(C167,1)="R",VLOOKUP(D167,Données!$B$46:$E$51,4,FALSE),"/"))),"") ->  | L167: 0 | W167: 0 | X167: 0 | Y167: 0 | AC167: 0 | AD167: 0 | AE167: 0 | AF167: 0
E168: =IF(D168<>"",IF(LEFT(C168,1)="P",VLOOKUP(D168,Données!$B$46:$E$51,2,FALSE),IF(LEFT(C168,1)="W",VLOOKUP(D168,Données!$B$46:$E$51,3,FALSE),IF(LEFT(C168,1)="R",VLOOKUP(D168,Données!$B$46:$E$51,4,FALSE),"/"))),"") ->  | L168: 0 | W168: 0 | X168: 0 | Y168: 0 | AC168: 0 | AD168: 0 | AE168: 0 | AF168: 0
E169: =IF(D169<>"",IF(LEFT(C169,1)="P",VLOOKUP(D169,Données!$B$46:$E$51,2,FALSE),IF(LEFT(C169,1)="W",VLOOKUP(D169,Données!$B$46:$E$51,3,FALSE),IF(LEFT(C169,1)="R",VLOOKUP(D169,Données!$B$46:$E$51,4,FALSE),"/"))),"") ->  | L169: 0 | W169: 0 | X169: 0 | Y169: 0 | AC169: 0 | AD169: 0 | AE169: 0 | AF169: 0
E170: =IF(D170<>"",IF(LEFT(C170,1)="P",VLOOKUP(D170,Données!$B$46:$E$51,2,FALSE),IF(LEFT(C170,1)="W",VLOOKUP(D170,Données!$B$46:$E$51,3,FALSE),IF(LEFT(C170,1)="R",VLOOKUP(D170,Données!$B$46:$E$51,4,FALSE),"/"))),"") ->  | L170: 0 | W170: 0 | X170: 0 | Y170: 0 | AC170: 0 | AD170: 0 | AE170: 0 | AF170: 0
E171: =IF(D171<>"",IF(LEFT(C171,1)="P",VLOOKUP(D171,Données!$B$46:$E$51,2,FALSE),IF(LEFT(C171,1)="W",VLOOKUP(D171,Données!$B$46:$E$51,3,FALSE),IF(LEFT(C171,1)="R",VLOOKUP(D171,Données!$B$46:$E$51,4,FALSE),"/"))),"") ->  | L171: 0 | W171: 0 | X171: 0 | Y171: 0 | AC171: 0 | AD171: 0 | AE171: 0 | AF171: 0
E172: =IF(D172<>"",IF(LEFT(C172,1)="P",VLOOKUP(D172,Données!$B$46:$E$51,2,FALSE),IF(LEFT(C172,1)="W",VLOOKUP(D172,Données!$B$46:$E$51,3,FALSE),IF(LEFT(C172,1)="R",VLOOKUP(D172,Données!$B$46:$E$51,4,FALSE),"/"))),"") ->  | L172: 0 | W172: 0 | X172: 0 | Y172: 0 | AC172: 0 | AD172: 0 | AE172: 0 | AF172: 0
E173: =IF(D173<>"",IF(LEFT(C173,1)="P",VLOOKUP(D173,Données!$B$46:$E$51,2,FALSE),IF(LEFT(C173,1)="W",VLOOKUP(D173,Données!$B$46:$E$51,3,FALSE),IF(LEFT(C173,1)="R",VLOOKUP(D173,Données!$B$46:$E$51,4,FALSE),"/"))),"") ->  | L173: 0 | W173: 0 | X173: 0 | Y173: 0 | AC173: 0 | AD173: 0 | AE173: 0 | AF173: 0
E174: =IF(D174<>"",IF(LEFT(C174,1)="P",VLOOKUP(D174,Données!$B$46:$E$51,2,FALSE),IF(LEFT(C174,1)="W",VLOOKUP(D174,Données!$B$46:$E$51,3,FALSE),IF(LEFT(C174,1)="R",VLOOKUP(D174,Données!$B$46:$E$51,4,FALSE),"/"))),"") ->  | L174: 0 | W174: 0 | X174: 0 | Y174: 0 | AC174: 0 | AD174: 0 | AE174: 0 | AF174: 0
E175: =IF(D175<>"",IF(LEFT(C175,1)="P",VLOOKUP(D175,Données!$B$46:$E$51,2,FALSE),IF(LEFT(C175,1)="W",VLOOKUP(D175,Données!$B$46:$E$51,3,FALSE),IF(LEFT(C175,1)="R",VLOOKUP(D175,Données!$B$46:$E$51,4,FALSE),"/"))),"") ->  | L175: 0 | W175: 0 | X175: 0 | Y175: 0 | AC175: 0 | AD175: 0 | AE175: 0 | AF175: 0
E176: =IF(D176<>"",IF(LEFT(C176,1)="P",VLOOKUP(D176,Données!$B$46:$E$51,2,FALSE),IF(LEFT(C176,1)="W",VLOOKUP(D176,Données!$B$46:$E$51,3,FALSE),IF(LEFT(C176,1)="R",VLOOKUP(D176,Données!$B$46:$E$51,4,FALSE),"/"))),"") ->  | L176: 0 | W176: 0 | X176: 0 | Y176: 0 | AC176: 0 | AD176: 0 | AE176: 0 | AF176: 0
E177: =IF(D177<>"",IF(LEFT(C177,1)="P",VLOOKUP(D177,Données!$B$46:$E$51,2,FALSE),IF(LEFT(C177,1)="W",VLOOKUP(D177,Données!$B$46:$E$51,3,FALSE),IF(LEFT(C177,1)="R",VLOOKUP(D177,Données!$B$46:$E$51,4,FALSE),"/"))),"") ->  | L177: 0 | W177: 0 | X177: 0 | Y177: 0 | AC177: 0 | AD177: 0 | AE177: 0 | AF177: 0
E178: =IF(D178<>"",IF(LEFT(C178,1)="P",VLOOKUP(D178,Données!$B$46:$E$51,2,FALSE),IF(LEFT(C178,1)="W",VLOOKUP(D178,Données!$B$46:$E$51,3,FALSE),IF(LEFT(C178,1)="R",VLOOKUP(D178,Données!$B$46:$E$51,4,FALSE),"/"))),"") ->  | L178: 0 | W178: 0 | X178: 0 | Y178: 0 | AC178: 0 | AD178: 0 | AE178: 0 | AF178: 0
E179: =IF(D179<>"",IF(LEFT(C179,1)="P",VLOOKUP(D179,Données!$B$46:$E$51,2,FALSE),IF(LEFT(C179,1)="W",VLOOKUP(D179,Données!$B$46:$E$51,3,FALSE),IF(LEFT(C179,1)="R",VLOOKUP(D179,Données!$B$46:$E$51,4,FALSE),"/"))),"") ->  | L179: 0 | W179: 0 | X179: 0 | Y179: 0 | AC179: 0 | AD179: 0 | AE179: 0 | AF179: 0
E180: =IF(D180<>"",IF(LEFT(C180,1)="P",VLOOKUP(D180,Données!$B$46:$E$51,2,FALSE),IF(LEFT(C180,1)="W",VLOOKUP(D180,Données!$B$46:$E$51,3,FALSE),IF(LEFT(C180,1)="R",VLOOKUP(D180,Données!$B$46:$E$51,4,FALSE),"/"))),"") ->  | L180: 0 | W180: 0 | X180: 0 | Y180: 0 | AC180: 0 | AD180: 0 | AE180: 0 | AF180: 0
E181: =IF(D181<>"",IF(LEFT(C181,1)="P",VLOOKUP(D181,Données!$B$46:$E$51,2,FALSE),IF(LEFT(C181,1)="W",VLOOKUP(D181,Données!$B$46:$E$51,3,FALSE),IF(LEFT(C181,1)="R",VLOOKUP(D181,Données!$B$46:$E$51,4,FALSE),"/"))),"") ->  | L181: 0 | W181: 0 | X181: 0 | Y181: 0 | AC181: 0 | AD181: 0 | AE181: 0 | AF181: 0
E182: =IF(D182<>"",IF(LEFT(C182,1)="P",VLOOKUP(D182,Données!$B$46:$E$51,2,FALSE),IF(LEFT(C182,1)="W",VLOOKUP(D182,Données!$B$46:$E$51,3,FALSE),IF(LEFT(C182,1)="R",VLOOKUP(D182,Données!$B$46:$E$51,4,FALSE),"/"))),"") ->  | L182: 0 | W182: 0 | X182: 0 | Y182: 0 | AC182: 0 | AD182: 0 | AE182: 0 | AF182: 0
E183: =IF(D183<>"",IF(LEFT(C183,1)="P",VLOOKUP(D183,Données!$B$46:$E$51,2,FALSE),IF(LEFT(C183,1)="W",VLOOKUP(D183,Données!$B$46:$E$51,3,FALSE),IF(LEFT(C183,1)="R",VLOOKUP(D183,Données!$B$46:$E$51,4,FALSE),"/"))),"") ->  | L183: 0 | W183: 0 | X183: 0 | Y183: 0 | AC183: 0 | AD183: 0 | AE183: 0 | AF183: 0
E184: =IF(D184<>"",IF(LEFT(C184,1)="P",VLOOKUP(D184,Données!$B$46:$E$51,2,FALSE),IF(LEFT(C184,1)="W",VLOOKUP(D184,Données!$B$46:$E$51,3,FALSE),IF(LEFT(C184,1)="R",VLOOKUP(D184,Données!$B$46:$E$51,4,FALSE),"/"))),"") ->  | L184: 0 | W184: 0 | X184: 0 | Y184: 0 | AC184: 0 | AD184: 0 | AE184: 0 | AF184: 0
E185: =IF(D185<>"",IF(LEFT(C185,1)="P",VLOOKUP(D185,Données!$B$46:$E$51,2,FALSE),IF(LEFT(C185,1)="W",VLOOKUP(D185,Données!$B$46:$E$51,3,FALSE),IF(LEFT(C185,1)="R",VLOOKUP(D185,Données!$B$46:$E$51,4,FALSE),"/"))),"") ->  | L185: 0 | W185: 0 | X185: 0 | Y185: 0 | AC185: 0 | AD185: 0 | AE185: 0 | AF185: 0
E186: =IF(D186<>"",IF(LEFT(C186,1)="P",VLOOKUP(D186,Données!$B$46:$E$51,2,FALSE),IF(LEFT(C186,1)="W",VLOOKUP(D186,Données!$B$46:$E$51,3,FALSE),IF(LEFT(C186,1)="R",VLOOKUP(D186,Données!$B$46:$E$51,4,FALSE),"/"))),"") ->  | L186: 0 | W186: 0 | X186: 0 | Y186: 0 | AC186: 0 | AD186: 0 | AE186: 0 | AF186: 0
E187: =IF(D187<>"",IF(LEFT(C187,1)="P",VLOOKUP(D187,Données!$B$46:$E$51,2,FALSE),IF(LEFT(C187,1)="W",VLOOKUP(D187,Données!$B$46:$E$51,3,FALSE),IF(LEFT(C187,1)="R",VLOOKUP(D187,Données!$B$46:$E$51,4,FALSE),"/"))),"") ->  | L187: 0 | W187: 0 | X187: 0 | Y187: 0 | AC187: 0 | AD187: 0 | AE187: 0 | AF187: 0
E188: =IF(D188<>"",IF(LEFT(C188,1)="P",VLOOKUP(D188,Données!$B$46:$E$51,2,FALSE),IF(LEFT(C188,1)="W",VLOOKUP(D188,Données!$B$46:$E$51,3,FALSE),IF(LEFT(C188,1)="R",VLOOKUP(D188,Données!$B$46:$E$51,4,FALSE),"/"))),"") ->  | L188: 0 | W188: 0 | X188: 0 | Y188: 0 | AC188: 0 | AD188: 0 | AE188: 0 | AF188: 0
E189: =IF(D189<>"",IF(LEFT(C189,1)="P",VLOOKUP(D189,Données!$B$46:$E$51,2,FALSE),IF(LEFT(C189,1)="W",VLOOKUP(D189,Données!$B$46:$E$51,3,FALSE),IF(LEFT(C189,1)="R",VLOOKUP(D189,Données!$B$46:$E$51,4,FALSE),"/"))),"") ->  | L189: 0 | W189: 0 | X189: 0 | Y189: 0 | AC189: 0 | AD189: 0 | AE189: 0 | AF189: 0
E190: =IF(D190<>"",IF(LEFT(C190,1)="P",VLOOKUP(D190,Données!$B$46:$E$51,2,FALSE),IF(LEFT(C190,1)="W",VLOOKUP(D190,Données!$B$46:$E$51,3,FALSE),IF(LEFT(C190,1)="R",VLOOKUP(D190,Données!$B$46:$E$51,4,FALSE),"/"))),"") ->  | L190: 0 | W190: 0 | X190: 0 | Y190: 0 | AC190: 0 | AD190: 0 | AE190: 0 | AF190: 0
E191: =IF(D191<>"",IF(LEFT(C191,1)="P",VLOOKUP(D191,Données!$B$46:$E$51,2,FALSE),IF(LEFT(C191,1)="W",VLOOKUP(D191,Données!$B$46:$E$51,3,FALSE),IF(LEFT(C191,1)="R",VLOOKUP(D191,Données!$B$46:$E$51,4,FALSE),"/"))),"") ->  | L191: 0 | W191: 0 | X191: 0 | Y191: 0 | AC191: 0 | AD191: 0 | AE191: 0 | AF191: 0
E192: =IF(D192<>"",IF(LEFT(C192,1)="P",VLOOKUP(D192,Données!$B$46:$E$51,2,FALSE),IF(LEFT(C192,1)="W",VLOOKUP(D192,Données!$B$46:$E$51,3,FALSE),IF(LEFT(C192,1)="R",VLOOKUP(D192,Données!$B$46:$E$51,4,FALSE),"/"))),"") ->  | L192: 0 | W192: 0 | X192: 0 | Y192: 0 | AC192: 0 | AD192: 0 | AE192: 0 | AF192: 0
E193: =IF(D193<>"",IF(LEFT(C193,1)="P",VLOOKUP(D193,Données!$B$46:$E$51,2,FALSE),IF(LEFT(C193,1)="W",VLOOKUP(D193,Données!$B$46:$E$51,3,FALSE),IF(LEFT(C193,1)="R",VLOOKUP(D193,Données!$B$46:$E$51,4,FALSE),"/"))),"") ->  | L193: 0 | W193: 0 | X193: 0 | Y193: 0 | AC193: 0 | AD193: 0 | AE193: 0 | AF193: 0
E194: =IF(D194<>"",IF(LEFT(C194,1)="P",VLOOKUP(D194,Données!$B$46:$E$51,2,FALSE),IF(LEFT(C194,1)="W",VLOOKUP(D194,Données!$B$46:$E$51,3,FALSE),IF(LEFT(C194,1)="R",VLOOKUP(D194,Données!$B$46:$E$51,4,FALSE),"/"))),"") ->  | L194: 0 | W194: 0 | X194: 0 | Y194: 0 | AC194: 0 | AD194: 0 | AE194: 0 | AF194: 0
E195: =IF(D195<>"",IF(LEFT(C195,1)="P",VLOOKUP(D195,Données!$B$46:$E$51,2,FALSE),IF(LEFT(C195,1)="W",VLOOKUP(D195,Données!$B$46:$E$51,3,FALSE),IF(LEFT(C195,1)="R",VLOOKUP(D195,Données!$B$46:$E$51,4,FALSE),"/"))),"") ->  | L195: 0 | W195: 0 | X195: 0 | Y195: 0 | AC195: 0 | AD195: 0 | AE195: 0 | AF195: 0
E196: =IF(D196<>"",IF(LEFT(C196,1)="P",VLOOKUP(D196,Données!$B$46:$E$51,2,FALSE),IF(LEFT(C196,1)="W",VLOOKUP(D196,Données!$B$46:$E$51,3,FALSE),IF(LEFT(C196,1)="R",VLOOKUP(D196,Données!$B$46:$E$51,4,FALSE),"/"))),"") ->  | L196: 0 | W196: 0 | X196: 0 | Y196: 0 | AC196: 0 | AD196: 0 | AE196: 0 | AF196: 0
E197: =IF(D197<>"",IF(LEFT(C197,1)="P",VLOOKUP(D197,Données!$B$46:$E$51,2,FALSE),IF(LEFT(C197,1)="W",VLOOKUP(D197,Données!$B$46:$E$51,3,FALSE),IF(LEFT(C197,1)="R",VLOOKUP(D197,Données!$B$46:$E$51,4,FALSE),"/"))),"") ->  | L197: 0 | W197: 0 | X197: 0 | Y197: 0 | AC197: 0 | AD197: 0 | AE197: 0 | AF197: 0
E198: =IF(D198<>"",IF(LEFT(C198,1)="P",VLOOKUP(D198,Données!$B$46:$E$51,2,FALSE),IF(LEFT(C198,1)="W",VLOOKUP(D198,Données!$B$46:$E$51,3,FALSE),IF(LEFT(C198,1)="R",VLOOKUP(D198,Données!$B$46:$E$51,4,FALSE),"/"))),"") ->  | L198: 0 | W198: 0 | X198: 0 | Y198: 0 | AC198: 0 | AD198: 0 | AE198: 0 | AF198: 0
E199: =IF(D199<>"",IF(LEFT(C199,1)="P",VLOOKUP(D199,Données!$B$46:$E$51,2,FALSE),IF(LEFT(C199,1)="W",VLOOKUP(D199,Données!$B$46:$E$51,3,FALSE),IF(LEFT(C199,1)="R",VLOOKUP(D199,Données!$B$46:$E$51,4,FALSE),"/"))),"") ->  | L199: 0 | W199: 0 | X199: 0 | Y199: 0 | AC199: 0 | AD199: 0 | AE199: 0 | AF199: 0
E200: =IF(D200<>"",IF(LEFT(C200,1)="P",VLOOKUP(D200,Données!$B$46:$E$51,2,FALSE),IF(LEFT(C200,1)="W",VLOOKUP(D200,Données!$B$46:$E$51,3,FALSE),IF(LEFT(C200,1)="R",VLOOKUP(D200,Données!$B$46:$E$51,4,FALSE),"/"))),"") ->  | L200: 0 | W200: 0 | X200: 0 | Y200: 0 | AC200: 0 | AD200: 0 | AE200: 0 | AF200: 0
E201: =IF(D201<>"",IF(LEFT(C201,1)="P",VLOOKUP(D201,Données!$B$46:$E$51,2,FALSE),IF(LEFT(C201,1)="W",VLOOKUP(D201,Données!$B$46:$E$51,3,FALSE),IF(LEFT(C201,1)="R",VLOOKUP(D201,Données!$B$46:$E$51,4,FALSE),"/"))),"") ->  | L201: 0 | W201: 0 | X201: 0 | Y201: 0 | AC201: 0 | AD201: 0 | AE201: 0 | AF201: 0
E202: =IF(D202<>"",IF(LEFT(C202,1)="P",VLOOKUP(D202,Données!$B$46:$E$51,2,FALSE),IF(LEFT(C202,1)="W",VLOOKUP(D202,Données!$B$46:$E$51,3,FALSE),IF(LEFT(C202,1)="R",VLOOKUP(D202,Données!$B$46:$E$51,4,FALSE),"/"))),"") ->  | L202: 0 | W202: 0 | X202: 0 | Y202: 0 | AC202: 0 | AD202: 0 | AE202: 0 | AF202: 0
E203: =IF(D203<>"",IF(LEFT(C203,1)="P",VLOOKUP(D203,Données!$B$46:$E$51,2,FALSE),IF(LEFT(C203,1)="W",VLOOKUP(D203,Données!$B$46:$E$51,3,FALSE),IF(LEFT(C203,1)="R",VLOOKUP(D203,Données!$B$46:$E$51,4,FALSE),"/"))),"") ->  | L203: 0 | W203: 0 | X203: 0 | Y203: 0 | AC203: 0 | AD203: 0 | AE203: 0 | AF203: 0
E204: =IF(D204<>"",IF(LEFT(C204,1)="P",VLOOKUP(D204,Données!$B$46:$E$51,2,FALSE),IF(LEFT(C204,1)="W",VLOOKUP(D204,Données!$B$46:$E$51,3,FALSE),IF(LEFT(C204,1)="R",VLOOKUP(D204,Données!$B$46:$E$51,4,FALSE),"/"))),"") ->  | L204: 0 | W204: 0 | X204: 0 | Y204: 0 | AC204: 0 | AD204: 0 | AE204: 0 | AF204: 0
E205: =IF(D205<>"",IF(LEFT(C205,1)="P",VLOOKUP(D205,Données!$B$46:$E$51,2,FALSE),IF(LEFT(C205,1)="W",VLOOKUP(D205,Données!$B$46:$E$51,3,FALSE),IF(LEFT(C205,1)="R",VLOOKUP(D205,Données!$B$46:$E$51,4,FALSE),"/"))),"") ->  | L205: 0 | W205: 0 | X205: 0 | Y205: 0 | AC205: 0 | AD205: 0 | AE205: 0 | AF205: 0
E206: =IF(D206<>"",IF(LEFT(C206,1)="P",VLOOKUP(D206,Données!$B$46:$E$51,2,FALSE),IF(LEFT(C206,1)="W",VLOOKUP(D206,Données!$B$46:$E$51,3,FALSE),IF(LEFT(C206,1)="R",VLOOKUP(D206,Données!$B$46:$E$51,4,FALSE),"/"))),"") ->  | L206: 0 | W206: 0 | X206: 0 | Y206: 0 | AC206: 0 | AD206: 0 | AE206: 0 | AF206: 0
... 239 more rows

Sheet PULS +
A2: Panneaux rayonnants PULSAR - Liste détaillée pièce par pièce
A3: =+PULS_Calcul!A3 -> À l'attention de :
Q5: Conditions de sélection:
P6: Température de départ | Q6: =+PULS_Calcul!L19 -> 60 | S6: Données de base :
P7: Température de retour | Q7: =+PULS_Calcul!L20 -> 50 | S7: T°eau entrée | T7: 15
Q8: =+PULS_Calcul!L21 -> *Hypothèse de calcul à valider par vos soins | S8: T°eau sortie | T8: 18
S9: Température Ambiante | T9: 26
B11: Données de base | E11: Puissance linéaire | G11: Modèle Panneau Rayonnant PULSAR | S11: Rafraîchissement suivant EN 14240 | U11: Rafraîchissement suivant la norme EN 14037-4 | W11: Rafraîchissement suivant EN 14240
B12: Déperdition | C12: Temp. ambiante | G12: Puissance Chaude Installée | H12: P0 0,60 ml | J12: P1 1,20 ml | L12: P2 1,80 ml | N12: P3 2,40 ml | P12: P4 3,00 ml | S12: Apports | T12: Puissance froide installée | U12: Faux plafond | V12: Apparent | Z12: Régulation
B13: [W] | C13: [°C] | E13: [W/ml] | G13: [W] | H13: P | I13: PS | J13: P | K13: PS | L13: P | M13: PS | N13: P | O13: PS | P13: P | Q13: PS | S13: [W] | T13: [W] | U13: [W] | V13: [W] | Z13: Régulateur 6066910 | AA13: Sonde à boule noire IP30 6080271S | AB13: Vanne 15LF 44-245 6080265I | AC13: Vanne 15L 88-470 6080266I | AD13: Actionneur TOR 230V 6080269I
S14: Montage apparent
A15: TOTAL PANNEAUX PULSAR : | H15: =IF(SUM(H16:H366)=0,"",SUM(H16:H366)) ->  | Z15: =IF(SUM(Z16:Z366)=0,"",SUM(Z16:Z366)) ->  | AA15: =IF(SUM(AA16:AA366)=0,"",SUM(AA16:AA366)) ->  | AB15: =IF(SUM(AB16:AB366)=0,"",SUM(AB16:AB366)) ->  | AC15: =IF(SUM(AC16:AC366)=0,"",SUM(AC16:AC366)) ->  | AD15: =IF(SUM(AD16:AD366)=0,"",SUM(AD16:AD366)) -> 
E16: =IF(C16<>0,3.28086*POWER(AVERAGE($Q$6,$Q$7)-C16,1.1536)," ") ->  | G16: =IF(C16<>0,((H16+I16)*0.6+(K16+J16)*1.2+(M16+L16)*1.8+(O16+N16)*2.4+(Q16+P16)*3)*E16," ") ->  | T16: =IF(E16=" ","",IF($S$11=$W$11,W16,IF($S$14="Montage en faux plafond",U16,IF($S$14="Montage apparent",V16)))) ->  | U16: =ROUND(((H16+I16)*0.6+(K16+J16)*1.2+(M16+L16)*1.8+(O16+N16)*2.4+(Q16+P16)*3)*(5.7091*($T$9-AVERAGE($T$7:$T$8))-5.1818),0) -> 0 | V16: =+ROUND(((H16+I16)*0.6+(K16+J16)*1.2+(M16+L16)*1.8+(O16+N16)*2.4+(Q16+P16)*3)*(7.5455*($T$9-AVERAGE($T$7:$T$8))-5.1818),0) -> 0 | W16: =+U16*1.45 -> 0
G17: =IF(C17<>0,((H17+I17)*0.6+(K17+J17)*1.2+(M17+L17)*1.8+(O17+N17)*2.4+(Q17+P17)*3)*E17," ") ->  | S17: 5 | T17: =IF(E17=" ","",IF($S$11=$W$11,W17,IF($S$14="Montage en faux plafond",U17,IF($S$14="Montage apparent",V17)))) ->  | U17: =ROUND(((H17+I17)*0.6+(K17+J17)*1.2+(M17+L17)*1.8+(O17+N17)*2.4+(Q17+P17)*3)*(5.7091*($T$9-AVERAGE($T$7:$T$8))-5.1818),0) -> 0 | V17: =+ROUND(((H17+I17)*0.6+(K17+J17)*1.2+(M17+L17)*1.8+(O17+N17)*2.4+(Q17+P17)*3)*(7.5455*($T$9-AVERAGE($T$7:$T$8))-5.1818),0) -> 0 | W17: =+U17*1.45 -> 0
T18: =IF(E18=" ","",IF($S$11=$W$11,W18,IF($S$14="Montage en faux plafond",U18,IF($S$14="Montage apparent",V18)))) ->  | U18: 0 | V18: 0 | W18: 0
U19: 0 | V19: 0 | W19: 0
U20: 0 | V20: 0 | W20: 0
U21: 0 | V21: 0 | W21: 0
U22: 0 | V22: 0 | W22: 0
U23: 0 | V23: 0 | W23: 0
U24: 0 | V24: 0 | W24: 0
U25: 0 | V25: 0 | W25: 0
U26: 0 | V26: 0 | W26: 0
U27: 0 | V27: 0 | W27: 0
U28: 0 | V28: 0 | W28: 0
U29: 0 | V29: 0 | W29: 0
U30: 0 | V30: 0 | W30: 0
U31: 0 | V31: 0 | W31: 0
U32: 0 | V32: 0 | W32: 0
U33: 0 | V33: 0 | W33: 0
U34: 0 | V34: 0 | W34: 0
U35: 0 | V35: 0 | W35: 0
U36: 0 | V36: 0 | W36: 0
U37: 0 | V37: 0 | W37: 0
U38: 0 | V38: 0 | W38: 0
U39: 0 | V39: 0 | W39: 0
U40: 0 | V40: 0 | W40: 0
U41: 0 | V41: 0 | W41: 0
U42: 0 | V42: 0 | W42: 0
U43: 0 | V43: 0 | W43: 0
U44: 0 | V44: 0 | W44: 0
U45: 0 | V45: 0 | W45: 0
U46: 0 | V46: 0 | W46: 0
U47: 0 | V47: 0 | W47: 0
U48: 0 | V48: 0 | W48: 0
U49: 0 | V49: 0 | W49: 0
U50: 0 | V50: 0 | W50: 0
U51: 0 | V51: 0 | W51: 0
U52: 0 | V52: 0 | W52: 0
U53: 0 | V53: 0 | W53: 0
U54: 0 | V54: 0 | W54: 0
U55: 0 | V55: 0 | W55: 0
U56: 0 | V56: 0 | W56: 0
U57: 0 | V57: 0 | W57: 0
U58: 0 | V58: 0 | W58: 0
U59: 0 | V59: 0 | W59: 0
U60: 0 | V60: 0 | W60: 0
U61: 0 | V61: 0 | W61: 0
U62: 0 | V62: 0 | W62: 0
U63: 0 | V63: 0 | W63: 0
U64: 0 | V64: 0 | W64: 0
U65: 0 | V65: 0 | W65: 0
U66: 0 | V66: 0 | W66: 0
U67: 0 | V67: 0 | W67: 0
U68: 0 | V68: 0 | W68: 0
U69: 0 | V69: 0 | W69: 0
U70: 0 | V70: 0 | W70: 0
U71: 0 | V71: 0 | W71: 0
U72: 0 | V72: 0 | W72: 0
U73: 0 | V73: 0 | W73: 0
U74: 0 | V74: 0 | W74: 0
U75: 0 | V75: 0 | W75: 0
U76: 0 | V76: 0 | W76: 0
U77: 0 | V77: 0 | W77: 0
U78: 0 | V78: 0 | W78: 0
U79: 0 | V79: 0 | W79: 0
E80: =IF(C80<>0,3.28086*POWER(AVERAGE($Q$6,$Q$7)-C80,1.1536)," ") ->  | U80: 0 | V80: 0 | W80: 0
G81: =IF(C81<>0,((H81+I81)*0.6+(K81+J81)*1.2+(M81+L81)*1.8+(O81+N81)*2.4+(Q81+P81)*3)*E81," ") ->  | U81: =ROUND(((H81+I81)*0.6+(K81+J81)*1.2+(M81+L81)*1.8+(O81+N81)*2.4+(Q81+P81)*3)*(5.7091*($T$9-AVERAGE($T$7:$T$8))-5.1818),0) -> 0 | V81: =+ROUND(((H81+I81)*0.6+(K81+J81)*1.2+(M81+L81)*1.8+(O81+N81)*2.4+(Q81+P81)*3)*(7.5455*($T$9-AVERAGE($T$7:$T$8))-5.1818),0) -> 0 | W81: =+U81*1.45 -> 0
T82: =IF(E82=" ","",IF($S$11=$W$11,W82,IF($S$14="Montage en faux plafond",U82,IF($S$14="Montage apparent",V82)))) ->  | U82: 0 | V82: 0 | W82: 0
U83: 0 | V83: 0 | W83: 0
U84: 0 | V84: 0 | W84: 0
U85: 0 | V85: 0 | W85: 0
U86: 0 | V86: 0 | W86: 0
U87: 0 | V87: 0 | W87: 0
U88: 0 | V88: 0 | W88: 0
U89: 0 | V89: 0 | W89: 0
U90: 0 | V90: 0 | W90: 0
U91: 0 | V91: 0 | W91: 0
U92: 0 | V92: 0 | W92: 0
U93: 0 | V93: 0 | W93: 0
U94: 0 | V94: 0 | W94: 0
U95: 0 | V95: 0 | W95: 0
U96: 0 | V96: 0 | W96: 0
U97: 0 | V97: 0 | W97: 0
U98: 0 | V98: 0 | W98: 0
U99: 0 | V99: 0 | W99: 0
U100: 0 | V100: 0 | W100: 0
U101: 0 | V101: 0 | W101: 0
U102: 0 | V102: 0 | W102: 0
U103: 0 | V103: 0 | W103: 0
U104: 0 | V104: 0 | W104: 0
U105: 0 | V105: 0 | W105: 0
U106: 0 | V106: 0 | W106: 0
U107: 0 | V107: 0 | W107: 0
U108: 0 | V108: 0 | W108: 0
U109: 0 | V109: 0 | W109: 0
U110: 0 | V110: 0 | W110: 0
U111: 0 | V111: 0 | W111: 0
U112: 0 | V112: 0 | W112: 0
U113: 0 | V113: 0 | W113: 0
U114: 0 | V114: 0 | W114: 0
U115: 0 | V115: 0 | W115: 0
U116: 0 | V116: 0 | W116: 0
U117: 0 | V117: 0 | W117: 0
U118: 0 | V118: 0 | W118: 0
U119: 0 | V119: 0 | W119: 0
U120: 0 | V120: 0 | W120: 0
U121: 0 | V121: 0 | W121: 0
U122: 0 | V122: 0 | W122: 0
U123: 0 | V123: 0 | W123: 0
U124: 0 | V124: 0 | W124: 0
U125: 0 | V125: 0 | W125: 0
U126: 0 | V126: 0 | W126: 0
U127: 0 | V127: 0 | W127: 0
U128: 0 | V128: 0 | W128: 0
U129: 0 | V129: 0 | W129: 0
U130: 0 | V130: 0 | W130: 0
U131: 0 | V131: 0 | W131: 0
U132: 0 | V132: 0 | W132: 0
U133: 0 | V133: 0 | W133: 0
U134: 0 | V134: 0 | W134: 0
U135: 0 | V135: 0 | W135: 0
U136: 0 | V136: 0 | W136: 0
U137: 0 | V137: 0 | W137: 0
U138: 0 | V138: 0 | W138: 0
U139: 0 | V139: 0 | W139: 0
U140: 0 | V140: 0 | W140: 0
U141: 0 | V141: 0 | W141: 0
U142: 0 | V142: 0 | W142: 0
U143: 0 | V143: 0 | W143: 0
E144: =IF(C144<>0,3.28086*POWER(AVERAGE($Q$6,$Q$7)-C144,1.1536)," ") ->  | U144: 0 | V144: 0 | W144: 0
G145: =IF(C145<>0,((H145+I145)*0.6+(K145+J145)*1.2+(M145+L145)*1.8+(O145+N145)*2.4+(Q145+P145)*3)*E145," ") ->  | U145: =ROUND(((H145+I145)*0.6+(K145+J145)*1.2+(M145+L145)*1.8+(O145+N145)*2.4+(Q145+P145)*3)*(5.7091*($T$9-AVERAGE($T$7:$T$8))-5.1818),0) -> 0 | V145: =+ROUND(((H145+I145)*0.6+(K145+J145)*1.2+(M145+L145)*1.8+(O145+N145)*2.4+(Q145+P145)*3)*(7.5455*($T$9-AVERAGE($T$7:$T$8))-5.1818),0) -> 0 | W145: =+U145*1.45 -> 0
T146: =IF(E146=" ","",IF($S$11=$W$11,W146,IF($S$14="Montage en faux plafond",U146,IF($S$14="Montage apparent",V146)))) ->  | U146: 0 | V146: 0 | W146: 0
U147: 0 | V147: 0 | W147: 0
U148: 0 | V148: 0 | W148: 0
U149: 0 | V149: 0 | W149: 0
U150: 0 | V150: 0 | W150: 0
U151: 0 | V151: 0 | W151: 0
U152: 0 | V152: 0 | W152: 0
U153: 0 | V153: 0 | W153: 0
U154: 0 | V154: 0 | W154: 0
U155: 0 | V155: 0 | W155: 0
U156: 0 | V156: 0 | W156: 0
U157: 0 | V157: 0 | W157: 0
U158: 0 | V158: 0 | W158: 0
U159: 0 | V159: 0 | W159: 0
U160: 0 | V160: 0 | W160: 0
U161: 0 | V161: 0 | W161: 0
U162: 0 | V162: 0 | W162: 0
U163: 0 | V163: 0 | W163: 0
U164: 0 | V164: 0 | W164: 0
U165: 0 | V165: 0 | W165: 0
U166: 0 | V166: 0 | W166: 0
U167: 0 | V167: 0 | W167: 0
U168: 0 | V168: 0 | W168: 0
U169: 0 | V169: 0 | W169: 0
U170: 0 | V170: 0 | W170: 0
U171: 0 | V171: 0 | W171: 0
U172: 0 | V172: 0 | W172: 0
U173: 0 | V173: 0 | W173: 0
U174: 0 | V174: 0 | W174: 0
U175: 0 | V175: 0 | W175: 0
U176: 0 | V176: 0 | W176: 0
U177: 0 | V177: 0 | W177: 0
U178: 0 | V178: 0 | W178: 0
U179: 0 | V179: 0 | W179: 0
U180: 0 | V180: 0 | W180: 0
U181: 0 | V181: 0 | W181: 0
U182: 0 | V182: 0 | W182: 0
U183: 0 | V183: 0 | W183: 0
U184: 0 | V184: 0 | W184: 0
U185: 0 | V185: 0 | W185: 0
U186: 0 | V186: 0 | W186: 0
U187: 0 | V187: 0 | W187: 0
U188: 0 | V188: 0 | W188: 0
U189: 0 | V189: 0 | W189: 0
U190: 0 | V190: 0 | W190: 0
U191: 0 | V191: 0 | W191: 0
U192: 0 | V192: 0 | W192: 0
U193: 0 | V193: 0 | W193: 0
U194: 0 | V194: 0 | W194: 0
U195: 0 | V195: 0 | W195: 0
U196: 0 | V196: 0 | W196: 0
U197: 0 | V197: 0 | W197: 0
U198: 0 | V198: 0 | W198: 0
U199: 0 | V199: 0 | W199: 0
U200: 0 | V200: 0 | W200: 0
U201: 0 | V201: 0 | W201: 0
U202: 0 | V202: 0 | W202: 0
U203: 0 | V203: 0 | W203: 0
... 163 more rows
